Body Name,Date Paid,Transaction Number,Amount,Supplier Name,Supplier Type,Expense Area,Cost Centre Description,Expense Type
Cambridgeshire County Council,02-May-23,51301978767,"-2,481.02",G4S SECURE SOLUTIONS (UK) LTD,TRADE SUPPLIER,Building Maintenance,P22090904 Huntingdon Youth C&FC PE29 7AF,"New Construction, Conversion and Renovation"
Cambridgeshire County Council,02-May-23,51301978744,520.00,McEwan Childcare Limited (Fun times Stukeley),EDUCATION,Early Years Service - HAF,HAF Grant,Care & Ed Childcare Settings
Cambridgeshire County Council,02-May-23,51301978388,526.33,T & T PRIVATE HIRE LTD,TRADE SUPPLIER,LD - Hunts Locality - Cost of Care,LD - Huntingdonshire - Care,Social Care Transport
Cambridgeshire County Council,02-May-23,51301962401,528.00,Panoramic Associates,COMPANY,PH COMF,PH - Contain Outbreak Management Fund,Agency Staff
Cambridgeshire County Council,02-May-23,51301978392,529.45,T & T PRIVATE HIRE LTD,TRADE SUPPLIER,LAC Transport,LAC Transport -  Short Breaks,Social Care Transport
Cambridgeshire County Council,02-May-23,51301978421,532.80,ADAMS CABS,TRADE SUPPLIER,LD - Young Adults Team,LD - Young Adults - Care,Social Care Transport
Cambridgeshire County Council,02-May-23,51301974696,537.14,Magic Words Therapy Limited,EDUCATION,Early Years Specialist Support,SEND - Independent Therapy,Independent School Placements
Cambridgeshire County Council,02-May-23,51301974515,540.00,Sugarman Group,EDUCATION,Out of School Tuition,Out of School Provision EHCPs,Independent School Placements
Cambridgeshire County Council,02-May-23,51301978401,568.97,T & T PRIVATE HIRE LTD,TRADE SUPPLIER,LAC Transport,LAC Transport - Out of county,Social Care Transport
Cambridgeshire County Council,02-May-23,51301962741,598.80,Embridge Consulting (UK) Ltd,COMPANY,Shared Services Business Systems,Business Systems,Staff Training & Development
Cambridgeshire County Council,02-May-23,51301962961,600.00,DJ DAVISON & SONS LTD,TRADE SUPPLIER,Highways - Rights of Way,Highways - Rights of Way,ROW Maintenance
Cambridgeshire County Council,02-May-23,51301978750,600.00,The Golden Thread Alliance - Meopham Community Academy,EDUCATION,Virtual School,Virtual School LACPP Financing,Discretionary Student Awards
Cambridgeshire County Council,02-May-23,51301964628,618.66,Randstad Solutions Limited,COMPANY,SEND Specialist Services - Sensory Support,Sensory Support Team (0-25),Agency Staff
Cambridgeshire County Council,02-May-23,51301978341,640.00,Redacted Personal Data,PARENT/GUARDIAN,Children's Disability Direct Payments,CSC Direct Payments,Direct Payments
Cambridgeshire County Council,02-May-23,51301972887,660.00,Level Up Print Limited,COMPANY,Cambridgeshire Skills HoS,Cambridgeshire Skills Management Team,Advertising / Publicity (non Recruitment)
Cambridgeshire County Council,02-May-23,51301969880,678.05,CANON (UK) LTD,TRADE SUPPLIER,Corporate IT Managed,MFD Recharges,Computer hardware - purchase
Cambridgeshire County Council,02-May-23,51301974436,690.00,WCL UK LTD,TRADE SUPPLIER,ICT Service,ICT Service Sales,Materials for resale
Cambridgeshire County Council,02-May-23,51301978389,691.37,T & T PRIVATE HIRE LTD,TRADE SUPPLIER,LAC Transport,LAC Transport  - Contact Visits,Social Care Transport
Cambridgeshire County Council,02-May-23,51301978764,700.00,Redacted Personal Data,PARENT/GUARDIAN,Children's Disability Direct Payments,CSC Direct Payments,Direct Payments
Cambridgeshire County Council,02-May-23,51301978347,705.60,T & T PRIVATE HIRE LTD,TRADE SUPPLIER,LAC Transport,LAC Transport - Out of county,Social Care Transport
Cambridgeshire County Council,02-May-23,51301978356,705.94,T & T PRIVATE HIRE LTD,TRADE SUPPLIER,LAC Transport,LAC Transport -  Short Breaks,Social Care Transport
Cambridgeshire County Council,02-May-23,51301978436,708.30,Hinchingbrooke Park Pre-School,NURSERY,Early Years,SEND Specialist Services - SENIF,Care & Ed Partner Organisations
Cambridgeshire County Council,02-May-23,51301978431,708.30,Little Legs Montessori,NURSERY,Early Years,SEND Specialist Services - SENIF,Formula Budget Allocation
Cambridgeshire County Council,02-May-23,51301978437,708.30,BUTTERCUPS COMMUNITY PRE-SCHOOL,NURSERY,Early Years,SEND Specialist Services - SENIF,Care & Ed Partner Organisations
Cambridgeshire County Council,02-May-23,51301978450,708.30,CAVALRY SCHOOL NURSERY,NURSERY,Early Years,SEND Specialist Services - SENIF,Care & Ed Partner Organisations
Cambridgeshire County Council,02-May-23,51301978441,708.30,LITTLE OWLS NENE,NURSERY,Early Years,SEND Specialist Services - SENIF,Care & Ed Partner Organisations
Cambridgeshire County Council,02-May-23,51301978443,708.30,LITTLE OWLS NENE,NURSERY,Early Years,SEND Specialist Services - SENIF,Care & Ed Partner Organisations
Cambridgeshire County Council,02-May-23,51301978452,708.30,LADYBIRD PRE-SCHOOL,NURSERY,Early Years,SEND Specialist Services - SENIF,Care & Ed Partner Organisations
Cambridgeshire County Council,02-May-23,51301978428,708.30,STEPPING STONES PRE-SCHOOL (LEVERINGTON),NURSERY,Early Years,SEND Specialist Services - SENIF,Care & Ed Partner Organisations
Cambridgeshire County Council,02-May-23,51301978444,708.30,LITTLEPORT COMMUNITY PRESCHOOL,NURSERY,Early Years,SEND Specialist Services - SENIF,Care & Ed Partner Organisations
Cambridgeshire County Council,02-May-23,51301978446,708.30,LITTLEPORT COMMUNITY PRESCHOOL,NURSERY,Early Years,SEND Specialist Services - SENIF,Care & Ed Partner Organisations
Cambridgeshire County Council,02-May-23,51301975695,720.00,Parker Clinical Psychology Limited,EDUCATION,Regional Adoption Agency,Adoption Support Fund,Professional Fees and Hired Services
Cambridgeshire County Council,02-May-23,51301978414,744.12,ADAMS CABS,TRADE SUPPLIER,LD - South Locality - Cost of Care,LD - South Cambs - Care,Social Care Transport
Cambridgeshire County Council,02-May-23,51301976260,750.00,Achieve Occupational Therapy Ltd,EDUCATION,Regional Adoption Agency,Adoption Support Fund,Professional Fees and Hired Services
Cambridgeshire County Council,02-May-23,51301978419,834.00,ADAMS CABS,TRADE SUPPLIER,LD - City Locality - Cost of Care,LD - City - Care,Social Care Transport
Cambridgeshire County Council,02-May-23,51301972897,871.56,Opus Teach Limited,EDUCATION,Virtual School,Virtual School LACPP Financing,Agency Staff
Cambridgeshire County Council,02-May-23,51301962697,885.11,J & G GROUNDWORKS & SURFACING,COMPANY,Highways Maintenance,Highways Maintenance - Fenland,Accident Damage
Cambridgeshire County Council,02-May-23,51301978373,897.00,ALANS TAXI LTD,TRADE SUPPLIER,LD - Young Adults Team,LD - Young Adults - Care,Social Care Transport
Cambridgeshire County Council,02-May-23,51301974512,900.00,Sugarman Group,EDUCATION,Out of School Tuition,Out of School Provision EHCPs,Independent School Placements
Cambridgeshire County Council,02-May-23,51301974514,900.00,Sugarman Group,EDUCATION,Out of School Tuition,Out of School Provision EHCPs,Independent School Placements
Cambridgeshire County Council,02-May-23,51301978470,920.79,LITTLE WOMBATZ,NURSERY,Early Years,SEND Specialist Services - SENIF,Care & Ed Partner Organisations
Cambridgeshire County Council,02-May-23,51301978460,920.79,Redacted Personal Data,INDIVIDUAL,Early Years,SEND Specialist Services - SENIF,Payments to Other Establishments
Cambridgeshire County Council,02-May-23,51301978467,920.79,WARBOYS UNDER FIVES PLAY GROUP,NURSERY,Early Years,SEND Specialist Services - SENIF,Care & Ed Partner Organisations
Cambridgeshire County Council,02-May-23,51301962700,926.75,Conduent Public Sector LTD,TRADE SUPPLIER,Parking Enforcement,On Street Parking,Professional Fees and Hired Services
Cambridgeshire County Council,02-May-23,51301978338,942.00,Sensory Childcare,CARE ESTABLISHMENT,Children's Disability Direct Payments,CSC Direct Payments,Direct Payments
Cambridgeshire County Council,02-May-23,51301978472,944.40,MANEA PRE SCHOOL,NURSERY,Early Years,SEND Specialist Services - SENIF,Care & Ed Partner Organisations
Cambridgeshire County Council,02-May-23,51301962874,960.00,Peterborough City Council Design and Print Team,COMPANY,Fostering Recruitment & Assessment Team,Fostering Recruitment & Assessment Team,Advertising / Publicity (non Recruitment)
Cambridgeshire County Council,02-May-23,51301978751,"1,040.00",Prestige Sports Camps,EDUCATION,Early Years Service - HAF,HAF Grant,Care & Ed Childcare Settings
Cambridgeshire County Council,02-May-23,51301978407,"1,058.40",ADAMS CABS,TRADE SUPPLIER,LD - Young Adults Team,LD - Young Adults - Care,Social Care Transport
Cambridgeshire County Council,02-May-23,51301978386,"1,062.42",T & T PRIVATE HIRE LTD,TRADE SUPPLIER,LAC Transport,LAC Transport -  Short Breaks,Social Care Transport
Cambridgeshire County Council,02-May-23,51301977244,"1,070.00",Kick London,CHARITY,Schools - Secondaries,Pilgrim Pathways School,Professional Fees and Hired Services
Cambridgeshire County Council,02-May-23,51301975696,"1,080.00",Parker Clinical Psychology Limited,EDUCATION,Regional Adoption Agency,Adoption Support Fund,Professional Fees and Hired Services
Cambridgeshire County Council,02-May-23,51301978383,"1,081.92",T & T PRIVATE HIRE LTD,TRADE SUPPLIER,LAC Transport,LAC Transport - Out of county,Social Care Transport
Cambridgeshire County Council,02-May-23,51301978366,"1,137.94",T & T PRIVATE HIRE LTD,TRADE SUPPLIER,LAC Transport,LAC Transport -  Short Breaks,Social Care Transport
Cambridgeshire County Council,02-May-23,51301934428,"1,144.53",FARCET PRIMARY SCHOOL,EDUCATION,Corporate Offices,Farcet (Brightfields) Children's Centre,Service Charges
Cambridgeshire County Council,02-May-23,51301970006,"1,164.00",Pathfinder Legal Services Limited,TRADE SUPPLIER,LA maintained Early Years Provision,LA maintained Early Years Provision,Construction - External Professional Fees
Cambridgeshire County Council,02-May-23,51301978453,"1,180.50",MELBOURN PLAYGROUP AND OUT OF SCHOOL CLUB,NURSERY,Early Years,SEND Specialist Services - SENIF,Care & Ed Partner Organisations
Cambridgeshire County Council,02-May-23,51301978465,"1,180.50",Little Cherries/Bewick Bridge community Primary School,NURSERY,Early Years,SEND Specialist Services - SENIF,Care & Ed Partner Organisations
Cambridgeshire County Council,02-May-23,51301978461,"1,180.50",COATES GOSLINGS,NURSERY,Early Years,SEND Specialist Services - SENIF,Care & Ed Partner Organisations
Cambridgeshire County Council,02-May-23,51301978464,"1,180.50",COATES GOSLINGS,NURSERY,Early Years,SEND Specialist Services - SENIF,Care & Ed Partner Organisations
Cambridgeshire County Council,02-May-23,51301978448,"1,180.50",MELDRETH PRE-SCHOOL,NURSERY,Early Years,SEND Specialist Services - SENIF,Formula Budget Allocation
Cambridgeshire County Council,02-May-23,51301978741,"1,209.00",Kids R Us @ Fulbourn,NURSERY,Early Years Service - HAF,HAF Grant,Care & Ed Childcare Settings
Cambridgeshire County Council,02-May-23,51301972853,"1,210.46",THE RECRUITMENT AGENCY LIMITED,TRADE SUPPLIER,Grafham Water,Grafham Water Centre,Agency Staff
Cambridgeshire County Council,02-May-23,51301978457,"1,227.72",The Grove Nursery,NURSERY,Early Years,SEND Specialist Services - SENIF,Care & Ed Partner Organisations
Cambridgeshire County Council,02-May-23,51301978447,"1,227.72",LITTLE PAXTON PRE-SCHOOL,NURSERY,Early Years,SEND Specialist Services - SENIF,Care & Ed Partner Organisations
Cambridgeshire County Council,02-May-23,51301978456,"1,227.72",PRIORY PARK PLAYGROUP,NURSERY,Early Years,SEND Specialist Services - SENIF,Care & Ed Partner Organisations
Cambridgeshire County Council,02-May-23,51301978442,"1,227.72",PIPPINS PRESCHOOL,NURSERY,Early Years,SEND Specialist Services - SENIF,Care & Ed Partner Organisations
Cambridgeshire County Council,02-May-23,51301978378,"1,241.04",24 X 7 LTD,TRADE SUPPLIER,LAC Transport,LAC Transport - Home to School,Social Care Transport
Cambridgeshire County Council,02-May-23,51301978379,"1,241.04",24 X 7 LTD,TRADE SUPPLIER,LAC Transport,LAC Transport - Out of county,Social Care Transport
Cambridgeshire County Council,02-May-23,51301978380,"1,241.17",24 X 7 LTD,TRADE SUPPLIER,LAC Transport,LAC Transport - Out of county,Social Care Transport
Cambridgeshire County Council,02-May-23,51301978746,"1,248.00",Over Happy Hens,EDUCATION,Early Years Service - HAF,HAF Grant,Care & Ed Childcare Settings
Cambridgeshire County Council,02-May-23,51301969893,"1,274.14",D HAIRD & CO LTD,COMPANY,County Farms,County Farms,County Farms Maintenance unplanned
Cambridgeshire County Council,02-May-23,51301969791,"1,320.00",Provident Recruitment Ltd T/A Psychology People,COMPANY,SEND Specialist Services - Education Psychology,SEND Specialist Services - Education Psychology,Professional Fees and Hired Services
Cambridgeshire County Council,02-May-23,51301978458,"1,330.03",Redacted Personal Data,INDIVIDUAL,Early Years,SEND Specialist Services - SENIF,Care & Ed Partner Organisations
Cambridgeshire County Council,02-May-23,51301978759,"1,352.00",Football Fun Factory Cottenham,LOCAL CLUBS & GROUPS,Early Years Service - HAF,HAF Grant,Care & Ed Childcare Settings
Cambridgeshire County Council,02-May-23,51301978726,"1,352.00",Spectrum Morley Holiday Club,EDUCATION,Early Years Service - HAF,HAF Grant,Care & Ed Childcare Settings
Cambridgeshire County Council,02-May-23,51301964644,"1,356.00",E-VOICE SPEECH RECOGNITION LTD,TRADE SUPPLIER,"Targeted Support Service March, Chatteris & Whittlesey",EH March Chatteris & Whittlesey District,Staff Training & Development
Cambridgeshire County Council,02-May-23,51301978730,"1,381.25",The Football Fun Factory - Soham,COMPANY,Early Years Service - HAF,HAF Grant,Care & Ed Childcare Settings
Cambridgeshire County Council,02-May-23,51301978761,"1,404.00",FOXES OUT OF SCHOOL CLUB,NURSERY,Early Years Service - HAF,HAF Grant,Care & Ed Childcare Settings
Cambridgeshire County Council,02-May-23,51301978360,"1,411.87",T & T PRIVATE HIRE LTD,TRADE SUPPLIER,LD - City Locality - Staffing,LD - City - Staffing,Social Care Transport
Cambridgeshire County Council,02-May-23,51301978445,"1,416.60",Hartford Infants Pre School,NURSERY,Early Years,SEND Specialist Services - SENIF,Formula Budget Allocation
Cambridgeshire County Council,02-May-23,51301978363,"1,422.42",T & T PRIVATE HIRE LTD,TRADE SUPPLIER,LAC Transport,LAC Transport -  Short Breaks,Social Care Transport
Cambridgeshire County Council,02-May-23,51301969840,"1,425.00",Provident Recruitment Ltd T/A Psychology People,COMPANY,SEND Specialist Services - Education Psychology,SEND Specialist Services - Education Psychology,Professional Fees and Hired Services
Cambridgeshire County Council,02-May-23,51301978409,"1,432.80",ADAMS CABS,TRADE SUPPLIER,LD - City Locality - Staffing,LD - City - Staffing,Social Care Transport
Cambridgeshire County Council,02-May-23,51301978432,"1,483.50",UNDER FIVES ROUNDABOUT,NURSERY,Early Years,SEND Specialist Services - SENIF,Care & Ed Partner Organisations
Cambridgeshire County Council,02-May-23,51301978340,"1,500.00",Redacted Personal Data,PARENT/GUARDIAN,Children's Disability Direct Payments,CSC Direct Payments,Direct Payments
Cambridgeshire County Council,02-May-23,51301962519,"1,500.00",RICHARDSON,TRADE SUPPLIER,Buildings and Capital,Education Property Strategy Manager,Rents and Leases
Cambridgeshire County Council,02-May-23,51301962702,"1,523.41",Conduent Public Sector LTD,TRADE SUPPLIER,Parking Enforcement,Bus Route Enforcement,Professional Fees and Hired Services
Cambridgeshire County Council,02-May-23,51301978429,"1,525.21",THE WILLOWS DAY CARE NURSERY,NURSERY,Early Years,SEND Specialist Services - SENIF,Care & Ed Partner Organisations
Cambridgeshire County Council,02-May-23,51301978451,"1,525.21",LITTLE HANDS NURSERY SCHOOL (BOURN),NURSERY,Early Years,SEND Specialist Services - SENIF,Care & Ed Partner Organisations
Cambridgeshire County Council,02-May-23,51301978440,"1,525.21",BRIGHT HORIZONS @ CAMBRIDGE SCIENCE PARK,NURSERY,Early Years,SEND Specialist Services - SENIF,Care & Ed Partner Organisations
Cambridgeshire County Council,02-May-23,51301969889,"1,529.64",CANON (UK) LTD,TRADE SUPPLIER,Corporate IT Managed,MFD Recharges,Computer hardware - purchase
Cambridgeshire County Council,02-May-23,51301978438,"1,534.65",Hartford Infants Pre School,NURSERY,Early Years,SEND Specialist Services - SENIF,Care & Ed Partner Organisations
Cambridgeshire County Council,02-May-23,51301978454,"1,534.65",Alderman Jacobs Pre-School,NURSERY,Early Years,SEND Specialist Services - SENIF,Care & Ed Partner Organisations
Cambridgeshire County Council,02-May-23,51301978469,"1,534.65",CAVALRY SCHOOL NURSERY,NURSERY,Early Years,SEND Specialist Services - SENIF,Care & Ed Partner Organisations
Cambridgeshire County Council,02-May-23,51301978427,"1,534.65",WARBOYS UNDER FIVES PLAY GROUP,NURSERY,Early Years,SEND Specialist Services - SENIF,Care & Ed Partner Organisations
Cambridgeshire County Council,02-May-23,51301978463,"1,534.65",WARBOYS UNDER FIVES PLAY GROUP,NURSERY,Early Years,SEND Specialist Services - SENIF,Care & Ed Partner Organisations
Cambridgeshire County Council,02-May-23,51301978462,"1,534.65",ROMSEY MILL TRUST LTD,TRUST (OTHER),Early Years,SEND Specialist Services - SENIF,Care & Ed Partner Organisations
Cambridgeshire County Council,02-May-23,51301978434,"1,534.65",NEW ROAD PRE SCHOOL,NURSERY,Early Years,SEND Specialist Services - SENIF,Formula Budget Allocation
Cambridgeshire County Council,02-May-23,51301978449,"1,534.65",NEW ROAD PRE SCHOOL,NURSERY,Early Years,SEND Specialist Services - SENIF,Care & Ed Partner Organisations
Cambridgeshire County Council,02-May-23,51301978459,"1,534.65",LITTLE THETFORD ACORNS,NURSERY,Early Years,SEND Specialist Services - SENIF,Care & Ed Partner Organisations
Cambridgeshire County Council,02-May-23,51301962524,"1,540.80",TIMBER FORCE LTD,TRADE SUPPLIER,GCP - Chisholm Trail cycle links,GCP - Chisholm Trail cycle links,Construction - External Professional Fees
Cambridgeshire County Council,02-May-23,51301974488,"1,548.00",Jockey Club Racecourses Limited,COMPANY,Domestic Violence & Sexual Violence,DLUHC Grant,Casual hire of facilities
Cambridgeshire County Council,02-May-23,51301976498,"1,560.00",YOUNG PEOPLE MARCH LTD,LOCAL CLUBS & GROUPS,Out of School Tuition,Out of School Provision EHCPs,Independent School Placements
Cambridgeshire County Council,02-May-23,51301978745,"1,560.00",Grow with Us,EDUCATION,Early Years Service - HAF,HAF Grant,Care & Ed Childcare Settings
Cambridgeshire County Council,02-May-23,51301978418,"1,579.20",ADAMS CABS,TRADE SUPPLIER,LD - East Locality - Cost of Care,LD - East Cambs - Care,Social Care Transport
Cambridgeshire County Council,02-May-23,51301978381,"1,610.00",AERO CARS,TRADE SUPPLIER,LAC Transport,LAC Transport - Home to School,Social Care Transport
Cambridgeshire County Council,02-May-23,51301978413,"1,646.40",ADAMS CABS,TRADE SUPPLIER,LD - South Locality - Cost of Care,LD - South Cambs - Care,Social Care Transport
Cambridgeshire County Council,02-May-23,51301978740,"1,664.00",KIDS CLUB ELY,NURSERY,Early Years Service - HAF,HAF Grant,Care & Ed Childcare Settings
Cambridgeshire County Council,02-May-23,51301978725,"1,664.00",KIDZONE,NURSERY,Early Years Service - HAF,HAF Grant,Care & Ed Childcare Settings
Cambridgeshire County Council,02-May-23,51301978716,"1,664.00",CRACKER JACKS DAY NURSERY,NURSERY,Early Years Service - HAF,HAF Grant,Care & Ed Childcare Settings
Cambridgeshire County Council,02-May-23,51301978719,"1,690.00",Football Fun Factory Glenn Sullivan,COMPANY,Early Years Service - HAF,HAF Grant,Care & Ed Childcare Settings
Cambridgeshire County Council,02-May-23,51301977463,"1,736.00",PEOPLE & ANIMALS UK C.I.C,EDUCATION,Targeted Support Service Wisbech,YS - Wisbech AVA Project,Educational visits
Cambridgeshire County Council,02-May-23,51301978396,"1,764.84",T & T PRIVATE HIRE LTD,TRADE SUPPLIER,LD - City Locality - Staffing,LD - City - Staffing,Social Care Transport
Cambridgeshire County Council,02-May-23,51301978724,"1,768.00",Fusion Family and Youth Projects,CHARITY,Early Years Service - HAF,HAF Grant,Care & Ed Childcare Settings
Cambridgeshire County Council,02-May-23,51301962707,"1,945.66",Conduent Public Sector LTD,TRADE SUPPLIER,Parking Enforcement,Civil Parking Enforcement,Professional Fees and Hired Services
Cambridgeshire County Council,02-May-23,51301978395,"1,991.39",T & T PRIVATE HIRE LTD,TRADE SUPPLIER,LAC Transport,LAC Transport -  Short Breaks,Social Care Transport
Cambridgeshire County Council,02-May-23,51301978403,"1,991.39",T & T PRIVATE HIRE LTD,TRADE SUPPLIER,LAC Transport,LAC Transport -  Short Breaks,Social Care Transport
Cambridgeshire County Council,02-May-23,51301962521,"2,000.00",NOISE SOLUTION,TRADE SUPPLIER,Out of School Tuition,Out of School Provision EHCPs,Independent School Placements
Cambridgeshire County Council,02-May-23,51301978372,"2,022.00",ALANS TAXI LTD,TRADE SUPPLIER,LD - East Locality - Cost of Care,LD - East Cambs - Care,Social Care Transport
Cambridgeshire County Council,02-May-23,51301978471,"2,046.20",SAWSTON DAY NURSERY,NURSERY,Early Years,SEND Specialist Services - SENIF,Care & Ed Partner Organisations
Cambridgeshire County Council,02-May-23,51301978757,"2,047.50",Football Fun Factory - Cambourne,EDUCATION,Early Years Service - HAF,HAF Grant,Care & Ed Childcare Settings
Cambridgeshire County Council,02-May-23,51301977454,"2,059.00",OFSTED,OTHER PUBLIC BODIES,Regional Adoption Agency,Regional Adoption Agency,Subscriptions
Cambridgeshire County Council,02-May-23,51301978760,"2,060.50",Football Fun Factory St Neots,COMPANY,Early Years Service - HAF,HAF Grant,Care & Ed Childcare Settings
Cambridgeshire County Council,02-May-23,51301969882,"2,075.12",CANON (UK) LTD,TRADE SUPPLIER,Corporate IT Managed,MFD Recharges,Computer hardware - purchase
Cambridgeshire County Council,02-May-23,51301978723,"2,080.00",Football Fun Factory - Albany,COMPANY,Early Years Service - HAF,HAF Grant,Care & Ed Childcare Settings
Cambridgeshire County Council,02-May-23,51301978416,"2,090.40",ADAMS CABS,TRADE SUPPLIER,LD - Young Adults Team,LD - Young Adults - Care,Social Care Transport
Cambridgeshire County Council,02-May-23,51301962579,"2,147.00",Achieve Occupational Therapy Ltd,EDUCATION,Early Years Specialist Support,SEND - Independent Therapy,Independent School Placements
Cambridgeshire County Council,02-May-23,51301978358,"2,179.87",T & T PRIVATE HIRE LTD,TRADE SUPPLIER,LD - City Locality - Staffing,LD - City - Staffing,Social Care Transport
Cambridgeshire County Council,02-May-23,51301978371,"2,197.00",ALANS TAXI LTD,TRADE SUPPLIER,LD - South Locality - Cost of Care,LD - South Cambs - Care,Social Care Transport
Cambridgeshire County Council,02-May-23,51301978412,"2,268.00",ADAMS CABS,TRADE SUPPLIER,LD - Young Adults Team,LD - Young Adults - Care,Social Care Transport
Cambridgeshire County Council,02-May-23,51301978369,"2,269.20",LUXECABS,TRADE SUPPLIER,LAC Transport,LAC Transport - Home to School,Social Care Transport
Cambridgeshire County Council,02-May-23,51301978722,"2,288.00",Football Fun Factory Trumpington,COMPANY,Early Years Service - HAF,HAF Grant,Care & Ed Childcare Settings
Cambridgeshire County Council,02-May-23,51301977466,"2,334.00",PEOPLE & ANIMALS UK C.I.C,EDUCATION,Targeted Support Service Wisbech,YS - Wisbech AVA Project,Educational visits
Cambridgeshire County Council,02-May-23,51301978351,"2,371.87",T & T PRIVATE HIRE LTD,TRADE SUPPLIER,LD - Young Adults Team,LD - Young Adults - Care,Social Care Transport
Cambridgeshire County Council,02-May-23,51301978737,"2,392.00",Dawn Until Dusk Bottisham,EDUCATION,Early Years Service - HAF,HAF Grant,Care & Ed Childcare Settings
Cambridgeshire County Council,02-May-23,51301978720,"2,392.00",Football Fun Factory Sawston Sports Centre,COMPANY,Early Years Service - HAF,HAF Grant,Care & Ed Childcare Settings
Cambridgeshire County Council,02-May-23,51301978411,"2,434.32",ADAMS CABS,TRADE SUPPLIER,LD - South Locality - Cost of Care,LD - South Cambs - Care,Social Care Transport
Cambridgeshire County Council,02-May-23,51301978474,"2,468.57",Crown Social Care Ltd,CARE ESTABLISHMENT,Unaccompanied Asylum Seeking Children,Separated Migrant Children < 18,Asylum Seekers
Cambridgeshire County Council,02-May-23,51301978721,"2,470.00",Football Fun Factory St Ives,COMPANY,Early Years Service - HAF,HAF Grant,Care & Ed Childcare Settings
Cambridgeshire County Council,02-May-23,51301978315,"2,486.40",The Oyster Partnership Limited,COMPANY,Waste Disposal incl PFI,Waste PFI,Agency Staff
Cambridgeshire County Council,02-May-23,51301975682,"2,500.00",Parker Clinical Psychology Limited,EDUCATION,Regional Adoption Agency,Adoption Support Fund,Professional Fees and Hired Services
Cambridgeshire County Council,02-May-23,51301978753,"2,525.25",Sport2day Holiday Club,COMPANY,Early Years Service - HAF,HAF Grant,Care & Ed Childcare Settings
Cambridgeshire County Council,02-May-23,51301962440,"2,640.00",Panoramic Associates,COMPANY,PH COMF,PH - Contain Outbreak Management Fund,Professional Fees and Hired Services
Cambridgeshire County Council,02-May-23,51301978368,"2,647.26",T & T PRIVATE HIRE LTD,TRADE SUPPLIER,LAC Transport,LAC Transport - Out of county,Social Care Transport
Cambridgeshire County Council,02-May-23,51301978393,"2,668.36",T & T PRIVATE HIRE LTD,TRADE SUPPLIER,LD - Young Adults Team,LD - Young Adults - Care,Social Care Transport
Cambridgeshire County Council,02-May-23,51301978415,"2,678.40",ADAMS CABS,TRADE SUPPLIER,LD - South Locality - Cost of Care,LD - South Cambs - Care,Social Care Transport
Cambridgeshire County Council,02-May-23,51301978375,"2,700.00",ALANS TAXI LTD,TRADE SUPPLIER,LD - South Locality - Cost of Care,LD - South Cambs - Care,Social Care Transport
Cambridgeshire County Council,02-May-23,51301973805,"2,703.93",ROYAL MAIL,TRADE SUPPLIER,Information Management,Resources Franking Machine,Postage & Carriage
Cambridgeshire County Council,02-May-23,51301978394,"2,724.84",T & T PRIVATE HIRE LTD,TRADE SUPPLIER,LD - City Locality - Staffing,LD - City - Staffing,Social Care Transport
Cambridgeshire County Council,02-May-23,51301978365,"2,851.87",T & T PRIVATE HIRE LTD,TRADE SUPPLIER,LD - South Locality - Cost of Care,LD - South Cambs - Care,Social Care Transport
Cambridgeshire County Council,02-May-23,51301978727,"2,912.00",SMARTIES PRE SCHOOL AND OUT OF SCHOOL CLUB,NURSERY,Early Years Service - HAF,HAF Grant,Care & Ed Childcare Settings
Cambridgeshire County Council,02-May-23,51301978768,"2,977.22",G4S SECURE SOLUTIONS (UK) LTD,TRADE SUPPLIER,Building Maintenance,P22090904 Huntingdon Youth C&FC PE29 7AF,"New Construction, Conversion and Renovation"
Cambridgeshire County Council,02-May-23,51301978408,"3,008.40",ADAMS CABS,TRADE SUPPLIER,LAC Transport,LAC Transport - Home to School,Social Care Transport
Cambridgeshire County Council,02-May-23,51301978735,"3,016.00",Cambridge United Community Trust,CHARITY,Early Years Service - HAF,HAF Grant,Care & Ed Childcare Settings
Cambridgeshire County Council,02-May-23,51301978455,"3,069.30",NEW ROAD PRE SCHOOL,NURSERY,Early Years,SEND Specialist Services - SENIF,Care & Ed Partner Organisations
Cambridgeshire County Council,02-May-23,51301978718,"3,120.00",Football Fun Factory Littleport,LOCAL CLUBS & GROUPS,Early Years Service - HAF,HAF Grant,Care & Ed Childcare Settings
Cambridgeshire County Council,02-May-23,51301962866,"3,180.00",Matchtech Group (Holdings) Limited,COMPANY,Asst Director - Project Delivery,Project Delivery - holding account,Agency Staff
Cambridgeshire County Council,02-May-23,51301978400,"3,208.36",T & T PRIVATE HIRE LTD,TRADE SUPPLIER,LD - South Locality - Cost of Care,LD - South Cambs - Care,Social Care Transport
Cambridgeshire County Council,02-May-23,51301978359,"3,219.16",T & T PRIVATE HIRE LTD,TRADE SUPPLIER,LAC Transport,LAC Transport -  Short Breaks,Social Care Transport
Cambridgeshire County Council,02-May-23,51301978748,"3,237.00",JLR PLAY,NURSERY,Early Years Service - HAF,HAF Grant,Care & Ed Childcare Settings
Cambridgeshire County Council,02-May-23,51301962901,"3,300.00",Matchtech Group (Holdings) Limited,COMPANY,Asst Director - Project Delivery,Project Delivery - holding account,Agency Staff
Cambridgeshire County Council,02-May-23,51301978733,"3,328.00",Oak Acitivies Limited,COMPANY,Early Years Service - HAF,HAF Grant,Care & Ed Childcare Settings
Cambridgeshire County Council,02-May-23,51301962896,"3,360.00",Matchtech Group (Holdings) Limited,COMPANY,Asst Director - Project Delivery,Project Delivery - holding account,Agency Staff
Cambridgeshire County Council,02-May-23,51301962865,"3,360.00",Matchtech Group (Holdings) Limited,COMPANY,Asst Director - Project Delivery,Project Delivery - holding account,Agency Staff
Cambridgeshire County Council,02-May-23,51301962955,"3,420.00",Solace in Business,COMPANY,Monitoring Officer,Legal - Corporate & Democratic,Agency Staff
Cambridgeshire County Council,02-May-23,51301978771,"3,428.50","Fireflies Forest School, Hinchingbrooke Country Park",SOLETRADER,Early Years Service - HAF,HAF Grant,Care & Ed Childcare Settings
Cambridgeshire County Council,02-May-23,51301978417,"3,492.00",ADAMS CABS,TRADE SUPPLIER,LD - Young Adults Team,LD - Young Adults - Care,Social Care Transport
Cambridgeshire County Council,02-May-23,51301978348,"3,564.84",T & T PRIVATE HIRE LTD,TRADE SUPPLIER,LAC Transport,LAC Transport -  Short Breaks,Social Care Transport
Cambridgeshire County Council,02-May-23,51301978361,"3,612.23",T & T PRIVATE HIRE LTD,TRADE SUPPLIER,LD - City Locality - Staffing,LD - City - Staffing,Social Care Transport
Cambridgeshire County Council,02-May-23,51301978350,"3,632.63",T & T PRIVATE HIRE LTD,TRADE SUPPLIER,LAC Transport,LAC Transport - Home to School,Social Care Transport
Cambridgeshire County Council,02-May-23,51301978352,"3,783.74",T & T PRIVATE HIRE LTD,TRADE SUPPLIER,LD - City Locality - Cost of Care,LD - City - Care,Social Care Transport
Cambridgeshire County Council,02-May-23,51301978357,"3,802.94",T & T PRIVATE HIRE LTD,TRADE SUPPLIER,LD - Young Adults Team,LD - Young Adults - Care,Social Care Transport
Cambridgeshire County Council,02-May-23,51301974519,"3,873.60",Prospero Group,EDUCATION,Out of School Tuition,Out of School Provision EHCPs,Independent School Placements
Cambridgeshire County Council,02-May-23,51301978339,"3,912.00",Sensory Childcare,CARE ESTABLISHMENT,Children's Disability Direct Payments,CSC Direct Payments,Direct Payments
Cambridgeshire County Council,02-May-23,51301978355,"3,925.26",T & T PRIVATE HIRE LTD,TRADE SUPPLIER,LAC Transport,LAC Transport - Home to School,Social Care Transport
Cambridgeshire County Council,02-May-23,51301978397,"4,059.13",T & T PRIVATE HIRE LTD,TRADE SUPPLIER,LAC Transport,LAC Transport - Out of county,Social Care Transport
Cambridgeshire County Council,02-May-23,51301978362,"4,105.26",T & T PRIVATE HIRE LTD,TRADE SUPPLIER,LAC Transport,LAC Transport - Home to School,Social Care Transport
Cambridgeshire County Council,02-May-23,51301962732,"4,230.00",Sanctuary Personnel Ltd,COMPANY,Strategic Management - Children & Safeguarding,Director of Children & Safeguarding,Agency Staff
Cambridgeshire County Council,02-May-23,51301978382,"4,256.71",T & T PRIVATE HIRE LTD,TRADE SUPPLIER,LD - City Locality - Cost of Care,LD - City - Care,Social Care Transport
Cambridgeshire County Council,02-May-23,51301978367,"4,375.26",T & T PRIVATE HIRE LTD,TRADE SUPPLIER,LAC Transport,LAC Transport - Home to School,Social Care Transport
Cambridgeshire County Council,02-May-23,51301978752,"4,472.00",RAMSEY NEIGHBOURHOODS TRUST,LOCAL CLUBS & GROUPS,Early Years Service - HAF,HAF Grant,Care & Ed Childcare Settings
Cambridgeshire County Council,02-May-23,51301978749,"4,472.00",Norwich City FC Regional Development Programme,COMPANY,Early Years Service - HAF,HAF Grant,Care & Ed Childcare Settings
Cambridgeshire County Council,02-May-23,51301978769,"4,544.00",Next Thing Education Camps LTD,COMPANY,Early Years Service - HAF,HAF Grant,Care & Ed Childcare Settings
Cambridgeshire County Council,02-May-23,51301978756,"4,680.00",Football Fun Factory CRC,LOCAL CLUBS & GROUPS,Early Years Service - HAF,HAF Grant,Care & Ed Childcare Settings
Cambridgeshire County Council,02-May-23,51301962719,"4,686.00",SOCIETY OF COUNTY TREASURERS,OTHER PUBLIC BODIES,Subscriptions,Corporate Subscriptions,Subscriptions
Cambridgeshire County Council,02-May-23,51301978739,"4,784.00",Just Do Sport,LOCAL CLUBS & GROUPS,Early Years Service - HAF,HAF Grant,Care & Ed Childcare Settings
Cambridgeshire County Council,02-May-23,51301962708,"4,794.00",FRONTLINE DATA LIMITED,TRADE SUPPLIER,"Health, Safety & Wellbeing",HR HSW,Computer software - annual licence agreement
Cambridgeshire County Council,02-May-23,51301978404,"4,887.13",T & T PRIVATE HIRE LTD,TRADE SUPPLIER,LD - City Locality - Staffing,LD - City - Staffing,Social Care Transport
Cambridgeshire County Council,02-May-23,51301978390,"4,914.73",T & T PRIVATE HIRE LTD,TRADE SUPPLIER,LAC Transport,LAC Transport - Home to School,Social Care Transport
Cambridgeshire County Council,02-May-23,51301978377,"5,026.49",BEDFORD BOROUGH COUNCIL,OTHER PUBLIC BODIES,LAC Transport,LAC Transport - Home to School,Social Care Transport
Cambridgeshire County Council,02-May-23,51301978263,"5,504.40",PETERBOROUGH CITY COUNCIL,OTHER PUBLIC BODIES,LD - City Locality - Cost of Care,LD - City - Care,Rehabilitation And Respite Care
Cambridgeshire County Council,02-May-23,51301978422,"5,703.74",T & T PRIVATE HIRE LTD,TRADE SUPPLIER,LAC Transport,LAC Transport -  Short Breaks,Social Care Transport
Cambridgeshire County Council,02-May-23,51301976291,"5,870.40",WSP UK LTD T/A WSP INTEGRATED BUILDING SERVICES,TRADE SUPPLIER,GCP Greenway Development,GCP Greenway development,Construction - External Professional Fees
Cambridgeshire County Council,02-May-23,51301978349,"5,905.26",T & T PRIVATE HIRE LTD,TRADE SUPPLIER,LAC Transport,LAC Transport - Out of county,Social Care Transport
Cambridgeshire County Council,02-May-23,51301978391,"6,018.73",T & T PRIVATE HIRE LTD,TRADE SUPPLIER,LAC Transport,LAC Transport - Home to School,Social Care Transport
Cambridgeshire County Council,02-May-23,51301978758,"6,210.75",Football Fun Factory Cromwell Community College,LOCAL CLUBS & GROUPS,Early Years Service - HAF,HAF Grant,Care & Ed Childcare Settings
Cambridgeshire County Council,02-May-23,51301978402,"6,294.73",T & T PRIVATE HIRE LTD,TRADE SUPPLIER,LAC Transport,LAC Transport - Home to School,Social Care Transport
Cambridgeshire County Council,02-May-23,51301978384,"6,438.31",T & T PRIVATE HIRE LTD,TRADE SUPPLIER,LAC Transport,LAC Transport -  Short Breaks,Social Care Transport
Cambridgeshire County Council,02-May-23,51301962857,"6,456.00",BIDWELLS LLP,TRADE SUPPLIER,Estates,Estates,Professional Fees and Hired Services
Cambridgeshire County Council,02-May-23,51301978736,"6,648.00",Coaching Netball t/a Come and Play,EDUCATION,Early Years Service - HAF,HAF Grant,Care & Ed Childcare Settings
Cambridgeshire County Council,02-May-23,51301978398,"6,708.73",T & T PRIVATE HIRE LTD,TRADE SUPPLIER,LAC Transport,LAC Transport - Home to School,Social Care Transport
Cambridgeshire County Council,02-May-23,51301973093,"6,718.63",WSP UK LTD T/A WSP INTEGRATED BUILDING SERVICES,TRADE SUPPLIER,GCP - City Centre Access Project,GCP - City Centre Access Project,Construction - External Professional Fees
Cambridgeshire County Council,02-May-23,51301978755,"6,981.00",CAMBRIDGE KIDS CLUB LTD,NURSERY,Early Years Service - HAF,HAF Grant,Care & Ed Childcare Settings
Cambridgeshire County Council,02-May-23,51301969886,"7,064.71",CANON (UK) LTD,TRADE SUPPLIER,Corporate IT Managed,MFD Recharges,Computer hardware - purchase
Cambridgeshire County Council,02-May-23,51301978732,"7,488.00",Macca Sports Academies ltd,EDUCATION,Early Years Service - HAF,HAF Grant,Care & Ed Childcare Settings
Cambridgeshire County Council,02-May-23,51301965040,"8,922.00",1ST REACTION SECURITY LIMITED,TRADE SUPPLIER,Cambs Music Head of Business Development,Cambs Music Business Development,Security Equipment
Cambridgeshire County Council,02-May-23,51301962738,"9,000.00",PEOPLE & ANIMALS UK C.I.C,EDUCATION,SEND High Needs Top Up,High Needs Top Up - Mainstream,Independent School Placements
Cambridgeshire County Council,02-May-23,51301978387,"9,054.73",T & T PRIVATE HIRE LTD,TRADE SUPPLIER,LAC Transport,LAC Transport - Out of county,Social Care Transport
Cambridgeshire County Council,02-May-23,51301962946,"10,764.00",Tile Hill Interim & Executive Ltd,COMPANY,Strategic Management - Children & Safeguarding,Director of Children & Safeguarding,Agency Staff
Cambridgeshire County Council,02-May-23,51301962402,"10,800.00",IBISWorld Ltd.,COMPANY,B&IPC Centre,B&IP Centre (Ext Fund),Subscriptions
Cambridgeshire County Council,02-May-23,51301965025,"11,397.00",DARTT LIMITED,TRADE SUPPLIER,Guided Busway - Litigation costs,Guided Bus,External Legal Fees
Cambridgeshire County Council,02-May-23,51301978762,"11,440.00",Premier Education,COMPANY,Early Years Service - HAF,HAF Grant,Care & Ed Childcare Settings
Cambridgeshire County Council,02-May-23,51301962941,"11,760.00",MRC MODULAR LTD,SOLETRADER,Duxford -  Fire Damage Rebuild,Duxford -  Fire Damage Rebuild,Mobile - Buildings
Cambridgeshire County Council,02-May-23,51301962575,"11,785.20",Statista Ltd,COMPANY,B&IPC Centre,B&IP Centre (Ext Fund),Subscriptions
Cambridgeshire County Council,02-May-23,51301969870,"13,894.19",CANON (UK) LTD,TRADE SUPPLIER,Corporate IT Managed,MFD Recharges,Computer hardware - purchase
Cambridgeshire County Council,02-May-23,51301969866,"14,747.83",CANON (UK) LTD,TRADE SUPPLIER,Corporate IT Managed,MFD Recharges,Computer hardware - purchase
Cambridgeshire County Council,02-May-23,51301978763,"16,848.00",Premier Education Jeavons Wood,LOCAL CLUBS & GROUPS,Early Years Service - HAF,HAF Grant,Care & Ed Childcare Settings
Cambridgeshire County Council,02-May-23,51301964599,"17,290.80",Cubic Transportation Systems Limited,COMPANY,Safety Cameras,Safety Cameras,Private Highways Work
Cambridgeshire County Council,02-May-23,51301978742,"18,928.00",ML Sports & Activities,COMPANY,Early Years Service - HAF,HAF Grant,Care & Ed Childcare Settings
Cambridgeshire County Council,02-May-23,51301962931,"20,108.40",ATKINS LTD,COMPANY,TIPF - Strategy & Scheme Dev,TIPF - Strategy & Scheme Dev,Construction - External Professional Fees
Cambridgeshire County Council,02-May-23,51301977425,"21,442.81",PARK HOUSE SCHOOL,EDUCATION,SEN Placements,Independent Education Placements,Independent School Placements
Cambridgeshire County Council,02-May-23,51301977428,"21,442.81",PARK HOUSE SCHOOL,EDUCATION,SEN Placements,Independent Education Placements,Independent School Placements
Cambridgeshire County Council,02-May-23,51301977429,"21,442.81",PARK HOUSE SCHOOL,EDUCATION,SEN Placements,Independent Education Placements,Independent School Placements
Cambridgeshire County Council,02-May-23,51301977431,"21,442.81",PARK HOUSE SCHOOL,EDUCATION,SEN Placements,Independent Education Placements,Independent School Placements
Cambridgeshire County Council,02-May-23,51301977432,"21,442.81",PARK HOUSE SCHOOL,EDUCATION,SEN Placements,Independent Education Placements,Independent School Placements
Cambridgeshire County Council,02-May-23,51301977439,"21,442.81",PARK HOUSE SCHOOL,EDUCATION,SEN Placements,Independent Education Placements,Independent School Placements
Cambridgeshire County Council,02-May-23,51301965661,"22,629.60",Stantec UK Ltd,COMPANY,TIPF - Strategy & Scheme Dev,TIPF - Strategy & Scheme Dev,Construction - External Professional Fees
Cambridgeshire County Council,02-May-23,51301977430,"29,093.33",PARK HOUSE SCHOOL,EDUCATION,SEN Placements,Independent Education Placements,Independent School Placements
Cambridgeshire County Council,02-May-23,51301977426,"29,093.33",PARK HOUSE SCHOOL,EDUCATION,SEN Placements,Independent Education Placements,Independent School Placements
Cambridgeshire County Council,02-May-23,51301962958,"37,123.92",PHOENIX SOFTWARE LTD,TRADE SUPPLIER,Corporate IT Managed,Hardware & Infrastructure,Computer software - annual licence agreement
Cambridgeshire County Council,02-May-23,51301962948,"39,192.00",Tile Hill Interim & Executive Ltd,COMPANY,P&C Executive Director,Executive Director - People & Communities,Agency Staff
Cambridgeshire County Council,02-May-23,51301974248,"46,092.84",ATKINS LTD,COMPANY,GCP - City Centre Access Project,GCP - City Centre Access Project,Construction - External Professional Fees
Cambridgeshire County Council,02-May-23,51301978251,"62,093.26",G & S HUTCHINSON LTD,COMPANY,"School Condition, Maintenance & Suitability","School Condition, Maintenance & Suitability",Buildings - Roof
Cambridgeshire County Council,02-May-23,51301964589,"85,754.00",Impakt Housing and support,CARE ESTABLISHMENT,Domestic Violence & Sexual Violence,DLUHC Grant,Professional Fees and Hired Services
Cambridgeshire County Council,02-May-23,51301978423,"437,843.53",OPUS LGSS (PEOPLE SOLUTIONS) LTD,TRADE SUPPLIER,Corporate Services Default,Opus agency charges - central allocation,Agency Staff
Cambridgeshire County Council,02-May-23,51301977789,"798,540.00",GRETTON SCHOOL,EDUCATION,SEN Placements,Independent Education Placements,Independent School Placements
Cambridgeshire County Council,03-May-23,51301978808,"-22,554.01",PETERBOROUGH CITY COUNCIL,OTHER PUBLIC BODIES,LAC Placements,Placements - secure accommodation,Agency Placements - Out of  County
Cambridgeshire County Council,03-May-23,51301978806,"-3,800.00",PETERBOROUGH CITY COUNCIL,OTHER PUBLIC BODIES,LAC Placements,Placements - secure accommodation,Agency Placements - Out of  County
Cambridgeshire County Council,03-May-23,51301978809,"-3,681.99",PETERBOROUGH CITY COUNCIL,OTHER PUBLIC BODIES,LAC Placements,Placements - secure accommodation,Agency Placements - Out of  County
Cambridgeshire County Council,03-May-23,51301978801,"-3,141.75",THORNBURY NURSING SERVICES,CARE ESTABLISHMENT,LAC Placements,Placements - supported accommodation,Agency Placements - In County
Cambridgeshire County Council,03-May-23,51301954484,"-2,459.10",Olive AP Academy - Cambridge,EDUCATION,Cambridgeshire Alternative Education Service (SchFin),CAES - Salaries,Professional Fees and Hired Services
Cambridgeshire County Council,03-May-23,51301978890,"-1,254.46",Redacted Personal Data,SERVICE USER,LD - East Locality - Cost of Care,LD - East Cambs - Care,Direct Payments
Cambridgeshire County Council,03-May-23,51301978890,"-1,254.46",Redacted Personal Data,SERVICE USER,LD - East Locality - Cost of Care,LD - East Cambs - Care,Direct Payments
Cambridgeshire County Council,03-May-23,51301978890,"-1,254.46",Redacted Personal Data,SERVICE USER,LD - East Locality - Cost of Care,LD - East Cambs - Care,Direct Payments
Cambridgeshire County Council,03-May-23,51301978890,"-1,254.46",Redacted Personal Data,SERVICE USER,LD - East Locality - Cost of Care,LD - East Cambs - Care,Direct Payments
Cambridgeshire County Council,03-May-23,51301978890,"-1,254.46",Redacted Personal Data,SERVICE USER,LD - East Locality - Cost of Care,LD - East Cambs - Care,Direct Payments
Cambridgeshire County Council,03-May-23,51301978890,"-1,254.46",Redacted Personal Data,SERVICE USER,LD - East Locality - Cost of Care,LD - East Cambs - Care,Direct Payments
Cambridgeshire County Council,03-May-23,51301978890,"-1,254.46",Redacted Personal Data,SERVICE USER,LD - East Locality - Cost of Care,LD - East Cambs - Care,Direct Payments
Cambridgeshire County Council,03-May-23,51301978890,"-1,254.46",Redacted Personal Data,SERVICE USER,LD - East Locality - Cost of Care,LD - East Cambs - Care,Direct Payments
Cambridgeshire County Council,03-May-23,51301978887,-716.53,Redacted Personal Data,INDIVIDUAL,OPPD - Cost of Care - City South - Over 65,Older People - City & South - Care,Direct Payments
Cambridgeshire County Council,03-May-23,51301978887,-716.53,Redacted Personal Data,INDIVIDUAL,OPPD - Cost of Care - City South - Over 65,Older People - City & South - Care,Direct Payments
Cambridgeshire County Council,03-May-23,51301978887,-716.53,Redacted Personal Data,INDIVIDUAL,OPPD - Cost of Care - City South - Over 65,Older People - City & South - Care,Direct Payments
Cambridgeshire County Council,03-May-23,51301978887,-716.53,Redacted Personal Data,INDIVIDUAL,OPPD - Cost of Care - City South - Over 65,Older People - City & South - Care,Direct Payments
Cambridgeshire County Council,03-May-23,51301978887,-716.53,Redacted Personal Data,INDIVIDUAL,OPPD - Cost of Care - City South - Over 65,Older People - City & South - Care,Direct Payments
Cambridgeshire County Council,03-May-23,51301978887,-716.53,Redacted Personal Data,INDIVIDUAL,OPPD - Cost of Care - City South - Over 65,Older People - City & South - Care,Direct Payments
Cambridgeshire County Council,03-May-23,51301978887,-716.53,Redacted Personal Data,INDIVIDUAL,OPPD - Cost of Care - City South - Over 65,Older People - City & South - Care,Direct Payments
Cambridgeshire County Council,03-May-23,51301978896,-677.25,Redacted Personal Data,SERVICE USER,OPPD - Cost of Care - City South - Over 65,Older People - City & South - Care,Direct Payments
Cambridgeshire County Council,03-May-23,51301978896,-677.25,Redacted Personal Data,SERVICE USER,OPPD - Cost of Care - City South - Over 65,Older People - City & South - Care,Direct Payments
Cambridgeshire County Council,03-May-23,51301978896,-677.25,Redacted Personal Data,SERVICE USER,OPPD - Cost of Care - City South - Over 65,Older People - City & South - Care,Direct Payments
Cambridgeshire County Council,03-May-23,51301978896,-677.25,Redacted Personal Data,SERVICE USER,OPPD - Cost of Care - City South - Over 65,Older People - City & South - Care,Direct Payments
Cambridgeshire County Council,03-May-23,51301978896,-677.25,Redacted Personal Data,SERVICE USER,OPPD - Cost of Care - City South - Over 65,Older People - City & South - Care,Direct Payments
Cambridgeshire County Council,03-May-23,51301978896,-677.25,Redacted Personal Data,SERVICE USER,OPPD - Cost of Care - City South - Over 65,Older People - City & South - Care,Direct Payments
Cambridgeshire County Council,03-May-23,51301978896,-677.25,Redacted Personal Data,SERVICE USER,OPPD - Cost of Care - City South - Over 65,Older People - City & South - Care,Direct Payments
Cambridgeshire County Council,03-May-23,51301978896,-677.25,Redacted Personal Data,SERVICE USER,OPPD - Cost of Care - City South - Over 65,Older People - City & South - Care,Direct Payments
Cambridgeshire County Council,03-May-23,51301978896,-677.25,Redacted Personal Data,SERVICE USER,OPPD - Cost of Care - City South - Over 65,Older People - City & South - Care,Direct Payments
Cambridgeshire County Council,03-May-23,51301978896,-677.25,Redacted Personal Data,SERVICE USER,OPPD - Cost of Care - City South - Over 65,Older People - City & South - Care,Direct Payments
Cambridgeshire County Council,03-May-23,51301978896,-677.25,Redacted Personal Data,SERVICE USER,OPPD - Cost of Care - City South - Over 65,Older People - City & South - Care,Direct Payments
Cambridgeshire County Council,03-May-23,51301978896,-677.25,Redacted Personal Data,SERVICE USER,OPPD - Cost of Care - City South - Over 65,Older People - City & South - Care,Direct Payments
Cambridgeshire County Council,03-May-23,51301978896,-677.25,Redacted Personal Data,SERVICE USER,OPPD - Cost of Care - City South - Over 65,Older People - City & South - Care,Direct Payments
Cambridgeshire County Council,03-May-23,51301978896,-677.25,Redacted Personal Data,SERVICE USER,OPPD - Cost of Care - City South - Over 65,Older People - City & South - Care,Direct Payments
Cambridgeshire County Council,03-May-23,51301978896,-580.50,Redacted Personal Data,SERVICE USER,OPPD - Cost of Care - City South - Over 65,Older People - City & South - Care,Direct Payments
Cambridgeshire County Council,03-May-23,51301978887,-511.81,Redacted Personal Data,INDIVIDUAL,OPPD - Cost of Care - City South - Over 65,Older People - City & South - Care,Direct Payments
Cambridgeshire County Council,03-May-23,51301978831,515.00,CENTRAL AND NORTH WEST LONDON  NHS FOUNDATION TRUST (CNWL),TRUST (OTHER),SH STI - PH Sexual Health & Health Checks,SH STI - Hospital SH Services - Out of Area Trusts,Professional Fees and Hired Services
Cambridgeshire County Council,03-May-23,51301978887,535.71,Redacted Personal Data,INDIVIDUAL,OPPD - Cost of Care - City South - Over 65,Older People - City & South - Care,Direct Payments
Cambridgeshire County Council,03-May-23,65300039871,535.96,Redacted Personal Data,INDIVIDUAL,Control Accounts,Bank Account - Payables,Bank Account - Payables
Cambridgeshire County Council,03-May-23,51301961844,560.00,HELEN RIEMER T/A ONE WAY SOM,TRADE SUPPLIER,Road Safety,Driver Training,Professional Fees and Hired Services
Cambridgeshire County Council,03-May-23,51301927868,593.95,Opus Teach Limited,EDUCATION,Virtual School,Virtual School LACPP Financing,Staffing Recharges - External
Cambridgeshire County Council,03-May-23,51301978820,618.90,Redacted Personal Data,INDIVIDUAL,SIS Head of Service,SIS - Intervention,Professional Fees and Hired Services
Cambridgeshire County Council,03-May-23,51301978871,624.00,THE KITE TRUST,TRADE SUPPLIER,Early Years Service - HAF,HAF Grant,Care & Ed Childcare Settings
Cambridgeshire County Council,03-May-23,51301978826,684.79,IMPERIAL COLLEGE HEALTHCARE NHS TRUST,TRUST (OTHER),SH STI - PH Sexual Health & Health Checks,SH STI - Hospital SH Services - Out of Area Trusts,Professional Fees and Hired Services
Cambridgeshire County Council,03-May-23,51301978896,709.71,Redacted Personal Data,SERVICE USER,OPPD - Cost of Care - City South - Over 65,Older People - City & South - Care,Direct Payments
Cambridgeshire County Council,03-May-23,51301978878,728.00,Youth Dreams Project Ltd,EDUCATION,Early Years Service - HAF,HAF Grant,Care & Ed Childcare Settings
Cambridgeshire County Council,03-May-23,51301978887,750.00,Redacted Personal Data,INDIVIDUAL,OPPD - Cost of Care - City South - Over 65,Older People - City & South - Care,Direct Payments
Cambridgeshire County Council,03-May-23,51301978887,750.00,Redacted Personal Data,INDIVIDUAL,OPPD - Cost of Care - City South - Over 65,Older People - City & South - Care,Direct Payments
Cambridgeshire County Council,03-May-23,51301978887,750.00,Redacted Personal Data,INDIVIDUAL,OPPD - Cost of Care - City South - Over 65,Older People - City & South - Care,Direct Payments
Cambridgeshire County Council,03-May-23,51301978887,750.00,Redacted Personal Data,INDIVIDUAL,OPPD - Cost of Care - City South - Over 65,Older People - City & South - Care,Direct Payments
Cambridgeshire County Council,03-May-23,51301978887,750.00,Redacted Personal Data,INDIVIDUAL,OPPD - Cost of Care - City South - Over 65,Older People - City & South - Care,Direct Payments
Cambridgeshire County Council,03-May-23,51301978887,750.00,Redacted Personal Data,INDIVIDUAL,OPPD - Cost of Care - City South - Over 65,Older People - City & South - Care,Direct Payments
Cambridgeshire County Council,03-May-23,51301978887,750.00,Redacted Personal Data,INDIVIDUAL,OPPD - Cost of Care - City South - Over 65,Older People - City & South - Care,Direct Payments
Cambridgeshire County Council,03-May-23,51301978846,750.05,Redacted Personal Data,INDIVIDUAL,Children's Disability Direct Payments,CSC Direct Payments,Direct Payments
Cambridgeshire County Council,03-May-23,51301964621,756.00,Prospero Group,EDUCATION,Virtual School,Virtual School LACPP Financing,Mandatory Student Awards
Cambridgeshire County Council,03-May-23,51301978845,758.00,CENTRAL AND NORTH WEST LONDON  NHS FOUNDATION TRUST (CNWL),TRUST (OTHER),SH STI - PH Sexual Health & Health Checks,SH STI - Hospital SH Services - Out of Area Trusts,Professional Fees and Hired Services
Cambridgeshire County Council,03-May-23,51301978872,780.00,THE NEW CROFT CLUB,LOCAL CLUBS & GROUPS,Early Years Service - HAF,HAF Grant,Care & Ed Childcare Settings
Cambridgeshire County Council,03-May-23,51301964620,792.00,Prospero Group,EDUCATION,Virtual School,Virtual School LACPP Financing,Mandatory Student Awards
Cambridgeshire County Council,03-May-23,51301946444,796.32,Pathfinder Legal Services Limited,TRADE SUPPLIER,Corporate IT Managed,Networks,Consultancy
Cambridgeshire County Council,03-May-23,51301978896,828.00,Redacted Personal Data,SERVICE USER,OPPD - Cost of Care - City South - Over 65,Older People - City & South - Care,Direct Payments
Cambridgeshire County Council,03-May-23,51301978896,828.00,Redacted Personal Data,SERVICE USER,OPPD - Cost of Care - City South - Over 65,Older People - City & South - Care,Direct Payments
Cambridgeshire County Council,03-May-23,51301978896,828.00,Redacted Personal Data,SERVICE USER,OPPD - Cost of Care - City South - Over 65,Older People - City & South - Care,Direct Payments
Cambridgeshire County Council,03-May-23,51301978896,828.00,Redacted Personal Data,SERVICE USER,OPPD - Cost of Care - City South - Over 65,Older People - City & South - Care,Direct Payments
Cambridgeshire County Council,03-May-23,51301978896,828.00,Redacted Personal Data,SERVICE USER,OPPD - Cost of Care - City South - Over 65,Older People - City & South - Care,Direct Payments
Cambridgeshire County Council,03-May-23,51301978896,828.00,Redacted Personal Data,SERVICE USER,OPPD - Cost of Care - City South - Over 65,Older People - City & South - Care,Direct Payments
Cambridgeshire County Council,03-May-23,51301978896,828.00,Redacted Personal Data,SERVICE USER,OPPD - Cost of Care - City South - Over 65,Older People - City & South - Care,Direct Payments
Cambridgeshire County Council,03-May-23,51301978896,828.00,Redacted Personal Data,SERVICE USER,OPPD - Cost of Care - City South - Over 65,Older People - City & South - Care,Direct Payments
Cambridgeshire County Council,03-May-23,51301978896,828.00,Redacted Personal Data,SERVICE USER,OPPD - Cost of Care - City South - Over 65,Older People - City & South - Care,Direct Payments
Cambridgeshire County Council,03-May-23,51301978896,828.00,Redacted Personal Data,SERVICE USER,OPPD - Cost of Care - City South - Over 65,Older People - City & South - Care,Direct Payments
Cambridgeshire County Council,03-May-23,51301978896,828.00,Redacted Personal Data,SERVICE USER,OPPD - Cost of Care - City South - Over 65,Older People - City & South - Care,Direct Payments
Cambridgeshire County Council,03-May-23,51301978896,828.00,Redacted Personal Data,SERVICE USER,OPPD - Cost of Care - City South - Over 65,Older People - City & South - Care,Direct Payments
Cambridgeshire County Council,03-May-23,51301978896,828.00,Redacted Personal Data,SERVICE USER,OPPD - Cost of Care - City South - Over 65,Older People - City & South - Care,Direct Payments
Cambridgeshire County Council,03-May-23,51301978896,828.00,Redacted Personal Data,SERVICE USER,OPPD - Cost of Care - City South - Over 65,Older People - City & South - Care,Direct Payments
Cambridgeshire County Council,03-May-23,51301978855,828.00,SOHAM PLAYGROUP@ST ANDREWS,NURSERY,Nursery Schools,Early Years - Funded 3s/4s,Care & Ed Childcare Settings
Cambridgeshire County Council,03-May-23,51301978856,828.00,STRETTON PRE SCHOOL AT FOURFIELDS,NURSERY,Nursery Schools,Early Years - Funded 3s/4s,Care & Ed Childcare Settings
Cambridgeshire County Council,03-May-23,51301978854,828.00,PRIORY PARK PLAYGROUP,NURSERY,Nursery Schools,Early Years - Funded 3s/4s,Care & Ed Childcare Settings
Cambridgeshire County Council,03-May-23,51301978881,832.00,Redacted Personal Data,INDIVIDUAL,Early Years Service - HAF,HAF Grant,Care & Ed Childcare Settings
Cambridgeshire County Council,03-May-23,51301978877,962.00,Young Technicians Academy,COMPANY,Early Years Service - HAF,HAF Grant,Care & Ed Childcare Settings
Cambridgeshire County Council,03-May-23,51301946296,975.00,Olive AP Academy - Cambridge,EDUCATION,Youth Offending Service - High Risk,YOT - High Risk and Deter,Offenders Support
Cambridgeshire County Council,03-May-23,51301978886,983.36,Redacted Personal Data,SERVICE USER,LD - East Locality - Cost of Care,LD - East Cambs - Special Needs,Direct Payments
Cambridgeshire County Council,03-May-23,51301978879,"1,040.00",Youth Dreams Project Cambridge,EDUCATION,Early Years Service - HAF,HAF Grant,Care & Ed Childcare Settings
Cambridgeshire County Council,03-May-23,51301978815,"1,047.90",Redacted Personal Data,INDIVIDUAL,SIS Head of Service,SIS - Intervention,Professional Fees and Hired Services
Cambridgeshire County Council,03-May-23,51301978849,"1,061.00",Redacted Personal Data,INDIVIDUAL,Children's Disability Direct Payments,CSC Direct Payments,Direct Payments
Cambridgeshire County Council,03-May-23,51301978937,"1,267.20",CAE Technology Servcies,COMPANY,ICT Service,ICT Service Sales,Materials for resale
Cambridgeshire County Council,03-May-23,51301978890,"1,288.26",Redacted Personal Data,SERVICE USER,LD - East Locality - Cost of Care,LD - East Cambs - Care,Direct Payments
Cambridgeshire County Council,03-May-23,51301978890,"1,288.26",Redacted Personal Data,SERVICE USER,LD - East Locality - Cost of Care,LD - East Cambs - Care,Direct Payments
Cambridgeshire County Council,03-May-23,51301978890,"1,288.26",Redacted Personal Data,SERVICE USER,LD - East Locality - Cost of Care,LD - East Cambs - Care,Direct Payments
Cambridgeshire County Council,03-May-23,51301978890,"1,288.26",Redacted Personal Data,SERVICE USER,LD - East Locality - Cost of Care,LD - East Cambs - Care,Direct Payments
Cambridgeshire County Council,03-May-23,51301978890,"1,288.26",Redacted Personal Data,SERVICE USER,LD - East Locality - Cost of Care,LD - East Cambs - Care,Direct Payments
Cambridgeshire County Council,03-May-23,51301978890,"1,288.26",Redacted Personal Data,SERVICE USER,LD - East Locality - Cost of Care,LD - East Cambs - Care,Direct Payments
Cambridgeshire County Council,03-May-23,51301978890,"1,288.26",Redacted Personal Data,SERVICE USER,LD - East Locality - Cost of Care,LD - East Cambs - Care,Direct Payments
Cambridgeshire County Council,03-May-23,51301978890,"1,288.26",Redacted Personal Data,SERVICE USER,LD - East Locality - Cost of Care,LD - East Cambs - Care,Direct Payments
Cambridgeshire County Council,03-May-23,51301978974,"1,315.00",HUNTINGDONSHIRE DISTRICT COUNCIL,OTHER PUBLIC BODIES,Professional Finance,CCC Finance,Staff Training & Development
Cambridgeshire County Council,03-May-23,51301978891,"1,437.34",Redacted Personal Data,SERVICE USER,LD - Fenland Locality - Cost of Care,LD - Fenland  - Care,Direct Payments
Cambridgeshire County Council,03-May-23,51301978873,"1,560.00",TJ Kids CIC,COMPANY,Early Years Service - HAF,HAF Grant,Care & Ed Childcare Settings
Cambridgeshire County Council,03-May-23,51301978869,"1,872.00",DX BREAKFAST CLUB,NURSERY,Early Years Service - HAF,HAF Grant,Care & Ed Childcare Settings
Cambridgeshire County Council,03-May-23,51301969824,"2,070.60",Pathfinder Legal Services Limited,TRADE SUPPLIER,NHS - PH Health Checks,NHS Health Checks - Prescribed Cardio Vascular Health Check,External Legal Fees
Cambridgeshire County Council,03-May-23,51301978875,"2,184.00",WAY Project,CHARITY,Early Years Service - HAF,HAF Grant,Care & Ed Childcare Settings
Cambridgeshire County Council,03-May-23,51301978956,"2,476.08",Redacted Personal Data,INDIVIDUAL,Children's Disability Direct Payments,CSC Direct Payments,Direct Payments
Cambridgeshire County Council,03-May-23,51301978924,"2,582.10",Redacted Personal Data,INDIVIDUAL,Children's Disability Direct Payments,CSC Direct Payments,Direct Payments
Cambridgeshire County Council,03-May-23,51301978876,"2,704.00",Yaxley Out of School Club,COMPANY,Early Years Service - HAF,HAF Grant,Care & Ed Childcare Settings
Cambridgeshire County Council,03-May-23,51301978135,"2,770.20",R G CARTER CAMBRIDGE LTD,COMPANY,Corporate Offices,Civic Headquarters � Alconbury Weald,Computer hardware - purchase
Cambridgeshire County Council,03-May-23,51301978907,"2,938.25",GOREFIELD PRE-SCHOOL,NURSERY,SEND High Needs Top Up,High Needs Top Up - Early Years,Independent School Placements
Cambridgeshire County Council,03-May-23,51301978976,"3,125.00",MOVING UP CARE,CARE ESTABLISHMENT,Unaccompanied Asylum Seeking Children,Separated Migrant Children < 18,Asylum Seekers
Cambridgeshire County Council,03-May-23,51301978860,"3,520.67",Nationwide Fostering,COMPANY,Unaccompanied Asylum Seeking Children,Separated Migrant Children < 18,Agency Placements - Out of  County
Cambridgeshire County Council,03-May-23,51301969932,"3,544.80",Pathfinder Legal Services Limited,TRADE SUPPLIER,Guided Busway - Litigation costs,Guided Bus,External Legal Fees
Cambridgeshire County Council,03-May-23,51301969950,"3,985.20",Top Notch Tutors,EDUCATION,Virtual School,Virtual School LACPP Financing,Mandatory Student Awards
Cambridgeshire County Council,03-May-23,51301962371,"4,351.97",ATKINS LTD,COMPANY,Road Safety,Road Safety Team Overheads,Consultancy
Cambridgeshire County Council,03-May-23,51301978880,"4,368.00",Youth of Fenland,LOCAL CLUBS & GROUPS,Early Years Service - HAF,HAF Grant,Care & Ed Childcare Settings
Cambridgeshire County Council,03-May-23,51301962369,"5,077.30",ATKINS LTD,COMPANY,Road Safety,Road Safety Team Overheads,Consultancy
Cambridgeshire County Council,03-May-23,51301978803,"6,600.00",Channels & Choices Therapeutic Fostering Ltd,CARE ESTABLISHMENT,LAC Placements,Placements - independent fostering,Agency Placements - Out of  County
Cambridgeshire County Council,03-May-23,51301978908,"6,988.80",GOREFIELD PRE-SCHOOL,NURSERY,SEND High Needs Top Up,High Needs Top Up - Early Years,Independent School Placements
Cambridgeshire County Council,03-May-23,51301978851,"10,405.74",SOUTHERN ELECTRIC PLC,TRADE SUPPLIER,Traffic Management Centre,Traffic Management Centre,Electricity
Cambridgeshire County Council,03-May-23,51301978900,"11,000.00",Olive AP Academy - Cambridge,EDUCATION,Cambridgeshire Alternative Education Service (SchFin),CAES - Salaries,Professional Fees and Hired Services
Cambridgeshire County Council,03-May-23,51301973391,"11,481.42",Infinigate Cloud UK Ltd,COMPANY,ICT Service,ICT Service Technical Support,Computer software - purchase
Cambridgeshire County Council,03-May-23,51301978863,"11,671.66",IVEL VALLEY SCHOOL,EDUCATION,Recoupment,Other LA Special Schools & ER,Independent School Placements
Cambridgeshire County Council,03-May-23,51301978906,"12,478.11",Beaumont HEALTHCARE LTD,CARE ESTABLISHMENT,Children's Disability Direct Payments,CSC Direct Payments,Direct Payments
Cambridgeshire County Council,03-May-23,51301978858,"20,163.36",EAST SUFFOLK MIND,CARE ESTABLISHMENT,Mental Health Commissioning,Mental Health Commissioning,Grants to Voluntary Bodies
Cambridgeshire County Council,03-May-23,51301978804,"24,128.57",Childhood First,CARE ESTABLISHMENT,LAC Placements,Placements - residential homes,Agency Placements - Out of  County
Cambridgeshire County Council,03-May-23,51301978805,"24,700.00",PETERBOROUGH CITY COUNCIL,OTHER PUBLIC BODIES,LAC Placements,Placements - secure accommodation,Agency Placements - Out of  County
Cambridgeshire County Council,03-May-23,51301978798,"24,717.25",Irwin Mitchell Solicitors LLP,PARTNERSHIP,Insurance Fund,Liability,Insurance Claims Paid
Cambridgeshire County Council,03-May-23,51301978800,"27,831.21",Focus Care Agency,CARE ESTABLISHMENT,LAC Placements,Placements - supported accommodation,Agency Placements - In County
Cambridgeshire County Council,03-May-23,51301978802,"29,842.26",THORNBURY NURSING SERVICES,CARE ESTABLISHMENT,LAC Placements,Placements - supported accommodation,Agency Placements - In County
Cambridgeshire County Council,03-May-23,51301962727,"31,520.69",ATKINS LTD,COMPANY,GCP Waterbeach Greenway,GCP Waterbeach Greenway,Construction - External Professional Fees
Cambridgeshire County Council,03-May-23,51301978807,"46,500.00",PETERBOROUGH CITY COUNCIL,OTHER PUBLIC BODIES,LAC Placements,Placements - secure accommodation,Agency Placements - Out of  County
Cambridgeshire County Council,03-May-23,51301976280,"77,623.33",Acorn Care & Education Ltd,EDUCATION,SEN Placements,Independent Education Placements,Independent School Placements
Cambridgeshire County Council,03-May-23,51301978810,"80,538.00",PETERBOROUGH CITY COUNCIL,OTHER PUBLIC BODIES,LAC Placements,Placements - secure accommodation,Agency Placements - Out of  County
Cambridgeshire County Council,03-May-23,51301962255,"132,701.84",MLL Telecom Limited,TRADE SUPPLIER,Corporate IT Managed,Networks,Computer hardware - purchase
Cambridgeshire County Council,03-May-23,51301978818,"141,391.07",Thalia WB  ODC Limited,TRADE SUPPLIER,Waste Disposal incl PFI,Waste PFI,Rents and Leases
Cambridgeshire County Council,03-May-23,51301978821,"199,999.00",Family Fund Business Services,CHARITY,The Hub - Covid-19 Response,Household Support Fund Grant,Grants
Cambridgeshire County Council,03-May-23,51301978962,"234,500.00",NHS Cambridgeshire & Peterborough ICB,OTHER PUBLIC BODIES,PH Stop Smoking Services,Stop Smoking Services - Prescribing Costs (F10),Professional Fees and Hired Services
Cambridgeshire County Council,04-May-23,65300039877,"-10,662.24",CLEAPSS,TRADE SUPPLIER,"Health, Safety & Wellbeing",Cleaps,Subscriptions
Cambridgeshire County Council,04-May-23,65300039876,"-1,147.61",WCL UK LTD,TRADE SUPPLIER,ICT Service,ICT Service Sales,Materials for resale
Cambridgeshire County Council,04-May-23,51301977855,529.00,HARSTON SURGERY,CARE ESTABLISHMENT,NHS - PH Health Checks,NHS Health Checks - Prescribed Cardio Vascular Health Check,Professional Fees and Hired Services
Cambridgeshire County Council,04-May-23,51301977759,744.00,Department for Work and Pensions,OTHER PUBLIC BODIES,Insurance Fund,Liability,Insurance Claims Paid
Cambridgeshire County Council,04-May-23,51301981150,"1,147.61",WCL UK LTD,TRADE SUPPLIER,ICT Service,ICT Service Sales,Materials for resale
Cambridgeshire County Council,04-May-23,51301969658,"2,305.20",ROLAND FLETCHER,SOLETRADER,Highways - Rights of Way,Highways - Rights of Way,Highways - Bridges
Cambridgeshire County Council,04-May-23,51301981349,"10,662.24",CLEAPSS,TRADE SUPPLIER,"Health, Safety & Wellbeing",Cleaps,Subscriptions
Cambridgeshire County Council,05-May-23,51301979372,"-8,078.97",FITZWILLIAM HEALTHCARE LTD,CARE ESTABLISHMENT,OPPD - Cost of Care - City South Blocks,City and South - Long term blocks,Residential Care
Cambridgeshire County Council,05-May-23,51301979361,"-3,436.20",Maven Healthcare,CARE ESTABLISHMENT,OPPD - Cost of Care - City South Blocks,City and South - Long term blocks,Nursing Care
Cambridgeshire County Council,05-May-23,51301979361,"-3,436.20",Maven Healthcare,CARE ESTABLISHMENT,OPPD - Cost of Care - City South Blocks,City and South - Long term blocks,Nursing Care
Cambridgeshire County Council,05-May-23,51301979343,"-3,300.17",RHEOLA HEALTHCARE,CARE ESTABLISHMENT,OPPD - Cost of Care - Huntingdon Blocks,Hunts - Long term blocks,Residential Care
Cambridgeshire County Council,05-May-23,51301979391,"-2,661.43",SPRINGFIELD RESIDENTIAL CARE,CARE ESTABLISHMENT,OPPD - Cost of Care - Fenland Blocks,Fenland - Short term blocks,Rehabilitation And Respite Care
Cambridgeshire County Council,05-May-23,51301979361,"-2,454.43",Maven Healthcare,CARE ESTABLISHMENT,OPPD - Cost of Care - City South Blocks,City and South - Long term blocks,Nursing Care
Cambridgeshire County Council,05-May-23,51301979399,"-1,283.40",AISLING LODGE (MD CARE HOMES),CARE ESTABLISHMENT,OPPD - Cost of Care - Huntingdon Blocks,Hunts - Long term blocks,Residential Care
Cambridgeshire County Council,05-May-23,51301979399,"-1,283.40",AISLING LODGE (MD CARE HOMES),CARE ESTABLISHMENT,OPPD - Cost of Care - Huntingdon Blocks,Hunts - Long term blocks,Residential Care
Cambridgeshire County Council,05-May-23,51301979399,-916.71,AISLING LODGE (MD CARE HOMES),CARE ESTABLISHMENT,OPPD - Cost of Care - Huntingdon Blocks,Hunts - Long term blocks,Residential Care
Cambridgeshire County Council,05-May-23,51301979017,-828.00,Targeted Provision Ltd,EDUCATION,Out of School Tuition,Out of School Provision EHCPs,Independent School Placements
Cambridgeshire County Council,05-May-23,51301979574,501.71,Redacted Personal Data,INDIVIDUAL,Children's Disability Direct Payments,CSC Direct Payments,Direct Payments
Cambridgeshire County Council,05-May-23,51301979818,502.00,SOUTH CAMBRIDGESHIRE DISTRICT COUNCIL,OTHER PUBLIC BODIES,Corporate Offices,12 London Road CB22 7QH,Council Tax
Cambridgeshire County Council,05-May-23,51301979561,511.00,CAMBRIDGE CITY COUNCIL,OTHER PUBLIC BODIES,Corporate Offices,Cherry Hinton Library,Business rates
Cambridgeshire County Council,05-May-23,51301979091,511.44,PEOPLESCOUT LIMITED,TRADE SUPPLIER,Permitting,TTRO Orders,Advertising / Publicity (non Recruitment)
Cambridgeshire County Council,05-May-23,51301979817,526.00,SOUTH CAMBRIDGESHIRE DISTRICT COUNCIL,OTHER PUBLIC BODIES,BM - Corporate Offices,FM Caretaker Housing,Council Tax
Cambridgeshire County Council,05-May-23,51301972873,540.00,A C OUTBOARDS,TRADE SUPPLIER,Grafham Water,Grafham Water Centre,Vehicle and Plant hire
Cambridgeshire County Council,05-May-23,51301979571,541.00,CAMBRIDGE CITY COUNCIL,OTHER PUBLIC BODIES,Corporate Offices,Preschools,Business rates
Cambridgeshire County Council,05-May-23,51301976772,542.60,Sabanu Care Ltd,COMPANY,Disability Clubs,CamPlay Holiday Clubs,Agency Staff
Cambridgeshire County Council,05-May-23,51301976778,542.60,Sabanu Care Ltd,COMPANY,Disability Clubs,CamPlay Holiday Clubs,Agency Staff
Cambridgeshire County Council,05-May-23,51301979170,546.00,Targeted Provision Ltd,EDUCATION,Out of School Tuition,Out of School Provision EHCPs,Independent School Placements
Cambridgeshire County Council,05-May-23,51301979176,546.00,Targeted Provision Ltd,EDUCATION,Out of School Tuition,Out of School Provision EHCPs,Independent School Placements
Cambridgeshire County Council,05-May-23,51301979806,549.00,SOUTH CAMBRIDGESHIRE DISTRICT COUNCIL,OTHER PUBLIC BODIES,Corporate Offices,Cottenham Library,Business rates
Cambridgeshire County Council,05-May-23,51301978292,564.57,HOPWELLS LTD,TRADE SUPPLIER,Grafham Water,Grafham Water Centre,Catering Provisions
Cambridgeshire County Council,05-May-23,51301979046,565.71,Elite care,CARE ESTABLISHMENT,Unaccompanied Asylum Seeking Children,Separated Migrant Children > 18,Living Spport Grants - Financial Assistance 18+
Cambridgeshire County Council,05-May-23,51301979049,565.71,Elite care,CARE ESTABLISHMENT,Unaccompanied Asylum Seeking Children,Separated Migrant Children > 18,Living Spport Grants - Financial Assistance 18+
Cambridgeshire County Council,05-May-23,51301979819,574.00,SOUTH CAMBRIDGESHIRE DISTRICT COUNCIL,OTHER PUBLIC BODIES,County Farms,County Farms,Business rates
Cambridgeshire County Council,05-May-23,51301979671,589.00,FENLAND DISTRICT COUNCIL,OTHER PUBLIC BODIES,Waste Disposal incl PFI,Whittlesey HWRC,Business rates
Cambridgeshire County Council,05-May-23,51301979646,589.00,EAST CAMBRIDGESHIRE DISTRICT COUNCIL,OTHER PUBLIC BODIES,Capital Receipts Expenses,Capital Receipts Expenses,Business rates
Cambridgeshire County Council,05-May-23,51301979752,599.00,HUNTINGDONSHIRE DISTRICT COUNCIL,OTHER PUBLIC BODIES,Corporate Offices,Eaton Socon Children's Centre,Business rates
Cambridgeshire County Council,05-May-23,51301979058,600.00,PCH Integration Services Ltd.,CARE ESTABLISHMENT,Unaccompanied Asylum Seeking Children,Separated Migrant Children < 18,Asylum Seekers
Cambridgeshire County Council,05-May-23,51301969860,600.21,AVAILL HEALTHCARE,CARE ESTABLISHMENT,IHPS - South Accommodation Services,8b Wagstaff Close,Agency Staff
Cambridgeshire County Council,05-May-23,51301979678,603.00,FENLAND DISTRICT COUNCIL,OTHER PUBLIC BODIES,Corporate Offices,March Community Centre (C&I),Business rates
Cambridgeshire County Council,05-May-23,51301979399,641.70,AISLING LODGE (MD CARE HOMES),CARE ESTABLISHMENT,OPPD - Cost of Care - Huntingdon Blocks,Hunts - Long term blocks,Residential Care
Cambridgeshire County Council,05-May-23,51301979399,641.70,AISLING LODGE (MD CARE HOMES),CARE ESTABLISHMENT,OPPD - Cost of Care - Huntingdon Blocks,Hunts - Long term blocks,Residential Care
Cambridgeshire County Council,05-May-23,51301979556,642.00,CAMBRIDGE CITY COUNCIL,OTHER PUBLIC BODIES,Corporate Offices,42 Castle St,Business rates
Cambridgeshire County Council,05-May-23,51301979390,649.13,FLORENCE HOUSE(RAMSEY) RESIDENTIAL HOME FOR THE ELDERLY,CARE ESTABLISHMENT,OPPD - Cost of Care - Huntingdon Blocks,Hunts - Short term blocks,Rehabilitation And Respite Care
Cambridgeshire County Council,05-May-23,51301979390,649.13,FLORENCE HOUSE(RAMSEY) RESIDENTIAL HOME FOR THE ELDERLY,CARE ESTABLISHMENT,OPPD - Cost of Care - Huntingdon Blocks,Hunts - Short term blocks,Rehabilitation And Respite Care
Cambridgeshire County Council,05-May-23,51301979390,649.13,FLORENCE HOUSE(RAMSEY) RESIDENTIAL HOME FOR THE ELDERLY,CARE ESTABLISHMENT,OPPD - Cost of Care - Huntingdon Blocks,Hunts - Short term blocks,Rehabilitation And Respite Care
Cambridgeshire County Council,05-May-23,51301979390,649.13,FLORENCE HOUSE(RAMSEY) RESIDENTIAL HOME FOR THE ELDERLY,CARE ESTABLISHMENT,OPPD - Cost of Care - Huntingdon Blocks,Hunts - Short term blocks,Rehabilitation And Respite Care
Cambridgeshire County Council,05-May-23,51301979816,652.00,SOUTH CAMBRIDGESHIRE DISTRICT COUNCIL,OTHER PUBLIC BODIES,County Farms,County Farms,Business rates
Cambridgeshire County Council,05-May-23,51301979391,654.13,SPRINGFIELD RESIDENTIAL CARE,CARE ESTABLISHMENT,OPPD - Cost of Care - Fenland Blocks,Fenland - Short term blocks,Rehabilitation And Respite Care
Cambridgeshire County Council,05-May-23,51301979391,654.13,SPRINGFIELD RESIDENTIAL CARE,CARE ESTABLISHMENT,OPPD - Cost of Care - Fenland Blocks,Fenland - Short term blocks,Rehabilitation And Respite Care
Cambridgeshire County Council,05-May-23,51301979391,654.13,SPRINGFIELD RESIDENTIAL CARE,CARE ESTABLISHMENT,OPPD - Cost of Care - Fenland Blocks,Fenland - Short term blocks,Rehabilitation And Respite Care
Cambridgeshire County Council,05-May-23,51301979391,654.13,SPRINGFIELD RESIDENTIAL CARE,CARE ESTABLISHMENT,OPPD - Cost of Care - Fenland Blocks,Fenland - Short term blocks,Rehabilitation And Respite Care
Cambridgeshire County Council,05-May-23,51301979795,655.00,SOUTH CAMBRIDGESHIRE DISTRICT COUNCIL,OTHER PUBLIC BODIES,Corporate Offices,Willingham Library,Business rates
Cambridgeshire County Council,05-May-23,51301979256,660.00,TMLEP,OTHER PUBLIC BODIES,Coroners,Coroners General,Court Costs
Cambridgeshire County Council,05-May-23,51301979258,660.00,TMLEP,OTHER PUBLIC BODIES,Coroners,Coroners General,Court Costs
Cambridgeshire County Council,05-May-23,51301979551,663.00,ROMSEY MILL TRUST LTD,TRUST (OTHER),Early Years Service - HAF,HAF Grant,Care & Ed Childcare Settings
Cambridgeshire County Council,05-May-23,51301979359,667.13,HARDWICK DENE,CARE ESTABLISHMENT,OPPD - Cost of Care - Huntingdon Blocks,Hunts - Short term blocks,Rehabilitation And Respite Care
Cambridgeshire County Council,05-May-23,51301979359,667.13,HARDWICK DENE,CARE ESTABLISHMENT,OPPD - Cost of Care - Huntingdon Blocks,Hunts - Short term blocks,Rehabilitation And Respite Care
Cambridgeshire County Council,05-May-23,51301979359,667.13,HARDWICK DENE,CARE ESTABLISHMENT,OPPD - Cost of Care - Huntingdon Blocks,Hunts - Short term blocks,Rehabilitation And Respite Care
Cambridgeshire County Council,05-May-23,51301979359,667.13,HARDWICK DENE,CARE ESTABLISHMENT,OPPD - Cost of Care - Huntingdon Blocks,Hunts - Short term blocks,Rehabilitation And Respite Care
Cambridgeshire County Council,05-May-23,51301979579,675.73,Redacted Personal Data,INDIVIDUAL,Home to School Transport - Special,Home to School Transport Special - Special School,Home to School - Public Transport
Cambridgeshire County Council,05-May-23,51301979361,685.17,Maven Healthcare,CARE ESTABLISHMENT,OPPD - Cost of Care - City South Blocks,City and South - Long term blocks,Nursing Care
Cambridgeshire County Council,05-May-23,51301979361,685.17,Maven Healthcare,CARE ESTABLISHMENT,OPPD - Cost of Care - City South Blocks,City and South - Long term blocks,Nursing Care
Cambridgeshire County Council,05-May-23,51301979361,685.17,Maven Healthcare,CARE ESTABLISHMENT,OPPD - Cost of Care - City South Blocks,City and South - Long term blocks,Nursing Care
Cambridgeshire County Council,05-May-23,51301979361,685.17,Maven Healthcare,CARE ESTABLISHMENT,OPPD - Cost of Care - City South Blocks,City and South - Long term blocks,Nursing Care
Cambridgeshire County Council,05-May-23,51301979359,695.25,HARDWICK DENE,CARE ESTABLISHMENT,OPPD - Cost of Care - Huntingdon Blocks,Hunts - Short term blocks,Rehabilitation And Respite Care
Cambridgeshire County Council,05-May-23,51301979359,695.25,HARDWICK DENE,CARE ESTABLISHMENT,OPPD - Cost of Care - Huntingdon Blocks,Hunts - Short term blocks,Rehabilitation And Respite Care
Cambridgeshire County Council,05-May-23,51301979359,695.25,HARDWICK DENE,CARE ESTABLISHMENT,OPPD - Cost of Care - Huntingdon Blocks,Hunts - Short term blocks,Rehabilitation And Respite Care
Cambridgeshire County Council,05-May-23,51301979359,695.25,HARDWICK DENE,CARE ESTABLISHMENT,OPPD - Cost of Care - Huntingdon Blocks,Hunts - Short term blocks,Rehabilitation And Respite Care
Cambridgeshire County Council,05-May-23,51301979814,699.00,SOUTH CAMBRIDGESHIRE DISTRICT COUNCIL,OTHER PUBLIC BODIES,Corporate Offices,Papworth Library,Business rates
Cambridgeshire County Council,05-May-23,51301979348,702.46,POTTON VIEW,CARE ESTABLISHMENT,OPPD - Cost of Care - City South Blocks,City and South - Short term blocks,Rehabilitation And Respite Care
Cambridgeshire County Council,05-May-23,51301979348,702.46,POTTON VIEW,CARE ESTABLISHMENT,OPPD - Cost of Care - City South Blocks,City and South - Short term blocks,Rehabilitation And Respite Care
Cambridgeshire County Council,05-May-23,51301979348,702.46,POTTON VIEW,CARE ESTABLISHMENT,OPPD - Cost of Care - City South Blocks,City and South - Short term blocks,Rehabilitation And Respite Care
Cambridgeshire County Council,05-May-23,51301979348,702.46,POTTON VIEW,CARE ESTABLISHMENT,OPPD - Cost of Care - City South Blocks,City and South - Short term blocks,Rehabilitation And Respite Care
Cambridgeshire County Council,05-May-23,51301979051,726.43,Elite care,CARE ESTABLISHMENT,Unaccompanied Asylum Seeking Children,Separated Migrant Children > 18,Living Spport Grants - Financial Assistance 18+
Cambridgeshire County Council,05-May-23,51301979559,736.00,CAMBRIDGE CITY COUNCIL,OTHER PUBLIC BODIES,Corporate Offices,Arbury Court Library,Business rates
Cambridgeshire County Council,05-May-23,51301979964,738.00,LOCATE ACCOMMODATION,CARE ESTABLISHMENT,Unaccompanied Asylum Seeking Children,Separated Migrant Children > 18,Living Spport Grants - Financial Assistance 18+
Cambridgeshire County Council,05-May-23,51301979965,738.00,LOCATE ACCOMMODATION,CARE ESTABLISHMENT,Unaccompanied Asylum Seeking Children,Separated Migrant Children > 18,Living Spport Grants - Financial Assistance 18+
Cambridgeshire County Council,05-May-23,51301979966,738.00,LOCATE ACCOMMODATION,CARE ESTABLISHMENT,Unaccompanied Asylum Seeking Children,Separated Migrant Children > 18,Living Spport Grants - Financial Assistance 18+
Cambridgeshire County Council,05-May-23,51301979967,738.00,LOCATE ACCOMMODATION,CARE ESTABLISHMENT,Unaccompanied Asylum Seeking Children,Separated Migrant Children > 18,Living Spport Grants - Financial Assistance 18+
Cambridgeshire County Council,05-May-23,51301979667,747.00,FENLAND DISTRICT COUNCIL,OTHER PUBLIC BODIES,Waste Disposal incl PFI,March HWRC,Business rates
Cambridgeshire County Council,05-May-23,51301979714,749.00,HUNTINGDONSHIRE DISTRICT COUNCIL,OTHER PUBLIC BODIES,Corporate Offices,Stanton House,Business rates
Cambridgeshire County Council,05-May-23,51301979719,773.00,HUNTINGDONSHIRE DISTRICT COUNCIL,OTHER PUBLIC BODIES,Capital Receipts Expenses,Capital Receipts Expenses,Business rates
Cambridgeshire County Council,05-May-23,51301979173,780.00,Targeted Provision Ltd,EDUCATION,Out of School Tuition,Out of School Provision EHCPs,Independent School Placements
Cambridgeshire County Council,05-May-23,51301979175,780.00,Targeted Provision Ltd,EDUCATION,Out of School Tuition,Out of School Provision EHCPs,Independent School Placements
Cambridgeshire County Council,05-May-23,51301979450,780.00,Redacted Personal Data,PARENT/GUARDIAN,Children's Disability Direct Payments,CSC Direct Payments,Direct Payments
Cambridgeshire County Council,05-May-23,51301979570,782.00,CAMBRIDGE CITY COUNCIL,OTHER PUBLIC BODIES,Corporate Offices,33 Haviland Way CB4 2RE,Business rates
Cambridgeshire County Council,05-May-23,51301979557,786.00,CAMBRIDGE CITY COUNCIL,OTHER PUBLIC BODIES,Corporate Offices,Rock Road Library,Business rates
Cambridgeshire County Council,05-May-23,51301979800,798.00,SOUTH CAMBRIDGESHIRE DISTRICT COUNCIL,OTHER PUBLIC BODIES,Park & Ride Parking,Waterbeach Park & Ride,Business rates
Cambridgeshire County Council,05-May-23,51301979638,798.00,EAST CAMBRIDGESHIRE DISTRICT COUNCIL,OTHER PUBLIC BODIES,Corporate Offices,Bottisham Locality and Children's Centre,Business rates
Cambridgeshire County Council,05-May-23,51301979668,799.00,FENLAND DISTRICT COUNCIL,OTHER PUBLIC BODIES,Waste Disposal incl PFI,Wisbech HWRC,Business rates
Cambridgeshire County Council,05-May-23,51301980005,822.97,Redacted Personal Data,INDIVIDUAL,LD - Fenland Locality - Cost of Care,LD - Fenland  - Care,Day Care
Cambridgeshire County Council,05-May-23,51301979779,827.93,Redacted Personal Data,INDIVIDUAL,Insurance Fund,Liability,Insurance Claims Paid
Cambridgeshire County Council,05-May-23,51301979780,827.93,Redacted Personal Data,INDIVIDUAL,Insurance Fund,Liability,Insurance Claims Paid
Cambridgeshire County Council,05-May-23,51301979771,851.00,HUNTINGDONSHIRE DISTRICT COUNCIL,OTHER PUBLIC BODIES,Corporate Offices,Eastfield House,Business rates
Cambridgeshire County Council,05-May-23,51301979410,856.00,Redacted Personal Data,INDIVIDUAL,Children's Disability Direct Payments,CSC Direct Payments,Direct Payments
Cambridgeshire County Council,05-May-23,51301979772,861.00,HUNTINGDONSHIRE DISTRICT COUNCIL,OTHER PUBLIC BODIES,Corporate Offices,"Unit 7 Oak Court, St Ives",Business rates
Cambridgeshire County Council,05-May-23,51301979645,865.00,EAST CAMBRIDGESHIRE DISTRICT COUNCIL,OTHER PUBLIC BODIES,Corporate Offices,Soham Library,Business rates
Cambridgeshire County Council,05-May-23,51301979694,875.00,Mrs Jolene Chisholm,EDUCATION,"General Prevention, Traveller Health",Travellers Project,Professional Fees and Hired Services
Cambridgeshire County Council,05-May-23,51301979099,900.00,Mercedes Johnson,SOLETRADER,SEND Specialist Services - Education Psychology,SEND Specialist Services - Education Psychology,Professional Fees and Hired Services
Cambridgeshire County Council,05-May-23,51301979618,918.00,EAST CAMBRIDGESHIRE DISTRICT COUNCIL,OTHER PUBLIC BODIES,Burwell House,Burwell House Residential Centre,Business rates
Cambridgeshire County Council,05-May-23,51301979796,923.00,SOUTH CAMBRIDGESHIRE DISTRICT COUNCIL,OTHER PUBLIC BODIES,Corporate Offices,Bar Hill Library,Business rates
Cambridgeshire County Council,05-May-23,51301979832,924.00,Targeted Provision Ltd,EDUCATION,Out of School Tuition,SEND - Support for PEX without EHCP,Professional Fees and Hired Services
Cambridgeshire County Council,05-May-23,51301979963,951.43,LOCATE ACCOMMODATION,CARE ESTABLISHMENT,Unaccompanied Asylum Seeking Children,Separated Migrant Children > 18,Living Spport Grants - Financial Assistance 18+
Cambridgeshire County Council,05-May-23,51301978232,952.62,HOLDSWORTH,TRADE SUPPLIER,Grafham Water,Grafham Water Centre,Catering Provisions
Cambridgeshire County Council,05-May-23,51301979712,990.00,HUNTINGDONSHIRE DISTRICT COUNCIL,OTHER PUBLIC BODIES,Waste Disposal incl PFI,Alconbury HWRC,Business rates
Cambridgeshire County Council,05-May-23,51301979600,993.39,Redacted Personal Data,PARENT/GUARDIAN,Home to School Transport - Special,Home to School Transport Special - Special School,Home to School - Contract
Cambridgeshire County Council,05-May-23,51301979972,"1,008.00",Apollo Business Finance Ltd Re. Premier Medical Staffing Limited,COMPANY,Unaccompanied Asylum Seeking Children,Separated Migrant Children > 18,Living Spport Grants - Financial Assistance 18+
Cambridgeshire County Council,05-May-23,51301979826,"1,014.30",MICROSOFT IRELAND OPERATIONS LTD,TRADE SUPPLIER,ICT Service,ICT Service Business Support,Computer software - purchase
Cambridgeshire County Council,05-May-23,51301979607,"1,023.00",EAST CAMBRIDGESHIRE DISTRICT COUNCIL,OTHER PUBLIC BODIES,Corporate Offices,Burwell Library,Business rates
Cambridgeshire County Council,05-May-23,51301979452,"1,040.00",Redacted Personal Data,PARENT/GUARDIAN,Children's Disability Direct Payments,CSC Direct Payments,Direct Payments
Cambridgeshire County Council,05-May-23,51301979231,"1,060.00",TWO CAN TALK,EDUCATION,Early Years Specialist Support,SEND - Independent Therapy,Independent School Placements
Cambridgeshire County Council,05-May-23,51301979569,"1,062.00",CAMBRIDGE CITY COUNCIL,OTHER PUBLIC BODIES,Corporate Offices,Milton Road Library,Business rates
Cambridgeshire County Council,05-May-23,51301979371,"1,070.71",FORD HOUSE CARE HOME,CARE ESTABLISHMENT,OPPD - Cost of Care - Huntingdon - Over 65,Hunts OP Team - Care,Nursing Care
Cambridgeshire County Council,05-May-23,51301979371,"1,070.71",FORD HOUSE CARE HOME,CARE ESTABLISHMENT,OPPD - Cost of Care - Huntingdon - Over 65,Hunts OP Team - Care,Nursing Care
Cambridgeshire County Council,05-May-23,51301979371,"1,070.71",FORD HOUSE CARE HOME,CARE ESTABLISHMENT,OPPD - Cost of Care - Huntingdon - Over 65,Hunts OP Team - Care,Nursing Care
Cambridgeshire County Council,05-May-23,51301979371,"1,070.71",FORD HOUSE CARE HOME,CARE ESTABLISHMENT,OPPD - Cost of Care - Huntingdon - Over 65,Hunts OP Team - Care,Nursing Care
Cambridgeshire County Council,05-May-23,51301974425,"1,080.00",Pathfinder Legal Services Limited,TRADE SUPPLIER,"County Planning, Minerals & Waste","County Planning, Minerals & Waste",External Legal Fees
Cambridgeshire County Council,05-May-23,51301979701,"1,085.00",HUNTINGDONSHIRE DISTRICT COUNCIL,OTHER PUBLIC BODIES,BM - Corporate Offices,Building Maintenance,Business rates
Cambridgeshire County Council,05-May-23,51301979399,"1,100.06",AISLING LODGE (MD CARE HOMES),CARE ESTABLISHMENT,OPPD - Cost of Care - Huntingdon Blocks,Hunts - Long term blocks,Residential Care
Cambridgeshire County Council,05-May-23,51301979568,"1,123.00",CAMBRIDGE CITY COUNCIL,OTHER PUBLIC BODIES,Park & Ride Parking,Guided Busway,Business rates
Cambridgeshire County Council,05-May-23,51301979802,"1,141.00",SOUTH CAMBRIDGESHIRE DISTRICT COUNCIL,OTHER PUBLIC BODIES,Capital Receipts Expenses,Capital Receipts Expenses,Business rates
Cambridgeshire County Council,05-May-23,51301979808,"1,160.00",SOUTH CAMBRIDGESHIRE DISTRICT COUNCIL,OTHER PUBLIC BODIES,Corporate Offices,Great Shelford Library,Business rates
Cambridgeshire County Council,05-May-23,51301979670,"1,173.00",FENLAND DISTRICT COUNCIL,OTHER PUBLIC BODIES,Corporate Offices,Chatteris Library,Business rates
Cambridgeshire County Council,05-May-23,51301978829,"1,188.64",Redacted Personal Data,INDIVIDUAL,LA Finance Operations,Income team,Fees and Charges Income
Cambridgeshire County Council,05-May-23,51301979783,"1,191.00",SOUTH CAMBRIDGESHIRE DISTRICT COUNCIL,OTHER PUBLIC BODIES,Waste Disposal incl PFI,Thriplow HWRC,Business rates
Cambridgeshire County Council,05-May-23,51301979919,"1,194.00",Cambridge Care Company,CARE ESTABLISHMENT,Unaccompanied Asylum Seeking Children,Separated Migrant Children < 18,Asylum Seekers
Cambridgeshire County Council,05-May-23,51301979339,"1,200.00",METHODIST HOMES FOR THE AGED (MHA),CARE ESTABLISHMENT,OPPD - Cost of Care - City South - Over 65,Older People - City & South - Care,Residential Care
Cambridgeshire County Council,05-May-23,51301979794,"1,210.00",SOUTH CAMBRIDGESHIRE DISTRICT COUNCIL,OTHER PUBLIC BODIES,Corporate Offices,Whittlesford Highways Depot,Business rates
Cambridgeshire County Council,05-May-23,51301979345,"1,242.00",LANGLEY LODGE RESIDENTIAL CARE HOME,CARE ESTABLISHMENT,OPPD - Cost of Care - Fenland Blocks,Fenland - Long term blocks,Residential Care
Cambridgeshire County Council,05-May-23,51301979345,"1,242.00",LANGLEY LODGE RESIDENTIAL CARE HOME,CARE ESTABLISHMENT,OPPD - Cost of Care - Fenland Blocks,Fenland - Long term blocks,Residential Care
Cambridgeshire County Council,05-May-23,51301979345,"1,242.00",LANGLEY LODGE RESIDENTIAL CARE HOME,CARE ESTABLISHMENT,OPPD - Cost of Care - Fenland Blocks,Fenland - Long term blocks,Residential Care
Cambridgeshire County Council,05-May-23,51301979345,"1,242.00",LANGLEY LODGE RESIDENTIAL CARE HOME,CARE ESTABLISHMENT,OPPD - Cost of Care - Fenland Blocks,Fenland - Long term blocks,Residential Care
Cambridgeshire County Council,05-May-23,51301979364,"1,242.00",MM2 Care Homes Ltd t/a The Chestnuts MM2 (Wisbech),COMPANY,OPPD - Cost of Care - Fenland Blocks,Fenland - Long term blocks,Residential Care
Cambridgeshire County Council,05-May-23,51301979364,"1,242.00",MM2 Care Homes Ltd t/a The Chestnuts MM2 (Wisbech),COMPANY,OPPD - Cost of Care - Fenland Blocks,Fenland - Long term blocks,Residential Care
Cambridgeshire County Council,05-May-23,51301979364,"1,242.00",MM2 Care Homes Ltd t/a The Chestnuts MM2 (Wisbech),COMPANY,OPPD - Cost of Care - Fenland Blocks,Fenland - Long term blocks,Residential Care
Cambridgeshire County Council,05-May-23,51301979364,"1,242.00",MM2 Care Homes Ltd t/a The Chestnuts MM2 (Wisbech),COMPANY,OPPD - Cost of Care - Fenland Blocks,Fenland - Long term blocks,Residential Care
Cambridgeshire County Council,05-May-23,51301979793,"1,261.00",SOUTH CAMBRIDGESHIRE DISTRICT COUNCIL,OTHER PUBLIC BODIES,Corporate Offices,"Comberton Road, Toft",Business rates
Cambridgeshire County Council,05-May-23,51301979390,"1,283.40",FLORENCE HOUSE(RAMSEY) RESIDENTIAL HOME FOR THE ELDERLY,CARE ESTABLISHMENT,OPPD - Cost of Care - Huntingdon Blocks,Hunts - Short term blocks,Rehabilitation And Respite Care
Cambridgeshire County Council,05-May-23,51301979390,"1,283.40",FLORENCE HOUSE(RAMSEY) RESIDENTIAL HOME FOR THE ELDERLY,CARE ESTABLISHMENT,OPPD - Cost of Care - Huntingdon Blocks,Hunts - Short term blocks,Rehabilitation And Respite Care
Cambridgeshire County Council,05-May-23,51301979390,"1,283.40",FLORENCE HOUSE(RAMSEY) RESIDENTIAL HOME FOR THE ELDERLY,CARE ESTABLISHMENT,OPPD - Cost of Care - Huntingdon Blocks,Hunts - Short term blocks,Rehabilitation And Respite Care
Cambridgeshire County Council,05-May-23,51301979390,"1,283.40",FLORENCE HOUSE(RAMSEY) RESIDENTIAL HOME FOR THE ELDERLY,CARE ESTABLISHMENT,OPPD - Cost of Care - Huntingdon Blocks,Hunts - Short term blocks,Rehabilitation And Respite Care
Cambridgeshire County Council,05-May-23,51301979399,"1,283.40",AISLING LODGE (MD CARE HOMES),CARE ESTABLISHMENT,OPPD - Cost of Care - Huntingdon Blocks,Hunts - Long term blocks,Residential Care
Cambridgeshire County Council,05-May-23,51301979399,"1,283.40",AISLING LODGE (MD CARE HOMES),CARE ESTABLISHMENT,OPPD - Cost of Care - Huntingdon Blocks,Hunts - Long term blocks,Residential Care
Cambridgeshire County Council,05-May-23,51301979399,"1,283.40",AISLING LODGE (MD CARE HOMES),CARE ESTABLISHMENT,OPPD - Cost of Care - Huntingdon Blocks,Hunts - Long term blocks,Residential Care
Cambridgeshire County Council,05-May-23,51301979368,"1,291.45",WESTMINSTER HOMECARE LIMITED,CARE ESTABLISHMENT,Commissioning - Dom Cars,Hunts - Dom Blocks,Domiciliary Care
Cambridgeshire County Council,05-May-23,51301979368,"1,291.45",WESTMINSTER HOMECARE LIMITED,CARE ESTABLISHMENT,Commissioning - Dom Cars,Hunts - Dom Blocks,Domiciliary Care
Cambridgeshire County Council,05-May-23,51301979368,"1,291.45",WESTMINSTER HOMECARE LIMITED,CARE ESTABLISHMENT,Commissioning - Dom Cars,Hunts - Dom Blocks,Domiciliary Care
Cambridgeshire County Council,05-May-23,51301979368,"1,291.45",WESTMINSTER HOMECARE LIMITED,CARE ESTABLISHMENT,Commissioning - Dom Cars,Hunts - Dom Blocks,Domiciliary Care
Cambridgeshire County Council,05-May-23,51301979096,"1,320.00",Redacted Personal Data,PARENT/GUARDIAN,Fostering,FCP allowances,Enhanced Payments
Cambridgeshire County Council,05-May-23,51301979398,"1,324.80",THE HILLINGS LIMITED,CARE ESTABLISHMENT,OPPD - Cost of Care - Huntingdon Blocks,Hunts - Long term blocks,Residential Care
Cambridgeshire County Council,05-May-23,51301979398,"1,324.80",THE HILLINGS LIMITED,CARE ESTABLISHMENT,OPPD - Cost of Care - Huntingdon Blocks,Hunts - Long term blocks,Residential Care
Cambridgeshire County Council,05-May-23,51301979398,"1,324.80",THE HILLINGS LIMITED,CARE ESTABLISHMENT,OPPD - Cost of Care - Huntingdon Blocks,Hunts - Long term blocks,Residential Care
Cambridgeshire County Council,05-May-23,51301979398,"1,324.80",THE HILLINGS LIMITED,CARE ESTABLISHMENT,OPPD - Cost of Care - Huntingdon Blocks,Hunts - Long term blocks,Residential Care
Cambridgeshire County Council,05-May-23,51301979393,"1,324.80",NELSON LODGE,CARE ESTABLISHMENT,OPPD - Cost of Care - Huntingdon Blocks,Hunts - Long term blocks,Residential Care
Cambridgeshire County Council,05-May-23,51301979393,"1,324.80",NELSON LODGE,CARE ESTABLISHMENT,OPPD - Cost of Care - Huntingdon Blocks,Hunts - Long term blocks,Residential Care
Cambridgeshire County Council,05-May-23,51301979393,"1,324.80",NELSON LODGE,CARE ESTABLISHMENT,OPPD - Cost of Care - Huntingdon Blocks,Hunts - Long term blocks,Residential Care
Cambridgeshire County Council,05-May-23,51301979393,"1,324.80",NELSON LODGE,CARE ESTABLISHMENT,OPPD - Cost of Care - Huntingdon Blocks,Hunts - Long term blocks,Residential Care
Cambridgeshire County Council,05-May-23,51301979799,"1,363.00",SOUTH CAMBRIDGESHIRE DISTRICT COUNCIL,OTHER PUBLIC BODIES,Waste Disposal incl PFI,Milton HWRC,Business rates
Cambridgeshire County Council,05-May-23,51301979348,"1,370.34",POTTON VIEW,CARE ESTABLISHMENT,OPPD - Cost of Care - City South Blocks,City and South - Short term blocks,Rehabilitation And Respite Care
Cambridgeshire County Council,05-May-23,51301979348,"1,370.34",POTTON VIEW,CARE ESTABLISHMENT,OPPD - Cost of Care - City South Blocks,City and South - Short term blocks,Rehabilitation And Respite Care
Cambridgeshire County Council,05-May-23,51301979348,"1,370.34",POTTON VIEW,CARE ESTABLISHMENT,OPPD - Cost of Care - City South Blocks,City and South - Short term blocks,Rehabilitation And Respite Care
Cambridgeshire County Council,05-May-23,51301979348,"1,370.34",POTTON VIEW,CARE ESTABLISHMENT,OPPD - Cost of Care - City South Blocks,City and South - Short term blocks,Rehabilitation And Respite Care
Cambridgeshire County Council,05-May-23,51301979349,"1,370.34",Southwell Court,CARE ESTABLISHMENT,OPPD - Cost of Care - City South Blocks,City and South - Short term blocks,Rehabilitation And Respite Care
Cambridgeshire County Council,05-May-23,51301979349,"1,370.34",Southwell Court,CARE ESTABLISHMENT,OPPD - Cost of Care - City South Blocks,City and South - Short term blocks,Rehabilitation And Respite Care
Cambridgeshire County Council,05-May-23,51301979349,"1,370.34",Southwell Court,CARE ESTABLISHMENT,OPPD - Cost of Care - City South Blocks,City and South - Short term blocks,Rehabilitation And Respite Care
Cambridgeshire County Council,05-May-23,51301979349,"1,370.34",Southwell Court,CARE ESTABLISHMENT,OPPD - Cost of Care - City South Blocks,City and South - Short term blocks,Rehabilitation And Respite Care
Cambridgeshire County Council,05-May-23,51301979385,"1,370.34",ORCHARD HOUSE (SAWSTON),CARE ESTABLISHMENT,OPPD - Cost of Care - City South Blocks,City and South - Long term blocks,Residential Care
Cambridgeshire County Council,05-May-23,51301979385,"1,370.34",ORCHARD HOUSE (SAWSTON),CARE ESTABLISHMENT,OPPD - Cost of Care - City South Blocks,City and South - Long term blocks,Residential Care
Cambridgeshire County Council,05-May-23,51301979385,"1,370.34",ORCHARD HOUSE (SAWSTON),CARE ESTABLISHMENT,OPPD - Cost of Care - City South Blocks,City and South - Long term blocks,Residential Care
Cambridgeshire County Council,05-May-23,51301979385,"1,370.34",ORCHARD HOUSE (SAWSTON),CARE ESTABLISHMENT,OPPD - Cost of Care - City South Blocks,City and South - Long term blocks,Residential Care
Cambridgeshire County Council,05-May-23,51301979356,"1,370.34",THE CAMBRIDGE HOUSING SOCIETY LTD,CARE ESTABLISHMENT,OPPD - Cost of Care - City South Blocks,City and South - Long term blocks,Residential Care
Cambridgeshire County Council,05-May-23,51301979356,"1,370.34",THE CAMBRIDGE HOUSING SOCIETY LTD,CARE ESTABLISHMENT,OPPD - Cost of Care - City South Blocks,City and South - Long term blocks,Residential Care
Cambridgeshire County Council,05-May-23,51301979356,"1,370.34",THE CAMBRIDGE HOUSING SOCIETY LTD,CARE ESTABLISHMENT,OPPD - Cost of Care - City South Blocks,City and South - Long term blocks,Residential Care
Cambridgeshire County Council,05-May-23,51301979356,"1,370.34",THE CAMBRIDGE HOUSING SOCIETY LTD,CARE ESTABLISHMENT,OPPD - Cost of Care - City South Blocks,City and South - Long term blocks,Residential Care
Cambridgeshire County Council,05-May-23,51301979382,"1,370.34",THE CAMBRIDGE HOUSING SOCIETY LTD,CARE ESTABLISHMENT,OPPD - Cost of Care - City South Blocks,City and South - Long term blocks,Residential Care
Cambridgeshire County Council,05-May-23,51301979382,"1,370.34",THE CAMBRIDGE HOUSING SOCIETY LTD,CARE ESTABLISHMENT,OPPD - Cost of Care - City South Blocks,City and South - Long term blocks,Residential Care
Cambridgeshire County Council,05-May-23,51301979382,"1,370.34",THE CAMBRIDGE HOUSING SOCIETY LTD,CARE ESTABLISHMENT,OPPD - Cost of Care - City South Blocks,City and South - Long term blocks,Residential Care
Cambridgeshire County Council,05-May-23,51301979382,"1,370.34",THE CAMBRIDGE HOUSING SOCIETY LTD,CARE ESTABLISHMENT,OPPD - Cost of Care - City South Blocks,City and South - Long term blocks,Residential Care
Cambridgeshire County Council,05-May-23,51301979082,"1,393.92",AV Xpert Limited,COMPANY,Strategic Management - Adults,Service Director - Adults and Safeguarding,Staff Training & Development
Cambridgeshire County Council,05-May-23,51301979349,"1,404.92",Southwell Court,CARE ESTABLISHMENT,OPPD - Cost of Care - City South Blocks,City and South - Short term blocks,Rehabilitation And Respite Care
Cambridgeshire County Council,05-May-23,51301979349,"1,404.92",Southwell Court,CARE ESTABLISHMENT,OPPD - Cost of Care - City South Blocks,City and South - Short term blocks,Rehabilitation And Respite Care
Cambridgeshire County Council,05-May-23,51301979349,"1,404.92",Southwell Court,CARE ESTABLISHMENT,OPPD - Cost of Care - City South Blocks,City and South - Short term blocks,Rehabilitation And Respite Care
Cambridgeshire County Council,05-May-23,51301979349,"1,404.92",Southwell Court,CARE ESTABLISHMENT,OPPD - Cost of Care - City South Blocks,City and South - Short term blocks,Rehabilitation And Respite Care
Cambridgeshire County Council,05-May-23,51301979355,"1,413.82",ETHELDRED HOUSE,CARE ESTABLISHMENT,OPPD - Cost of Care - City South Blocks,City and South - Long term blocks,Nursing Care
Cambridgeshire County Council,05-May-23,51301979361,"1,413.82",Maven Healthcare,CARE ESTABLISHMENT,OPPD - Cost of Care - City South Blocks,City and South - Long term blocks,Nursing Care
Cambridgeshire County Council,05-May-23,51301979361,"1,413.82",Maven Healthcare,CARE ESTABLISHMENT,OPPD - Cost of Care - City South Blocks,City and South - Long term blocks,Nursing Care
Cambridgeshire County Council,05-May-23,51301979361,"1,413.82",Maven Healthcare,CARE ESTABLISHMENT,OPPD - Cost of Care - City South Blocks,City and South - Long term blocks,Nursing Care
Cambridgeshire County Council,05-May-23,51301979361,"1,413.82",Maven Healthcare,CARE ESTABLISHMENT,OPPD - Cost of Care - City South Blocks,City and South - Long term blocks,Nursing Care
Cambridgeshire County Council,05-May-23,51301979355,"1,413.82",ETHELDRED HOUSE,CARE ESTABLISHMENT,OPPD - Cost of Care - City South Blocks,City and South - Long term blocks,Nursing Care
Cambridgeshire County Council,05-May-23,51301979355,"1,413.82",ETHELDRED HOUSE,CARE ESTABLISHMENT,OPPD - Cost of Care - City South Blocks,City and South - Long term blocks,Nursing Care
Cambridgeshire County Council,05-May-23,51301979355,"1,413.82",ETHELDRED HOUSE,CARE ESTABLISHMENT,OPPD - Cost of Care - City South Blocks,City and South - Long term blocks,Nursing Care
Cambridgeshire County Council,05-May-23,51301969873,"1,423.50",Pathfinder Legal Services Limited,TRADE SUPPLIER,GCP - Cambridge South East (A1307),GCP - Cambridge South East (A1307),Construction - External Professional Fees
Cambridgeshire County Council,05-May-23,51301979893,"1,435.59",YMCA Trinity Group,COMPANY,LAC Placements,Placements - 16+,Agency Placements - In County
Cambridgeshire County Council,05-May-23,51301979936,"1,435.71",PSA Care LTD,COMPANY,Unaccompanied Asylum Seeking Children,Separated Migrant Children > 18,Living Spport Grants - Financial Assistance 18+
Cambridgeshire County Council,05-May-23,51301979937,"1,435.71",PSA Care LTD,COMPANY,Unaccompanied Asylum Seeking Children,Separated Migrant Children > 18,Living Spport Grants - Financial Assistance 18+
Cambridgeshire County Council,05-May-23,51301979270,"1,493.57",Redacted Personal Data,INDIVIDUAL,Fostering,FCP allowances,Support and Grants to Foster Carers
Cambridgeshire County Council,05-May-23,51301979371,"1,498.68",FORD HOUSE CARE HOME,CARE ESTABLISHMENT,OPPD - Cost of Care - Huntingdon - Over 65,Hunts OP Team - Care,Nursing Care
Cambridgeshire County Council,05-May-23,51301979371,"1,498.68",FORD HOUSE CARE HOME,CARE ESTABLISHMENT,OPPD - Cost of Care - Huntingdon - Over 65,Hunts OP Team - Care,Nursing Care
Cambridgeshire County Council,05-May-23,51301979371,"1,498.68",FORD HOUSE CARE HOME,CARE ESTABLISHMENT,OPPD - Cost of Care - Huntingdon - Over 65,Hunts OP Team - Care,Nursing Care
Cambridgeshire County Council,05-May-23,51301979371,"1,498.68",FORD HOUSE CARE HOME,CARE ESTABLISHMENT,OPPD - Cost of Care - Huntingdon - Over 65,Hunts OP Team - Care,Nursing Care
Cambridgeshire County Council,05-May-23,51301979273,"1,550.88",Redacted Personal Data,PARENT/GUARDIAN,Home to School Transport - Mainstream,Home to School Transport Mainstream - Secondary,Home to School - Contract
Cambridgeshire County Council,05-May-23,51301976372,"1,554.00",TMLEP,OTHER PUBLIC BODIES,Coroners,Coroners General,Court Costs
Cambridgeshire County Council,05-May-23,51301976373,"1,554.00",TMLEP,OTHER PUBLIC BODIES,Coroners,Coroners General,Court Costs
Cambridgeshire County Council,05-May-23,51301979255,"1,554.00",TMLEP,OTHER PUBLIC BODIES,Coroners,Coroners General,Court Costs
Cambridgeshire County Council,05-May-23,51301969894,"1,572.85",AVAILL HEALTHCARE,CARE ESTABLISHMENT,IHPS - South Accommodation Services,IHPS Jasmine House,Agency Staff
Cambridgeshire County Council,05-May-23,51301979666,"1,622.00",FENLAND DISTRICT COUNCIL,OTHER PUBLIC BODIES,Corporate Offices,Whittlesey Library,Business rates
Cambridgeshire County Council,05-May-23,51301979054,"1,626.43",Elite care,CARE ESTABLISHMENT,Unaccompanied Asylum Seeking Children,Separated Migrant Children < 18,Asylum Seekers
Cambridgeshire County Council,05-May-23,51301979057,"1,626.43",Elite care,CARE ESTABLISHMENT,Unaccompanied Asylum Seeking Children,Separated Migrant Children < 18,Asylum Seekers
Cambridgeshire County Council,05-May-23,51301979383,"1,648.03",BROOKFIELD CARE (Radis Commnity Care),CARE ESTABLISHMENT,Commissioning - Dom Cars,Hancock-Funded Dom-Cars,Domiciliary Care
Cambridgeshire County Council,05-May-23,51301979383,"1,648.03",BROOKFIELD CARE (Radis Commnity Care),CARE ESTABLISHMENT,Commissioning - Dom Cars,Hancock-Funded Dom-Cars,Domiciliary Care
Cambridgeshire County Council,05-May-23,51301979383,"1,648.03",BROOKFIELD CARE (Radis Commnity Care),CARE ESTABLISHMENT,Commissioning - Dom Cars,Hancock-Funded Dom-Cars,Domiciliary Care
Cambridgeshire County Council,05-May-23,51301979383,"1,648.03",BROOKFIELD CARE (Radis Commnity Care),CARE ESTABLISHMENT,Commissioning - Dom Cars,Hancock-Funded Dom-Cars,Domiciliary Care
Cambridgeshire County Council,05-May-23,51301979803,"1,650.00",SOUTH CAMBRIDGESHIRE DISTRICT COUNCIL,OTHER PUBLIC BODIES,Corporate Offices,Whittlesford Highways Depot,Business rates
Cambridgeshire County Council,05-May-23,51301979882,"1,670.48",To The Moon and Back Foster Care Limited,CARE ESTABLISHMENT,LAC Placements,Placements - independent fostering,Agency Placements - In County
Cambridgeshire County Council,05-May-23,51301979883,"1,670.48",To The Moon and Back Foster Care Limited,CARE ESTABLISHMENT,LAC Placements,Placements - independent fostering,Agency Placements - In County
Cambridgeshire County Council,05-May-23,51301979640,"1,709.00",EAST CAMBRIDGESHIRE DISTRICT COUNCIL,OTHER PUBLIC BODIES,Corporate Offices,Witchford Highways Depot,Business rates
Cambridgeshire County Council,05-May-23,51301979713,"1,722.00",HUNTINGDONSHIRE DISTRICT COUNCIL,OTHER PUBLIC BODIES,Waste Disposal incl PFI,Bluntisham HWRC,Business rates
Cambridgeshire County Council,05-May-23,51301979423,"1,800.00",FAWCETT PRIMARY SCHOOL,EDUCATION,SIS Head of Service,SIS Staff,Professional Fees and Hired Services
Cambridgeshire County Council,05-May-23,51301979350,"1,816.44",BLACK SWAN CARE GROUP LTD,CARE ESTABLISHMENT,OPPD - Cost of Care - Fenland Blocks,Fenland - Long term blocks,Residential Care
Cambridgeshire County Council,05-May-23,51301979350,"1,816.44",BLACK SWAN CARE GROUP LTD,CARE ESTABLISHMENT,OPPD - Cost of Care - Fenland Blocks,Fenland - Long term blocks,Residential Care
Cambridgeshire County Council,05-May-23,51301979350,"1,816.44",BLACK SWAN CARE GROUP LTD,CARE ESTABLISHMENT,OPPD - Cost of Care - Fenland Blocks,Fenland - Long term blocks,Residential Care
Cambridgeshire County Council,05-May-23,51301979350,"1,816.44",BLACK SWAN CARE GROUP LTD,CARE ESTABLISHMENT,OPPD - Cost of Care - Fenland Blocks,Fenland - Long term blocks,Residential Care
Cambridgeshire County Council,05-May-23,51301979946,"1,864.29",BACA,CHARITY,Unaccompanied Asylum Seeking Children,Separated Migrant Children > 18,Living Spport Grants - Financial Assistance 18+
Cambridgeshire County Council,05-May-23,51301979823,"1,865.00",SOUTH CAMBRIDGESHIRE DISTRICT COUNCIL,OTHER PUBLIC BODIES,Corporate Offices,Histon Library,Business rates
Cambridgeshire County Council,05-May-23,51301979074,"1,875.00",PCH Integration Services Ltd.,CARE ESTABLISHMENT,Unaccompanied Asylum Seeking Children,Separated Migrant Children < 18,Asylum Seekers
Cambridgeshire County Council,05-May-23,51301979704,"1,896.00",HUNTINGDONSHIRE DISTRICT COUNCIL,OTHER PUBLIC BODIES,Corporate Offices,Lawrence Court,Business rates
Cambridgeshire County Council,05-May-23,51301979725,"1,921.00",HUNTINGDONSHIRE DISTRICT COUNCIL,OTHER PUBLIC BODIES,Corporate Offices,Ramsey Library,Business rates
Cambridgeshire County Council,05-May-23,51301979360,"1,925.10",NELSON LODGE,CARE ESTABLISHMENT,OPPD - Cost of Care - Huntingdon Blocks,Hunts - Long term blocks,Residential Care
Cambridgeshire County Council,05-May-23,51301979360,"1,925.10",NELSON LODGE,CARE ESTABLISHMENT,OPPD - Cost of Care - Huntingdon Blocks,Hunts - Long term blocks,Residential Care
Cambridgeshire County Council,05-May-23,51301979360,"1,925.10",NELSON LODGE,CARE ESTABLISHMENT,OPPD - Cost of Care - Huntingdon Blocks,Hunts - Long term blocks,Residential Care
Cambridgeshire County Council,05-May-23,51301979360,"1,925.10",NELSON LODGE,CARE ESTABLISHMENT,OPPD - Cost of Care - Huntingdon Blocks,Hunts - Long term blocks,Residential Care
Cambridgeshire County Council,05-May-23,51301979388,"1,949.94",K RAVIVARUMAN T/A FAIR HAVEN CARE HOME,CARE ESTABLISHMENT,OPPD - Cost of Care - East Cambs Blocks,East Cambs � Long term Blocks,Residential Care
Cambridgeshire County Council,05-May-23,51301979388,"1,949.94",K RAVIVARUMAN T/A FAIR HAVEN CARE HOME,CARE ESTABLISHMENT,OPPD - Cost of Care - East Cambs Blocks,East Cambs � Long term Blocks,Residential Care
Cambridgeshire County Council,05-May-23,51301979388,"1,949.94",K RAVIVARUMAN T/A FAIR HAVEN CARE HOME,CARE ESTABLISHMENT,OPPD - Cost of Care - East Cambs Blocks,East Cambs � Long term Blocks,Residential Care
Cambridgeshire County Council,05-May-23,51301979388,"1,949.94",K RAVIVARUMAN T/A FAIR HAVEN CARE HOME,CARE ESTABLISHMENT,OPPD - Cost of Care - East Cambs Blocks,East Cambs � Long term Blocks,Residential Care
Cambridgeshire County Council,05-May-23,51301979754,"1,951.00",HUNTINGDONSHIRE DISTRICT COUNCIL,OTHER PUBLIC BODIES,Corporate Offices,Vantage House,Business rates
Cambridgeshire County Council,05-May-23,51301979889,"1,954.28",FEVACA,CARE ESTABLISHMENT,LAC Placements,Placements - supported accommodation,Agency Placements - In County
Cambridgeshire County Council,05-May-23,51301979722,"1,971.00",HUNTINGDONSHIRE DISTRICT COUNCIL,OTHER PUBLIC BODIES,Corporate Offices,FM Amundsen Annexe,Business rates
Cambridgeshire County Council,05-May-23,51301979390,"1,987.20",FLORENCE HOUSE(RAMSEY) RESIDENTIAL HOME FOR THE ELDERLY,CARE ESTABLISHMENT,OPPD - Cost of Care - Huntingdon Blocks,Hunts - Short term blocks,Rehabilitation And Respite Care
Cambridgeshire County Council,05-May-23,51301979390,"1,987.20",FLORENCE HOUSE(RAMSEY) RESIDENTIAL HOME FOR THE ELDERLY,CARE ESTABLISHMENT,OPPD - Cost of Care - Huntingdon Blocks,Hunts - Short term blocks,Rehabilitation And Respite Care
Cambridgeshire County Council,05-May-23,51301979390,"1,987.20",FLORENCE HOUSE(RAMSEY) RESIDENTIAL HOME FOR THE ELDERLY,CARE ESTABLISHMENT,OPPD - Cost of Care - Huntingdon Blocks,Hunts - Short term blocks,Rehabilitation And Respite Care
Cambridgeshire County Council,05-May-23,51301979390,"1,987.20",FLORENCE HOUSE(RAMSEY) RESIDENTIAL HOME FOR THE ELDERLY,CARE ESTABLISHMENT,OPPD - Cost of Care - Huntingdon Blocks,Hunts - Short term blocks,Rehabilitation And Respite Care
Cambridgeshire County Council,05-May-23,51301979139,"1,987.20",HOGREFE LTD,TRADE SUPPLIER,SEND Specialist Services - Education Psychology,SEND Specialist Services - Education Psychology,Educational Materials
Cambridgeshire County Council,05-May-23,51301979387,"2,033.79",K RAVIVARUMAN T/A FAIR HAVEN CARE HOME,CARE ESTABLISHMENT,OPPD - Cost of Care - East Cambs Blocks,East Cambs � Long term Blocks,Residential Care
Cambridgeshire County Council,05-May-23,51301979387,"2,033.79",K RAVIVARUMAN T/A FAIR HAVEN CARE HOME,CARE ESTABLISHMENT,OPPD - Cost of Care - East Cambs Blocks,East Cambs � Long term Blocks,Residential Care
Cambridgeshire County Council,05-May-23,51301979387,"2,033.79",K RAVIVARUMAN T/A FAIR HAVEN CARE HOME,CARE ESTABLISHMENT,OPPD - Cost of Care - East Cambs Blocks,East Cambs � Long term Blocks,Residential Care
Cambridgeshire County Council,05-May-23,51301979387,"2,033.79",K RAVIVARUMAN T/A FAIR HAVEN CARE HOME,CARE ESTABLISHMENT,OPPD - Cost of Care - East Cambs Blocks,East Cambs � Long term Blocks,Residential Care
Cambridgeshire County Council,05-May-23,51301979348,"2,055.51",POTTON VIEW,CARE ESTABLISHMENT,OPPD - Cost of Care - City South Blocks,City and South - Short term blocks,Rehabilitation And Respite Care
Cambridgeshire County Council,05-May-23,51301979348,"2,055.51",POTTON VIEW,CARE ESTABLISHMENT,OPPD - Cost of Care - City South Blocks,City and South - Short term blocks,Rehabilitation And Respite Care
Cambridgeshire County Council,05-May-23,51301979348,"2,055.51",POTTON VIEW,CARE ESTABLISHMENT,OPPD - Cost of Care - City South Blocks,City and South - Short term blocks,Rehabilitation And Respite Care
Cambridgeshire County Council,05-May-23,51301979348,"2,055.51",POTTON VIEW,CARE ESTABLISHMENT,OPPD - Cost of Care - City South Blocks,City and South - Short term blocks,Rehabilitation And Respite Care
Cambridgeshire County Council,05-May-23,51301979709,"2,058.00",HUNTINGDONSHIRE DISTRICT COUNCIL,OTHER PUBLIC BODIES,Corporate Offices,St Ives Library,Business rates
Cambridgeshire County Council,05-May-23,51301979462,"2,114.80",Broadlands Hall,EDUCATION,SEN Placements,Independent Education Placements,Independent School Placements
Cambridgeshire County Council,05-May-23,51301979702,"2,146.00",HUNTINGDONSHIRE DISTRICT COUNCIL,OTHER PUBLIC BODIES,Corporate Offices,St Neots Library,Business rates
Cambridgeshire County Council,05-May-23,51301979669,"2,181.00",FENLAND DISTRICT COUNCIL,OTHER PUBLIC BODIES,Corporate Offices,March Highways Depot,Business rates
Cambridgeshire County Council,05-May-23,51301967509,"2,246.40",Macildowie Associates Limited,COMPANY,Adults Central Holding,Adults Central Holding,Agency Staff
Cambridgeshire County Council,05-May-23,51301979357,"2,248.02",CARE UK LIMITED,CARE ESTABLISHMENT,OPPD - Cost of Care - Huntingdon Blocks,Hunts - Long term blocks,Nursing Care
Cambridgeshire County Council,05-May-23,51301979357,"2,248.02",CARE UK LIMITED,CARE ESTABLISHMENT,OPPD - Cost of Care - Huntingdon Blocks,Hunts - Long term blocks,Nursing Care
Cambridgeshire County Council,05-May-23,51301979357,"2,248.02",CARE UK LIMITED,CARE ESTABLISHMENT,OPPD - Cost of Care - Huntingdon Blocks,Hunts - Long term blocks,Nursing Care
Cambridgeshire County Council,05-May-23,51301979357,"2,248.02",CARE UK LIMITED,CARE ESTABLISHMENT,OPPD - Cost of Care - Huntingdon Blocks,Hunts - Long term blocks,Nursing Care
Cambridgeshire County Council,05-May-23,51301979060,"2,250.00",PCH Integration Services Ltd.,CARE ESTABLISHMENT,Unaccompanied Asylum Seeking Children,Separated Migrant Children < 18,Asylum Seekers
Cambridgeshire County Council,05-May-23,51301979061,"2,250.00",PCH Integration Services Ltd.,CARE ESTABLISHMENT,Unaccompanied Asylum Seeking Children,Separated Migrant Children < 18,Asylum Seekers
Cambridgeshire County Council,05-May-23,51301979062,"2,250.00",PCH Integration Services Ltd.,CARE ESTABLISHMENT,Unaccompanied Asylum Seeking Children,Separated Migrant Children < 18,Asylum Seekers
Cambridgeshire County Council,05-May-23,51301979063,"2,250.00",PCH Integration Services Ltd.,CARE ESTABLISHMENT,Unaccompanied Asylum Seeking Children,Separated Migrant Children < 18,Asylum Seekers
Cambridgeshire County Council,05-May-23,51301979064,"2,250.00",PCH Integration Services Ltd.,CARE ESTABLISHMENT,Unaccompanied Asylum Seeking Children,Separated Migrant Children < 18,Asylum Seekers
Cambridgeshire County Council,05-May-23,51301979065,"2,250.00",PCH Integration Services Ltd.,CARE ESTABLISHMENT,Unaccompanied Asylum Seeking Children,Separated Migrant Children < 18,Asylum Seekers
Cambridgeshire County Council,05-May-23,51301979066,"2,250.00",PCH Integration Services Ltd.,CARE ESTABLISHMENT,Unaccompanied Asylum Seeking Children,Separated Migrant Children < 18,Asylum Seekers
Cambridgeshire County Council,05-May-23,51301979067,"2,250.00",PCH Integration Services Ltd.,CARE ESTABLISHMENT,Unaccompanied Asylum Seeking Children,Separated Migrant Children < 18,Asylum Seekers
Cambridgeshire County Council,05-May-23,51301979068,"2,250.00",PCH Integration Services Ltd.,CARE ESTABLISHMENT,Unaccompanied Asylum Seeking Children,Separated Migrant Children < 18,Asylum Seekers
Cambridgeshire County Council,05-May-23,51301979070,"2,250.00",PCH Integration Services Ltd.,CARE ESTABLISHMENT,Unaccompanied Asylum Seeking Children,Separated Migrant Children < 18,Asylum Seekers
Cambridgeshire County Council,05-May-23,51301979071,"2,250.00",PCH Integration Services Ltd.,CARE ESTABLISHMENT,Unaccompanied Asylum Seeking Children,Separated Migrant Children < 18,Asylum Seekers
Cambridgeshire County Council,05-May-23,51301979072,"2,250.00",PCH Integration Services Ltd.,CARE ESTABLISHMENT,Unaccompanied Asylum Seeking Children,Separated Migrant Children < 18,Asylum Seekers
Cambridgeshire County Council,05-May-23,51301979073,"2,250.00",PCH Integration Services Ltd.,CARE ESTABLISHMENT,Unaccompanied Asylum Seeking Children,Separated Migrant Children < 18,Asylum Seekers
Cambridgeshire County Council,05-May-23,51301979885,"2,280.00",FEVACA,CARE ESTABLISHMENT,LAC Placements,Placements - supported accommodation,Agency Placements - In County
Cambridgeshire County Council,05-May-23,51301979886,"2,280.00",FEVACA,CARE ESTABLISHMENT,LAC Placements,Placements - supported accommodation,Agency Placements - In County
Cambridgeshire County Council,05-May-23,51301979890,"2,280.00",FEVACA,CARE ESTABLISHMENT,LAC Placements,Placements - supported accommodation,Agency Placements - In County
Cambridgeshire County Council,05-May-23,51301979988,"2,283.60",Redacted Personal Data,FOSTER PARENT,LD - Young Adults Team,LD - Young Adults - Care,Residential Care
Cambridgeshire County Council,05-May-23,51301979943,"2,357.10",BACA,CHARITY,Unaccompanied Asylum Seeking Children,Separated Migrant Children > 18,Living Spport Grants - Financial Assistance 18+
Cambridgeshire County Council,05-May-23,51301979549,"2,374.29",INTEGRATED SERVICES PROGRAMME (ISP),CARE ESTABLISHMENT,LAC Placements,Placements - independent fostering,Agency Placements - Out of  County
Cambridgeshire County Council,05-May-23,51301978960,"2,400.00",Pathfinder Legal Services Limited,TRADE SUPPLIER,Permitting,Licenses,External Legal Fees
Cambridgeshire County Council,05-May-23,51301979346,"2,421.92",SWAN HOUSE NURSING & RESIDENTIAL HOME,CARE ESTABLISHMENT,OPPD - Cost of Care - Fenland Blocks,Fenland - Long term blocks,Nursing Care
Cambridgeshire County Council,05-May-23,51301979346,"2,421.92",SWAN HOUSE NURSING & RESIDENTIAL HOME,CARE ESTABLISHMENT,OPPD - Cost of Care - Fenland Blocks,Fenland - Long term blocks,Nursing Care
Cambridgeshire County Council,05-May-23,51301979346,"2,421.92",SWAN HOUSE NURSING & RESIDENTIAL HOME,CARE ESTABLISHMENT,OPPD - Cost of Care - Fenland Blocks,Fenland - Long term blocks,Nursing Care
Cambridgeshire County Council,05-May-23,51301979346,"2,421.92",SWAN HOUSE NURSING & RESIDENTIAL HOME,CARE ESTABLISHMENT,OPPD - Cost of Care - Fenland Blocks,Fenland - Long term blocks,Nursing Care
Cambridgeshire County Council,05-May-23,51301979350,"2,421.92",BLACK SWAN CARE GROUP LTD,CARE ESTABLISHMENT,OPPD - Cost of Care - Fenland Blocks,Fenland - Long term blocks,Residential Care
Cambridgeshire County Council,05-May-23,51301979350,"2,421.92",BLACK SWAN CARE GROUP LTD,CARE ESTABLISHMENT,OPPD - Cost of Care - Fenland Blocks,Fenland - Long term blocks,Residential Care
Cambridgeshire County Council,05-May-23,51301979350,"2,421.92",BLACK SWAN CARE GROUP LTD,CARE ESTABLISHMENT,OPPD - Cost of Care - Fenland Blocks,Fenland - Long term blocks,Residential Care
Cambridgeshire County Council,05-May-23,51301979350,"2,421.92",BLACK SWAN CARE GROUP LTD,CARE ESTABLISHMENT,OPPD - Cost of Care - Fenland Blocks,Fenland - Long term blocks,Residential Care
Cambridgeshire County Council,05-May-23,51301979358,"2,421.92",THE HERMITAGE WHITTLESEY LLP,CARE ESTABLISHMENT,OPPD - Cost of Care - Fenland Blocks,Fenland - Long term blocks,Residential Care
Cambridgeshire County Council,05-May-23,51301979358,"2,421.92",THE HERMITAGE WHITTLESEY LLP,CARE ESTABLISHMENT,OPPD - Cost of Care - Fenland Blocks,Fenland - Long term blocks,Residential Care
Cambridgeshire County Council,05-May-23,51301979358,"2,421.92",THE HERMITAGE WHITTLESEY LLP,CARE ESTABLISHMENT,OPPD - Cost of Care - Fenland Blocks,Fenland - Long term blocks,Residential Care
Cambridgeshire County Council,05-May-23,51301979358,"2,421.92",THE HERMITAGE WHITTLESEY LLP,CARE ESTABLISHMENT,OPPD - Cost of Care - Fenland Blocks,Fenland - Long term blocks,Residential Care
Cambridgeshire County Council,05-May-23,51301979938,"2,442.85",Safe Haven Accommodation Ltd,CARE ESTABLISHMENT,Unaccompanied Asylum Seeking Children,Separated Migrant Children > 18,Living Spport Grants - Financial Assistance 18+
Cambridgeshire County Council,05-May-23,51301979245,"2,448.54",EASTFIELD PLAYGROUP (CLUB 4 U),NURSERY,SEND High Needs Top Up,High Needs Top Up - Early Years,Independent School Placements
Cambridgeshire County Council,05-May-23,51301978954,"2,448.54",LITTLE CATERPILLARS,NURSERY,SEND High Needs Top Up,High Needs Top Up - Early Years,Independent School Placements
Cambridgeshire County Council,05-May-23,51301979402,"2,455.75",MULTI CARE COMMUNITY SERVICES,CARE ESTABLISHMENT,Commissioning - Dom Cars,Hancock-Funded Dom-Cars,Domiciliary Care
Cambridgeshire County Council,05-May-23,51301979402,"2,455.75",MULTI CARE COMMUNITY SERVICES,CARE ESTABLISHMENT,Commissioning - Dom Cars,Hancock-Funded Dom-Cars,Domiciliary Care
Cambridgeshire County Council,05-May-23,51301979403,"2,455.75",MULTI CARE COMMUNITY SERVICES,CARE ESTABLISHMENT,Commissioning - Dom Cars,Hancock-Funded Dom-Cars,Domiciliary Care
Cambridgeshire County Council,05-May-23,51301979403,"2,455.75",MULTI CARE COMMUNITY SERVICES,CARE ESTABLISHMENT,Commissioning - Dom Cars,Hancock-Funded Dom-Cars,Domiciliary Care
Cambridgeshire County Council,05-May-23,51301979403,"2,455.75",MULTI CARE COMMUNITY SERVICES,CARE ESTABLISHMENT,Commissioning - Dom Cars,Hancock-Funded Dom-Cars,Domiciliary Care
Cambridgeshire County Council,05-May-23,51301979403,"2,455.75",MULTI CARE COMMUNITY SERVICES,CARE ESTABLISHMENT,Commissioning - Dom Cars,Hancock-Funded Dom-Cars,Domiciliary Care
Cambridgeshire County Council,05-May-23,51301979402,"2,455.75",MULTI CARE COMMUNITY SERVICES,CARE ESTABLISHMENT,Commissioning - Dom Cars,Hancock-Funded Dom-Cars,Domiciliary Care
Cambridgeshire County Council,05-May-23,51301979402,"2,455.75",MULTI CARE COMMUNITY SERVICES,CARE ESTABLISHMENT,Commissioning - Dom Cars,Hancock-Funded Dom-Cars,Domiciliary Care
Cambridgeshire County Council,05-May-23,51301979949,"2,464.29",BACA,CHARITY,Unaccompanied Asylum Seeking Children,Separated Migrant Children < 18,Asylum Seekers
Cambridgeshire County Council,05-May-23,51301979952,"2,464.29",BACA,CHARITY,Unaccompanied Asylum Seeking Children,Separated Migrant Children < 18,Asylum Seekers
Cambridgeshire County Council,05-May-23,51301979956,"2,464.29",BACA,CHARITY,Unaccompanied Asylum Seeking Children,Separated Migrant Children < 18,Asylum Seekers
Cambridgeshire County Council,05-May-23,51301979959,"2,464.29",BACA,CHARITY,Unaccompanied Asylum Seeking Children,Separated Migrant Children < 18,Asylum Seekers
Cambridgeshire County Council,05-May-23,51301979362,"2,476.08",BROOKFIELD CARE (Radis Commnity Care),CARE ESTABLISHMENT,Commissioning - Dom Cars,Hancock-Funded Dom-Cars,Domiciliary Care
Cambridgeshire County Council,05-May-23,51301979362,"2,476.08",BROOKFIELD CARE (Radis Commnity Care),CARE ESTABLISHMENT,Commissioning - Dom Cars,Hancock-Funded Dom-Cars,Domiciliary Care
Cambridgeshire County Council,05-May-23,51301979362,"2,476.08",BROOKFIELD CARE (Radis Commnity Care),CARE ESTABLISHMENT,Commissioning - Dom Cars,Hancock-Funded Dom-Cars,Domiciliary Care
Cambridgeshire County Council,05-May-23,51301979362,"2,476.08",BROOKFIELD CARE (Radis Commnity Care),CARE ESTABLISHMENT,Commissioning - Dom Cars,Hancock-Funded Dom-Cars,Domiciliary Care
Cambridgeshire County Council,05-May-23,51301979384,"2,484.00",HOME CLOSE LTD,CARE ESTABLISHMENT,OPPD - Cost of Care - City South Blocks,City and South - Long term blocks,Nursing Care
Cambridgeshire County Council,05-May-23,51301979384,"2,484.00",HOME CLOSE LTD,CARE ESTABLISHMENT,OPPD - Cost of Care - City South Blocks,City and South - Long term blocks,Nursing Care
Cambridgeshire County Council,05-May-23,51301979384,"2,484.00",HOME CLOSE LTD,CARE ESTABLISHMENT,OPPD - Cost of Care - City South Blocks,City and South - Long term blocks,Nursing Care
Cambridgeshire County Council,05-May-23,51301979384,"2,484.00",HOME CLOSE LTD,CARE ESTABLISHMENT,OPPD - Cost of Care - City South Blocks,City and South - Long term blocks,Nursing Care
Cambridgeshire County Council,05-May-23,51301979996,"2,491.32",Redacted Personal Data,INDIVIDUAL,LD - Hunts Locality - Cost of Care,LD - Huntingdonshire - Care,Residential Care
Cambridgeshire County Council,05-May-23,51301979801,"2,536.00",SOUTH CAMBRIDGESHIRE DISTRICT COUNCIL,OTHER PUBLIC BODIES,Corporate Offices,Gamlingay First (Former School),Business rates
Cambridgeshire County Council,05-May-23,51301979986,"2,550.00",Redacted Personal Data,PARENT/GUARDIAN,Early Years Specialist Support,"SEND - Legal, Tribunal & Mediation",Independent School Placements
Cambridgeshire County Council,05-May-23,51301979925,"2,558.57",Cambridge Care Company,CARE ESTABLISHMENT,Unaccompanied Asylum Seeking Children,Separated Migrant Children < 18,Asylum Seekers
Cambridgeshire County Council,05-May-23,51301979929,"2,558.57",Cambridge Care Company,CARE ESTABLISHMENT,Unaccompanied Asylum Seeking Children,Separated Migrant Children < 18,Asylum Seekers
Cambridgeshire County Council,05-May-23,51301979933,"2,558.57",Cambridge Care Company,CARE ESTABLISHMENT,Unaccompanied Asylum Seeking Children,Separated Migrant Children < 18,Asylum Seekers
Cambridgeshire County Council,05-May-23,51301979907,"2,558.57",Cambridge Care Company,CARE ESTABLISHMENT,Unaccompanied Asylum Seeking Children,Separated Migrant Children < 18,Asylum Seekers
Cambridgeshire County Council,05-May-23,51301979911,"2,558.57",Cambridge Care Company,CARE ESTABLISHMENT,Unaccompanied Asylum Seeking Children,Separated Migrant Children < 18,Asylum Seekers
Cambridgeshire County Council,05-May-23,51301979915,"2,558.57",Cambridge Care Company,CARE ESTABLISHMENT,Unaccompanied Asylum Seeking Children,Separated Migrant Children < 18,Asylum Seekers
Cambridgeshire County Council,05-May-23,51301979392,"2,566.80",THE HILLINGS LIMITED,CARE ESTABLISHMENT,OPPD - Cost of Care - Huntingdon Blocks,Hunts - Long term blocks,Residential Care
Cambridgeshire County Council,05-May-23,51301979392,"2,566.80",THE HILLINGS LIMITED,CARE ESTABLISHMENT,OPPD - Cost of Care - Huntingdon Blocks,Hunts - Long term blocks,Residential Care
Cambridgeshire County Council,05-May-23,51301979392,"2,566.80",THE HILLINGS LIMITED,CARE ESTABLISHMENT,OPPD - Cost of Care - Huntingdon Blocks,Hunts - Long term blocks,Residential Care
Cambridgeshire County Council,05-May-23,51301979392,"2,566.80",THE HILLINGS LIMITED,CARE ESTABLISHMENT,OPPD - Cost of Care - Huntingdon Blocks,Hunts - Long term blocks,Residential Care
Cambridgeshire County Council,05-May-23,51301979389,"2,599.92",THE FIRS (Barrels Care),CARE ESTABLISHMENT,OPPD - Cost of Care - East Cambs Blocks,East Cambs � Long term Blocks,Residential Care
Cambridgeshire County Council,05-May-23,51301979389,"2,599.92",THE FIRS (Barrels Care),CARE ESTABLISHMENT,OPPD - Cost of Care - East Cambs Blocks,East Cambs � Long term Blocks,Residential Care
Cambridgeshire County Council,05-May-23,51301979389,"2,599.92",THE FIRS (Barrels Care),CARE ESTABLISHMENT,OPPD - Cost of Care - East Cambs Blocks,East Cambs � Long term Blocks,Residential Care
Cambridgeshire County Council,05-May-23,51301979389,"2,599.92",THE FIRS (Barrels Care),CARE ESTABLISHMENT,OPPD - Cost of Care - East Cambs Blocks,East Cambs � Long term Blocks,Residential Care
Cambridgeshire County Council,05-May-23,51301979411,"2,628.40",Redacted Personal Data,INDIVIDUAL,Children's Disability Direct Payments,CSC Direct Payments,Direct Payments
Cambridgeshire County Council,05-May-23,51301979399,"2,649.60",AISLING LODGE (MD CARE HOMES),CARE ESTABLISHMENT,OPPD - Cost of Care - Huntingdon Blocks,Hunts - Long term blocks,Residential Care
Cambridgeshire County Council,05-May-23,51301979399,"2,649.60",AISLING LODGE (MD CARE HOMES),CARE ESTABLISHMENT,OPPD - Cost of Care - Huntingdon Blocks,Hunts - Long term blocks,Residential Care
Cambridgeshire County Council,05-May-23,51301979399,"2,649.60",AISLING LODGE (MD CARE HOMES),CARE ESTABLISHMENT,OPPD - Cost of Care - Huntingdon Blocks,Hunts - Long term blocks,Residential Care
Cambridgeshire County Council,05-May-23,51301979399,"2,649.60",AISLING LODGE (MD CARE HOMES),CARE ESTABLISHMENT,OPPD - Cost of Care - Huntingdon Blocks,Hunts - Long term blocks,Residential Care
Cambridgeshire County Council,05-May-23,51301979809,"2,662.00",SOUTH CAMBRIDGESHIRE DISTRICT COUNCIL,OTHER PUBLIC BODIES,Corporate Offices,Sackville House (Cambourne),Business rates
Cambridgeshire County Council,05-May-23,51301979821,"2,662.00",SOUTH CAMBRIDGESHIRE DISTRICT COUNCIL,OTHER PUBLIC BODIES,Cambs Music Head of Business Development,Cambs Music Business Development,Business rates
Cambridgeshire County Council,05-May-23,51301962709,"2,700.00",FOCUS CONSULTANTS 2010 LLP,TRADE SUPPLIER,"School Condition, Maintenance & Suitability","School Condition, Maintenance & Suitability",Construction - External Professional Fees
Cambridgeshire County Council,05-May-23,51301979606,"2,848.00",EAST CAMBRIDGESHIRE DISTRICT COUNCIL,OTHER PUBLIC BODIES,Waste Disposal incl PFI,Witchford HWRC,Business rates
Cambridgeshire County Council,05-May-23,51301979998,"2,874.60",Redacted Personal Data,PARENT/GUARDIAN,LD - East Locality - Cost of Care,LD - East Cambs - Care,Residential Care
Cambridgeshire County Council,05-May-23,51301979991,"2,874.60",Redacted Personal Data,INDIVIDUAL,Shared Lives,Cambridgshire Shared Lives,Living support grants
Cambridgeshire County Council,05-May-23,51301979992,"2,874.60",Redacted Personal Data,INDIVIDUAL,Shared Lives,Cambridgshire Shared Lives,Living support grants
Cambridgeshire County Council,05-May-23,51301979997,"2,874.60",Redacted Personal Data,INDIVIDUAL,Autism and Adult Support - Cost of Care,Autism and Adult Support - Care,Residential Care
Cambridgeshire County Council,05-May-23,51301980014,"2,874.60",Redacted Personal Data,INDIVIDUAL,LD - Young Adults Team,LD - Young Adults - Care,Residential Care
Cambridgeshire County Council,05-May-23,51301980013,"2,874.60",Redacted Personal Data,FOSTER PARENT,LD - Young Adults Team,LD - Young Adults - Care,Residential Care
Cambridgeshire County Council,05-May-23,51301980003,"2,874.60",Redacted Personal Data,FOSTER PARENT,LD - Fenland Locality - Cost of Care,LD - Fenland  - Care,Residential Care
Cambridgeshire County Council,05-May-23,51301979127,"2,880.00",No Isolation Ltd,COMPANY,Out of School Tuition,SEND - Support for PEX without EHCP,Specialist Equipment For Service Delivery
Cambridgeshire County Council,05-May-23,51301979405,"2,896.85",Cera Care Operations Ltd,COMPANY,OPPD - Cost of Care - City South - Over 65,Older People - City & South - Care,Supported Living
Cambridgeshire County Council,05-May-23,51301979405,"2,896.85",Cera Care Operations Ltd,COMPANY,OPPD - Cost of Care - City South - Over 65,Older People - City & South - Care,Supported Living
Cambridgeshire County Council,05-May-23,51301979405,"2,896.85",Cera Care Operations Ltd,COMPANY,OPPD - Cost of Care - City South - Over 65,Older People - City & South - Care,Supported Living
Cambridgeshire County Council,05-May-23,51301979405,"2,896.85",Cera Care Operations Ltd,COMPANY,OPPD - Cost of Care - City South - Over 65,Older People - City & South - Care,Supported Living
Cambridgeshire County Council,05-May-23,51301979346,"2,898.00",SWAN HOUSE NURSING & RESIDENTIAL HOME,CARE ESTABLISHMENT,OPPD - Cost of Care - Fenland Blocks,Fenland - Long term blocks,Nursing Care
Cambridgeshire County Council,05-May-23,51301979346,"2,898.00",SWAN HOUSE NURSING & RESIDENTIAL HOME,CARE ESTABLISHMENT,OPPD - Cost of Care - Fenland Blocks,Fenland - Long term blocks,Nursing Care
Cambridgeshire County Council,05-May-23,51301979346,"2,898.00",SWAN HOUSE NURSING & RESIDENTIAL HOME,CARE ESTABLISHMENT,OPPD - Cost of Care - Fenland Blocks,Fenland - Long term blocks,Nursing Care
Cambridgeshire County Council,05-May-23,51301979346,"2,898.00",SWAN HOUSE NURSING & RESIDENTIAL HOME,CARE ESTABLISHMENT,OPPD - Cost of Care - Fenland Blocks,Fenland - Long term blocks,Nursing Care
Cambridgeshire County Council,05-May-23,51301980046,"2,900.00",A&E Johnston Ltd,COMPANY,Coroners,Coroners General,Court Costs
Cambridgeshire County Council,05-May-23,51301964924,"2,914.00",Cambridge Care Company,CARE ESTABLISHMENT,Unaccompanied Asylum Seeking Children,Separated Migrant Children < 18,Asylum Seekers
Cambridgeshire County Council,05-May-23,51301964925,"2,914.00",Cambridge Care Company,CARE ESTABLISHMENT,Unaccompanied Asylum Seeking Children,Separated Migrant Children < 18,Asylum Seekers
Cambridgeshire County Council,05-May-23,51301967482,"2,914.00",Cambridge Care Company,CARE ESTABLISHMENT,Unaccompanied Asylum Seeking Children,Separated Migrant Children < 18,Asylum Seekers
Cambridgeshire County Council,05-May-23,51301967483,"2,914.00",Cambridge Care Company,CARE ESTABLISHMENT,Unaccompanied Asylum Seeking Children,Separated Migrant Children < 18,Asylum Seekers
Cambridgeshire County Council,05-May-23,51301967485,"2,914.00",Cambridge Care Company,CARE ESTABLISHMENT,Unaccompanied Asylum Seeking Children,Separated Migrant Children < 18,Asylum Seekers
Cambridgeshire County Council,05-May-23,51301967488,"2,914.00",Cambridge Care Company,CARE ESTABLISHMENT,Unaccompanied Asylum Seeking Children,Separated Migrant Children < 18,Asylum Seekers
Cambridgeshire County Council,05-May-23,51301967490,"2,914.00",Cambridge Care Company,CARE ESTABLISHMENT,Unaccompanied Asylum Seeking Children,Separated Migrant Children < 18,Asylum Seekers
Cambridgeshire County Council,05-May-23,51301967493,"2,914.00",Cambridge Care Company,CARE ESTABLISHMENT,Unaccompanied Asylum Seeking Children,Separated Migrant Children < 18,Asylum Seekers
Cambridgeshire County Council,05-May-23,51301978328,"2,914.00",Cambridge Care Company,CARE ESTABLISHMENT,Unaccompanied Asylum Seeking Children,Separated Migrant Children < 18,Asylum Seekers
Cambridgeshire County Council,05-May-23,51301978329,"2,914.00",Cambridge Care Company,CARE ESTABLISHMENT,Unaccompanied Asylum Seeking Children,Separated Migrant Children < 18,Asylum Seekers
Cambridgeshire County Council,05-May-23,51301979644,"2,934.00",EAST CAMBRIDGESHIRE DISTRICT COUNCIL,OTHER PUBLIC BODIES,County Farms,"Triangle Solar Farm, Soham",Business rates
Cambridgeshire County Council,05-May-23,51301979531,"3,030.00",NEXUS FOSTERING LTD,CARE ESTABLISHMENT,LAC Placements,Placements - independent fostering,Agency Placements - In County
Cambridgeshire County Council,05-May-23,51301979533,"3,030.00",NEXUS FOSTERING LTD,CARE ESTABLISHMENT,LAC Placements,Placements - independent fostering,Agency Placements - In County
Cambridgeshire County Council,05-May-23,51301979511,"3,030.00",NEXUS FOSTERING LTD,CARE ESTABLISHMENT,LAC Placements,Placements - independent fostering,Agency Placements - Out of  County
Cambridgeshire County Council,05-May-23,51301979512,"3,030.00",NEXUS FOSTERING LTD,CARE ESTABLISHMENT,LAC Placements,Placements - independent fostering,Agency Placements - Out of  County
Cambridgeshire County Council,05-May-23,51301979513,"3,030.00",NEXUS FOSTERING LTD,CARE ESTABLISHMENT,LAC Placements,Placements - independent fostering,Agency Placements - In County
Cambridgeshire County Council,05-May-23,51301979514,"3,030.00",NEXUS FOSTERING LTD,CARE ESTABLISHMENT,LAC Placements,Placements - independent fostering,Agency Placements - In County
Cambridgeshire County Council,05-May-23,51301979523,"3,030.00",NEXUS FOSTERING LTD,CARE ESTABLISHMENT,LAC Placements,Placements - independent fostering,Agency Placements - Out of  County
Cambridgeshire County Council,05-May-23,51301979379,"3,041.81",LONGHURST GROUP LTD,CARE ESTABLISHMENT,OPPD - Cost of Care - City South - Over 65,Older People - City & South - Care,Supported Living
Cambridgeshire County Council,05-May-23,51301979379,"3,041.81",LONGHURST GROUP LTD,CARE ESTABLISHMENT,OPPD - Cost of Care - City South - Over 65,Older People - City & South - Care,Supported Living
Cambridgeshire County Council,05-May-23,51301979379,"3,041.81",LONGHURST GROUP LTD,CARE ESTABLISHMENT,OPPD - Cost of Care - City South - Over 65,Older People - City & South - Care,Supported Living
Cambridgeshire County Council,05-May-23,51301979361,"3,068.04",Maven Healthcare,CARE ESTABLISHMENT,OPPD - Cost of Care - City South Blocks,City and South - Long term blocks,Nursing Care
Cambridgeshire County Council,05-May-23,51301979715,"3,072.00",HUNTINGDONSHIRE DISTRICT COUNCIL,OTHER PUBLIC BODIES,Corporate Offices,Stanton House,Business rates
Cambridgeshire County Council,05-May-23,51301979673,"3,072.00",FENLAND DISTRICT COUNCIL,OTHER PUBLIC BODIES,Corporate Offices,Wisbech Library,Business rates
Cambridgeshire County Council,05-May-23,51301979850,"3,097.24",QUALITY FOSTER CARE LTD,CARE ESTABLISHMENT,LAC Placements,Placements - independent fostering,Agency Placements - Out of  County
Cambridgeshire County Council,05-May-23,51301979391,"3,105.00",SPRINGFIELD RESIDENTIAL CARE,CARE ESTABLISHMENT,OPPD - Cost of Care - Fenland Blocks,Fenland - Short term blocks,Rehabilitation And Respite Care
Cambridgeshire County Council,05-May-23,51301979396,"3,132.42",RADIS COMMUNITY CARE,CARE ESTABLISHMENT,OPPD - Cost of Care - Fenland - Over 65,Older People - Fenland - Care,Supported Living
Cambridgeshire County Council,05-May-23,51301979396,"3,132.42",RADIS COMMUNITY CARE,CARE ESTABLISHMENT,OPPD - Cost of Care - Fenland - Over 65,Older People - Fenland - Care,Supported Living
Cambridgeshire County Council,05-May-23,51301979396,"3,132.42",RADIS COMMUNITY CARE,CARE ESTABLISHMENT,OPPD - Cost of Care - Fenland - Over 65,Older People - Fenland - Care,Supported Living
Cambridgeshire County Council,05-May-23,51301979396,"3,132.42",RADIS COMMUNITY CARE,CARE ESTABLISHMENT,OPPD - Cost of Care - Fenland - Over 65,Older People - Fenland - Care,Supported Living
Cambridgeshire County Council,05-May-23,51301979353,"3,136.93",LONGHURST GROUP LTD,CARE ESTABLISHMENT,OPPD - Cost of Care - City South - Over 65,Older People - City & South - Care,Supported Living
Cambridgeshire County Council,05-May-23,51301979353,"3,136.93",LONGHURST GROUP LTD,CARE ESTABLISHMENT,OPPD - Cost of Care - City South - Over 65,Older People - City & South - Care,Supported Living
Cambridgeshire County Council,05-May-23,51301979353,"3,136.93",LONGHURST GROUP LTD,CARE ESTABLISHMENT,OPPD - Cost of Care - City South - Over 65,Older People - City & South - Care,Supported Living
Cambridgeshire County Council,05-May-23,51301979342,"3,163.58",BROOKFIELD CARE (Radis Commnity Care),CARE ESTABLISHMENT,Commissioning - Dom Cars,East Cambs - Dom Blocks,Domiciliary Care
Cambridgeshire County Council,05-May-23,51301979342,"3,163.58",BROOKFIELD CARE (Radis Commnity Care),CARE ESTABLISHMENT,Commissioning - Dom Cars,East Cambs - Dom Blocks,Domiciliary Care
Cambridgeshire County Council,05-May-23,51301979342,"3,163.58",BROOKFIELD CARE (Radis Commnity Care),CARE ESTABLISHMENT,Commissioning - Dom Cars,East Cambs - Dom Blocks,Domiciliary Care
Cambridgeshire County Council,05-May-23,51301979342,"3,163.58",BROOKFIELD CARE (Radis Commnity Care),CARE ESTABLISHMENT,Commissioning - Dom Cars,East Cambs - Dom Blocks,Domiciliary Care
Cambridgeshire County Council,05-May-23,51301979328,"3,182.14",Eastern Family Services Ltd t/a Eastern Fostering Services,CARE ESTABLISHMENT,LAC Placements,Placements - independent fostering,Agency Placements - Out of  County
Cambridgeshire County Council,05-May-23,51301979330,"3,182.14",Eastern Family Services Ltd t/a Eastern Fostering Services,CARE ESTABLISHMENT,LAC Placements,Placements - independent fostering,Agency Placements - Out of  County
Cambridgeshire County Council,05-May-23,51301979386,"3,190.76",ST GEORGE'S COURT,CARE ESTABLISHMENT,OPPD - Cost of Care - City South Blocks,City and South - Long term blocks,Nursing Care
Cambridgeshire County Council,05-May-23,51301979359,"3,208.50",HARDWICK DENE,CARE ESTABLISHMENT,OPPD - Cost of Care - Huntingdon Blocks,Hunts - Short term blocks,Rehabilitation And Respite Care
Cambridgeshire County Council,05-May-23,51301979359,"3,208.50",HARDWICK DENE,CARE ESTABLISHMENT,OPPD - Cost of Care - Huntingdon Blocks,Hunts - Short term blocks,Rehabilitation And Respite Care
Cambridgeshire County Council,05-May-23,51301979359,"3,208.50",HARDWICK DENE,CARE ESTABLISHMENT,OPPD - Cost of Care - Huntingdon Blocks,Hunts - Short term blocks,Rehabilitation And Respite Care
Cambridgeshire County Council,05-May-23,51301979359,"3,208.50",HARDWICK DENE,CARE ESTABLISHMENT,OPPD - Cost of Care - Huntingdon Blocks,Hunts - Short term blocks,Rehabilitation And Respite Care
Cambridgeshire County Council,05-May-23,51301979400,"3,210.46",BROOKFIELD CARE (Radis Commnity Care),CARE ESTABLISHMENT,Commissioning - Dom Cars,Hancock-Funded Dom-Cars,Domiciliary Care
Cambridgeshire County Council,05-May-23,51301979400,"3,210.46",BROOKFIELD CARE (Radis Commnity Care),CARE ESTABLISHMENT,Commissioning - Dom Cars,Hancock-Funded Dom-Cars,Domiciliary Care
Cambridgeshire County Council,05-May-23,51301979400,"3,210.46",BROOKFIELD CARE (Radis Commnity Care),CARE ESTABLISHMENT,Commissioning - Dom Cars,Hancock-Funded Dom-Cars,Domiciliary Care
Cambridgeshire County Council,05-May-23,51301979400,"3,210.46",BROOKFIELD CARE (Radis Commnity Care),CARE ESTABLISHMENT,Commissioning - Dom Cars,Hancock-Funded Dom-Cars,Domiciliary Care
Cambridgeshire County Council,05-May-23,51301979940,"3,214.29",SUNBEAM FOSTERING AGENCY LTD,CARE ESTABLISHMENT,Unaccompanied Asylum Seeking Children,Separated Migrant Children < 18,Agency Placements - Out of  County
Cambridgeshire County Council,05-May-23,51301979874,"3,214.29",Regional Fostering Services Ltd,CARE ESTABLISHMENT,LAC Placements,Placements - independent fostering,Agency Placements - Out of  County
Cambridgeshire County Council,05-May-23,51301979520,"3,217.50",NEXUS FOSTERING LTD,CARE ESTABLISHMENT,LAC Placements,Placements - independent fostering,Agency Placements - Out of  County
Cambridgeshire County Council,05-May-23,51301979354,"3,227.56",RADIS COMMUNITY CARE,CARE ESTABLISHMENT,OPPD - Cost of Care - Huntingdon - Over 65,Hunts OP Team - Care,Supported Living
Cambridgeshire County Council,05-May-23,51301979855,"3,236.79",ST CHRISTOPHER'S FELLOWSHIP,CARE ESTABLISHMENT,LAC Placements,Placements - independent fostering,Agency Placements - In County
Cambridgeshire County Council,05-May-23,51301979791,"3,271.00",SOUTH CAMBRIDGESHIRE DISTRICT COUNCIL,OTHER PUBLIC BODIES,Corporate Offices,Sackville House (Cambourne),Business rates
Cambridgeshire County Council,05-May-23,51301979396,"3,278.84",RADIS COMMUNITY CARE,CARE ESTABLISHMENT,OPPD - Cost of Care - Fenland - Over 65,Older People - Fenland - Care,Supported Living
Cambridgeshire County Council,05-May-23,51301979396,"3,278.84",RADIS COMMUNITY CARE,CARE ESTABLISHMENT,OPPD - Cost of Care - Fenland - Over 65,Older People - Fenland - Care,Supported Living
Cambridgeshire County Council,05-May-23,51301979396,"3,278.84",RADIS COMMUNITY CARE,CARE ESTABLISHMENT,OPPD - Cost of Care - Fenland - Over 65,Older People - Fenland - Care,Supported Living
Cambridgeshire County Council,05-May-23,51301979396,"3,278.84",RADIS COMMUNITY CARE,CARE ESTABLISHMENT,OPPD - Cost of Care - Fenland - Over 65,Older People - Fenland - Care,Supported Living
Cambridgeshire County Council,05-May-23,51301979407,"3,329.41",MEARS CARE LTD,CARE ESTABLISHMENT,OPPD - Cost of Care - City South - Over 65,Older People - City & South - Care,Supported Living
Cambridgeshire County Council,05-May-23,51301979406,"3,329.93",MEARS CARE LTD,CARE ESTABLISHMENT,OPPD - Cost of Care - City South - Over 65,Older People - City & South - Care,Supported Living
Cambridgeshire County Council,05-May-23,51301979304,"3,342.86",APEX Fostering,CARE ESTABLISHMENT,LAC Placements,Placements - independent fostering,Agency Placements - Out of  County
Cambridgeshire County Council,05-May-23,51301979493,"3,355.03",ALLIANCE FOSTER CARE LTD,CARE ESTABLISHMENT,LAC Placements,Placements - independent fostering,Agency Placements - In County
Cambridgeshire County Council,05-May-23,51301979857,"3,360.00",ST CHRISTOPHER'S FELLOWSHIP,CARE ESTABLISHMENT,LAC Placements,Placements - independent fostering,Agency Placements - Out of  County
Cambridgeshire County Council,05-May-23,51301979872,"3,372.94",Regional Fostering Services Ltd,CARE ESTABLISHMENT,LAC Placements,Placements - independent fostering,Agency Placements - In County
Cambridgeshire County Council,05-May-23,51301979873,"3,372.94",Regional Fostering Services Ltd,CARE ESTABLISHMENT,LAC Placements,Placements - independent fostering,Agency Placements - In County
Cambridgeshire County Council,05-May-23,51301979880,"3,393.00",To The Moon and Back Foster Care Limited,CARE ESTABLISHMENT,LAC Placements,Placements - independent fostering,Agency Placements - In County
Cambridgeshire County Council,05-May-23,51301979851,"3,407.10",True Fostering Ltd,COMPANY,LAC Placements,Placements - independent fostering,Agency Placements - Out of  County
Cambridgeshire County Council,05-May-23,51301979395,"3,424.38",RADIS COMMUNITY CARE,CARE ESTABLISHMENT,OPPD - Cost of Care - City South - Over 65,Older People - City & South - Care,Supported Living
Cambridgeshire County Council,05-May-23,51301979395,"3,424.38",RADIS COMMUNITY CARE,CARE ESTABLISHMENT,OPPD - Cost of Care - City South - Over 65,Older People - City & South - Care,Supported Living
Cambridgeshire County Council,05-May-23,51301979395,"3,424.38",RADIS COMMUNITY CARE,CARE ESTABLISHMENT,OPPD - Cost of Care - City South - Over 65,Older People - City & South - Care,Supported Living
Cambridgeshire County Council,05-May-23,51301979395,"3,424.38",RADIS COMMUNITY CARE,CARE ESTABLISHMENT,OPPD - Cost of Care - City South - Over 65,Older People - City & South - Care,Supported Living
Cambridgeshire County Council,05-May-23,51301979355,"3,425.85",ETHELDRED HOUSE,CARE ESTABLISHMENT,OPPD - Cost of Care - City South Blocks,City and South - Long term blocks,Nursing Care
Cambridgeshire County Council,05-May-23,51301979355,"3,425.85",ETHELDRED HOUSE,CARE ESTABLISHMENT,OPPD - Cost of Care - City South Blocks,City and South - Long term blocks,Nursing Care
Cambridgeshire County Council,05-May-23,51301979355,"3,425.85",ETHELDRED HOUSE,CARE ESTABLISHMENT,OPPD - Cost of Care - City South Blocks,City and South - Long term blocks,Nursing Care
Cambridgeshire County Council,05-May-23,51301979355,"3,425.85",ETHELDRED HOUSE,CARE ESTABLISHMENT,OPPD - Cost of Care - City South Blocks,City and South - Long term blocks,Nursing Care
Cambridgeshire County Council,05-May-23,51301979367,"3,452.05",Beaumont HEALTHCARE LTD,CARE ESTABLISHMENT,Commissioning - Dom Cars,Hunts - Dom Blocks,Domiciliary Care
Cambridgeshire County Council,05-May-23,51301979367,"3,452.05",Beaumont HEALTHCARE LTD,CARE ESTABLISHMENT,Commissioning - Dom Cars,Hunts - Dom Blocks,Domiciliary Care
Cambridgeshire County Council,05-May-23,51301979367,"3,452.05",Beaumont HEALTHCARE LTD,CARE ESTABLISHMENT,Commissioning - Dom Cars,Hunts - Dom Blocks,Domiciliary Care
Cambridgeshire County Council,05-May-23,51301979367,"3,452.05",Beaumont HEALTHCARE LTD,CARE ESTABLISHMENT,Commissioning - Dom Cars,Hunts - Dom Blocks,Domiciliary Care
Cambridgeshire County Council,05-May-23,51301979527,"3,462.86",NEXUS FOSTERING LTD,CARE ESTABLISHMENT,LAC Placements,Placements - independent fostering,Agency Placements - Out of  County
Cambridgeshire County Council,05-May-23,51301979397,"3,467.19",RADIS COMMUNITY CARE,CARE ESTABLISHMENT,OPPD - Cost of Care - Huntingdon - Over 65,Hunts OP Team - Care,Supported Living
Cambridgeshire County Council,05-May-23,51301979397,"3,467.19",RADIS COMMUNITY CARE,CARE ESTABLISHMENT,OPPD - Cost of Care - Huntingdon - Over 65,Hunts OP Team - Care,Supported Living
Cambridgeshire County Council,05-May-23,51301979397,"3,467.19",RADIS COMMUNITY CARE,CARE ESTABLISHMENT,OPPD - Cost of Care - Huntingdon - Over 65,Hunts OP Team - Care,Supported Living
Cambridgeshire County Council,05-May-23,51301979397,"3,467.19",RADIS COMMUNITY CARE,CARE ESTABLISHMENT,OPPD - Cost of Care - Huntingdon - Over 65,Hunts OP Team - Care,Supported Living
Cambridgeshire County Council,05-May-23,51301979394,"3,467.19",RADIS COMMUNITY CARE,CARE ESTABLISHMENT,OPPD - Cost of Care - Fenland - Over 65,Older People - Fenland - Care,Supported Living
Cambridgeshire County Council,05-May-23,51301979394,"3,467.19",RADIS COMMUNITY CARE,CARE ESTABLISHMENT,OPPD - Cost of Care - Fenland - Over 65,Older People - Fenland - Care,Supported Living
Cambridgeshire County Council,05-May-23,51301979394,"3,467.19",RADIS COMMUNITY CARE,CARE ESTABLISHMENT,OPPD - Cost of Care - Fenland - Over 65,Older People - Fenland - Care,Supported Living
Cambridgeshire County Council,05-May-23,51301979394,"3,467.19",RADIS COMMUNITY CARE,CARE ESTABLISHMENT,OPPD - Cost of Care - Fenland - Over 65,Older People - Fenland - Care,Supported Living
Cambridgeshire County Council,05-May-23,51301979188,"3,467.62",SHAOBINWU LTD,COMPANY,Coroners,Coroners General,Professional Fees and Hired Services
Cambridgeshire County Council,05-May-23,51301979528,"3,480.00",NEXUS FOSTERING LTD,CARE ESTABLISHMENT,LAC Placements,Placements - independent fostering,Agency Placements - Out of  County
Cambridgeshire County Council,05-May-23,51301979534,"3,480.00",NEXUS FOSTERING LTD,CARE ESTABLISHMENT,LAC Placements,Placements - independent fostering,Agency Placements - In County
Cambridgeshire County Council,05-May-23,51301979535,"3,480.00",NEXUS FOSTERING LTD,CARE ESTABLISHMENT,LAC Placements,Placements - independent fostering,Agency Placements - In County
Cambridgeshire County Council,05-May-23,51301979536,"3,480.00",NEXUS FOSTERING LTD,CARE ESTABLISHMENT,LAC Placements,Placements - independent fostering,Agency Placements - Out of  County
Cambridgeshire County Council,05-May-23,51301979521,"3,480.00",NEXUS FOSTERING LTD,CARE ESTABLISHMENT,LAC Placements,Placements - independent fostering,Agency Placements - In County
Cambridgeshire County Council,05-May-23,51301979524,"3,480.00",NEXUS FOSTERING LTD,CARE ESTABLISHMENT,LAC Placements,Placements - independent fostering,Agency Placements - In County
Cambridgeshire County Council,05-May-23,51301979525,"3,480.00",NEXUS FOSTERING LTD,CARE ESTABLISHMENT,LAC Placements,Placements - independent fostering,Agency Placements - In County
Cambridgeshire County Council,05-May-23,51301979515,"3,480.00",NEXUS FOSTERING LTD,CARE ESTABLISHMENT,LAC Placements,Placements - independent fostering,Agency Placements - Out of  County
Cambridgeshire County Council,05-May-23,51301979508,"3,480.00",NEXUS FOSTERING LTD,CARE ESTABLISHMENT,LAC Placements,Placements - independent fostering,Agency Placements - In County
Cambridgeshire County Council,05-May-23,51301979509,"3,480.00",NEXUS FOSTERING LTD,CARE ESTABLISHMENT,LAC Placements,Placements - independent fostering,Agency Placements - Out of  County
Cambridgeshire County Council,05-May-23,51301979562,"3,488.00",CAMBRIDGE CITY COUNCIL,OTHER PUBLIC BODIES,Corporate Offices,Roger Ascham Library,Business rates
Cambridgeshire County Council,05-May-23,51301927576,"3,533.09",CAE Technology Servcies,COMPANY,ICT Service,ICT Service Sales,Materials for resale
Cambridgeshire County Council,05-May-23,51301979381,"3,534.55",BUCHAN HEALTHCARE LTD,CARE ESTABLISHMENT,OPPD - Cost of Care - City South Blocks,City and South - Long term blocks,Nursing Care
Cambridgeshire County Council,05-May-23,51301979386,"3,534.55",ST GEORGE'S COURT,CARE ESTABLISHMENT,OPPD - Cost of Care - City South Blocks,City and South - Long term blocks,Nursing Care
Cambridgeshire County Council,05-May-23,51301979386,"3,534.55",ST GEORGE'S COURT,CARE ESTABLISHMENT,OPPD - Cost of Care - City South Blocks,City and South - Long term blocks,Nursing Care
Cambridgeshire County Council,05-May-23,51301979386,"3,534.55",ST GEORGE'S COURT,CARE ESTABLISHMENT,OPPD - Cost of Care - City South Blocks,City and South - Long term blocks,Nursing Care
Cambridgeshire County Council,05-May-23,51301979386,"3,534.55",ST GEORGE'S COURT,CARE ESTABLISHMENT,OPPD - Cost of Care - City South Blocks,City and South - Long term blocks,Nursing Care
Cambridgeshire County Council,05-May-23,51301979381,"3,534.55",BUCHAN HEALTHCARE LTD,CARE ESTABLISHMENT,OPPD - Cost of Care - City South Blocks,City and South - Long term blocks,Nursing Care
Cambridgeshire County Council,05-May-23,51301979381,"3,534.55",BUCHAN HEALTHCARE LTD,CARE ESTABLISHMENT,OPPD - Cost of Care - City South Blocks,City and South - Long term blocks,Nursing Care
Cambridgeshire County Council,05-May-23,51301979381,"3,534.55",BUCHAN HEALTHCARE LTD,CARE ESTABLISHMENT,OPPD - Cost of Care - City South Blocks,City and South - Long term blocks,Nursing Care
Cambridgeshire County Council,05-May-23,51301979326,"3,535.71",Eastern Family Services Ltd t/a Eastern Fostering Services,CARE ESTABLISHMENT,LAC Placements,Placements - independent fostering,Agency Placements - Out of  County
Cambridgeshire County Council,05-May-23,51301979333,"3,535.71",Eastern Family Services Ltd t/a Eastern Fostering Services,CARE ESTABLISHMENT,LAC Placements,Placements - independent fostering,Agency Placements - Out of  County
Cambridgeshire County Council,05-May-23,51301979753,"3,563.00",HUNTINGDONSHIRE DISTRICT COUNCIL,OTHER PUBLIC BODIES,Corporate Offices,Vantage House,Business rates
Cambridgeshire County Council,05-May-23,51301979517,"3,570.00",NEXUS FOSTERING LTD,CARE ESTABLISHMENT,LAC Placements,Placements - independent fostering,Agency Placements - In County
Cambridgeshire County Council,05-May-23,51301979476,"3,575.40",FUTURES FOR CHILDREN LTD,CARE ESTABLISHMENT,LAC Placements,Placements - independent fostering,Agency Placements - Out of  County
Cambridgeshire County Council,05-May-23,51301979478,"3,582.60",FOSTERING PEOPLE,CARE ESTABLISHMENT,LAC Placements,Placements - independent fostering,Agency Placements - Out of  County
Cambridgeshire County Council,05-May-23,51301979487,"3,591.21",ALLIANCE FOSTER CARE LTD,CARE ESTABLISHMENT,LAC Placements,Placements - independent fostering,Agency Placements - In County
Cambridgeshire County Council,05-May-23,51301979489,"3,591.21",ALLIANCE FOSTER CARE LTD,CARE ESTABLISHMENT,LAC Placements,Placements - independent fostering,Agency Placements - In County
Cambridgeshire County Council,05-May-23,51301979491,"3,591.21",ALLIANCE FOSTER CARE LTD,CARE ESTABLISHMENT,LAC Placements,Placements - independent fostering,Agency Placements - Out of  County
Cambridgeshire County Council,05-May-23,51301979864,"3,600.00",ST CHRISTOPHER'S FELLOWSHIP,CARE ESTABLISHMENT,LAC Placements,Placements - independent fostering,Agency Placements - Out of  County
Cambridgeshire County Council,05-May-23,51301979866,"3,600.00",ST CHRISTOPHER'S FELLOWSHIP,CARE ESTABLISHMENT,LAC Placements,Placements - independent fostering,Agency Placements - Out of  County
Cambridgeshire County Council,05-May-23,51301979868,"3,600.00",ST CHRISTOPHER'S FELLOWSHIP,CARE ESTABLISHMENT,LAC Placements,Placements - independent fostering,Agency Placements - Out of  County
Cambridgeshire County Council,05-May-23,51301979482,"3,601.71",ALLIANCE FOSTER CARE LTD,CARE ESTABLISHMENT,LAC Placements,Placements - independent fostering,Agency Placements - In County
Cambridgeshire County Council,05-May-23,51301979485,"3,601.71",ALLIANCE FOSTER CARE LTD,CARE ESTABLISHMENT,LAC Placements,Placements - independent fostering,Agency Placements - Out of  County
Cambridgeshire County Council,05-May-23,51301979495,"3,604.97",ALLIANCE FOSTER CARE LTD,CARE ESTABLISHMENT,LAC Placements,Placements - independent fostering,Agency Placements - In County
Cambridgeshire County Council,05-May-23,51301979871,"3,621.43",Regional Fostering Services Ltd,CARE ESTABLISHMENT,LAC Placements,Placements - independent fostering,Agency Placements - Out of  County
Cambridgeshire County Council,05-May-23,51301979347,"3,622.50",GLENNFIELD CARE CENTRE (OP),CARE ESTABLISHMENT,OPPD - Cost of Care - Fenland Blocks,Fenland - Long term blocks,Nursing Care
Cambridgeshire County Council,05-May-23,51301979347,"3,622.50",GLENNFIELD CARE CENTRE (OP),CARE ESTABLISHMENT,OPPD - Cost of Care - Fenland Blocks,Fenland - Long term blocks,Nursing Care
Cambridgeshire County Council,05-May-23,51301979347,"3,622.50",GLENNFIELD CARE CENTRE (OP),CARE ESTABLISHMENT,OPPD - Cost of Care - Fenland Blocks,Fenland - Long term blocks,Nursing Care
Cambridgeshire County Council,05-May-23,51301979347,"3,622.50",GLENNFIELD CARE CENTRE (OP),CARE ESTABLISHMENT,OPPD - Cost of Care - Fenland Blocks,Fenland - Long term blocks,Nursing Care
Cambridgeshire County Council,05-May-23,51301979346,"3,622.50",SWAN HOUSE NURSING & RESIDENTIAL HOME,CARE ESTABLISHMENT,OPPD - Cost of Care - Fenland Blocks,Fenland - Long term blocks,Nursing Care
Cambridgeshire County Council,05-May-23,51301979346,"3,622.50",SWAN HOUSE NURSING & RESIDENTIAL HOME,CARE ESTABLISHMENT,OPPD - Cost of Care - Fenland Blocks,Fenland - Long term blocks,Nursing Care
Cambridgeshire County Council,05-May-23,51301979346,"3,622.50",SWAN HOUSE NURSING & RESIDENTIAL HOME,CARE ESTABLISHMENT,OPPD - Cost of Care - Fenland Blocks,Fenland - Long term blocks,Nursing Care
Cambridgeshire County Council,05-May-23,51301979346,"3,622.50",SWAN HOUSE NURSING & RESIDENTIAL HOME,CARE ESTABLISHMENT,OPPD - Cost of Care - Fenland Blocks,Fenland - Long term blocks,Nursing Care
Cambridgeshire County Council,05-May-23,51301979391,"3,632.88",SPRINGFIELD RESIDENTIAL CARE,CARE ESTABLISHMENT,OPPD - Cost of Care - Fenland Blocks,Fenland - Short term blocks,Rehabilitation And Respite Care
Cambridgeshire County Council,05-May-23,51301979391,"3,632.88",SPRINGFIELD RESIDENTIAL CARE,CARE ESTABLISHMENT,OPPD - Cost of Care - Fenland Blocks,Fenland - Short term blocks,Rehabilitation And Respite Care
Cambridgeshire County Council,05-May-23,51301979391,"3,632.88",SPRINGFIELD RESIDENTIAL CARE,CARE ESTABLISHMENT,OPPD - Cost of Care - Fenland Blocks,Fenland - Short term blocks,Rehabilitation And Respite Care
Cambridgeshire County Council,05-May-23,51301979391,"3,632.88",SPRINGFIELD RESIDENTIAL CARE,CARE ESTABLISHMENT,OPPD - Cost of Care - Fenland Blocks,Fenland - Short term blocks,Rehabilitation And Respite Care
Cambridgeshire County Council,05-May-23,51301979343,"3,666.86",RHEOLA HEALTHCARE,CARE ESTABLISHMENT,OPPD - Cost of Care - Huntingdon Blocks,Hunts - Long term blocks,Residential Care
Cambridgeshire County Council,05-May-23,51301979499,"3,672.86",LITTLE ACORNS FOSTERING LTD,CARE ESTABLISHMENT,LAC Placements,Placements - independent fostering,Agency Placements - Out of  County
Cambridgeshire County Council,05-May-23,51301979505,"3,672.86",LITTLE ACORNS FOSTERING LTD,CARE ESTABLISHMENT,LAC Placements,Placements - independent fostering,Agency Placements - In County
Cambridgeshire County Council,05-May-23,51301979861,"3,720.00",ST CHRISTOPHER'S FELLOWSHIP,CARE ESTABLISHMENT,LAC Placements,Placements - independent fostering,Agency Placements - Out of  County
Cambridgeshire County Council,05-May-23,51301979537,"3,720.00",FOSTER CARE ASSOCIATES LTD (FCA),CARE ESTABLISHMENT,LAC Placements,Placements - independent fostering,Agency Placements - Out of  County
Cambridgeshire County Council,05-May-23,51301979538,"3,720.00",FOSTER CARE ASSOCIATES LTD (FCA),CARE ESTABLISHMENT,LAC Placements,Placements - independent fostering,Agency Placements - Out of  County
Cambridgeshire County Council,05-May-23,51301979469,"3,720.00",FOSTER CARE ASSOCIATES LTD (FCA),CARE ESTABLISHMENT,LAC Placements,Placements - independent fostering,Agency Placements - Out of  County
Cambridgeshire County Council,05-May-23,51301979470,"3,720.30",FOSTER CARE ASSOCIATES LTD (FCA),CARE ESTABLISHMENT,LAC Placements,Placements - independent fostering,Agency Placements - Out of  County
Cambridgeshire County Council,05-May-23,51301979347,"3,726.00",GLENNFIELD CARE CENTRE (OP),CARE ESTABLISHMENT,OPPD - Cost of Care - Fenland Blocks,Fenland - Long term blocks,Nursing Care
Cambridgeshire County Council,05-May-23,51301979347,"3,726.00",GLENNFIELD CARE CENTRE (OP),CARE ESTABLISHMENT,OPPD - Cost of Care - Fenland Blocks,Fenland - Long term blocks,Nursing Care
Cambridgeshire County Council,05-May-23,51301979347,"3,726.00",GLENNFIELD CARE CENTRE (OP),CARE ESTABLISHMENT,OPPD - Cost of Care - Fenland Blocks,Fenland - Long term blocks,Nursing Care
Cambridgeshire County Council,05-May-23,51301979347,"3,726.00",GLENNFIELD CARE CENTRE (OP),CARE ESTABLISHMENT,OPPD - Cost of Care - Fenland Blocks,Fenland - Long term blocks,Nursing Care
Cambridgeshire County Council,05-May-23,51301979354,"3,765.49",RADIS COMMUNITY CARE,CARE ESTABLISHMENT,OPPD - Cost of Care - Huntingdon - Over 65,Hunts OP Team - Care,Supported Living
Cambridgeshire County Council,05-May-23,51301979354,"3,765.49",RADIS COMMUNITY CARE,CARE ESTABLISHMENT,OPPD - Cost of Care - Huntingdon - Over 65,Hunts OP Team - Care,Supported Living
Cambridgeshire County Council,05-May-23,51301979354,"3,765.49",RADIS COMMUNITY CARE,CARE ESTABLISHMENT,OPPD - Cost of Care - Huntingdon - Over 65,Hunts OP Team - Care,Supported Living
Cambridgeshire County Council,05-May-23,51301979412,"3,778.07",Redacted Personal Data,INDIVIDUAL,Children's Disability Direct Payments,CSC Direct Payments,Direct Payments
Cambridgeshire County Council,05-May-23,51301979507,"3,805.71",LITTLE ACORNS FOSTERING LTD,CARE ESTABLISHMENT,LAC Placements,Placements - independent fostering,Agency Placements - Out of  County
Cambridgeshire County Council,05-May-23,51301979540,"3,810.00",FOSTERPLUS LTD,CARE ESTABLISHMENT,LAC Placements,Placements - independent fostering,Agency Placements - Out of  County
Cambridgeshire County Council,05-May-23,51301979541,"3,810.00",FOSTERPLUS LTD,CARE ESTABLISHMENT,LAC Placements,Placements - independent fostering,Agency Placements - Out of  County
Cambridgeshire County Council,05-May-23,51301979501,"3,814.29",LITTLE ACORNS FOSTERING LTD,CARE ESTABLISHMENT,LAC Placements,Placements - independent fostering,Agency Placements - Out of  County
Cambridgeshire County Council,05-May-23,51301979502,"3,814.29",LITTLE ACORNS FOSTERING LTD,CARE ESTABLISHMENT,LAC Placements,Placements - independent fostering,Agency Placements - In County
Cambridgeshire County Council,05-May-23,51301979497,"3,814.29",LITTLE ACORNS FOSTERING LTD,CARE ESTABLISHMENT,LAC Placements,Placements - independent fostering,Agency Placements - Out of  County
Cambridgeshire County Council,05-May-23,51301979879,"3,835.50",People Who Foster Ltd,CARE ESTABLISHMENT,LAC Placements,Placements - independent fostering,Agency Placements - Out of  County
Cambridgeshire County Council,05-May-23,51301979472,"3,843.00",Flourish Fostering Ltd,CARE ESTABLISHMENT,LAC Placements,Placements - independent fostering,Agency Placements - Out of  County
Cambridgeshire County Council,05-May-23,51301979306,"3,857.14",Affinity Fostering Services Ltd,CARE ESTABLISHMENT,LAC Placements,Placements - independent fostering,Agency Placements - Out of  County
Cambridgeshire County Council,05-May-23,51301979309,"3,857.14",Affinity Fostering Services Ltd,CARE ESTABLISHMENT,LAC Placements,Placements - independent fostering,Agency Placements - Out of  County
Cambridgeshire County Council,05-May-23,51301979676,"3,917.00",FENLAND DISTRICT COUNCIL,OTHER PUBLIC BODIES,Commercial Activity,Cromwell Leisure Park,Business rates
Cambridgeshire County Council,05-May-23,51301979041,"3,918.85",BG Children�s Care Homes Limited,COMPANY,Unaccompanied Asylum Seeking Children,Separated Migrant Children < 18,Asylum Seekers
Cambridgeshire County Council,05-May-23,51301979724,"3,968.00",HUNTINGDONSHIRE DISTRICT COUNCIL,OTHER PUBLIC BODIES,Corporate Offices,Speke House,Business rates
Cambridgeshire County Council,05-May-23,51301979711,"3,994.00",HUNTINGDONSHIRE DISTRICT COUNCIL,OTHER PUBLIC BODIES,Corporate Offices,Buttsgrove,Business rates
Cambridgeshire County Council,05-May-23,51301979675,"4,021.00",FENLAND DISTRICT COUNCIL,OTHER PUBLIC BODIES,Corporate Offices,Hereward Hall,Business rates
Cambridgeshire County Council,05-May-23,51301979475,"4,050.00",Flourish Fostering Ltd,CARE ESTABLISHMENT,LAC Placements,Placements - independent fostering,Agency Placements - Out of  County
Cambridgeshire County Council,05-May-23,51301979479,"4,064.40",FOSTERING PEOPLE,CARE ESTABLISHMENT,LAC Placements,Placements - independent fostering,Agency Placements - Out of  County
Cambridgeshire County Council,05-May-23,51301979587,"4,094.28",PATACAKE DAY NURSERY LTD,NURSERY,SEND High Needs Top Up,High Needs Top Up - Early Years,Independent School Placements
Cambridgeshire County Council,05-May-23,51301979651,"4,096.00",EAST CAMBRIDGESHIRE DISTRICT COUNCIL,OTHER PUBLIC BODIES,County Farms,"Triangle Solar Farm, Soham",Business rates
Cambridgeshire County Council,05-May-23,51301979413,"4,114.07",Redacted Personal Data,INDIVIDUAL,Children's Disability Direct Payments,CSC Direct Payments,Direct Payments
Cambridgeshire County Council,05-May-23,51301979351,"4,137.30",RADIS COMMUNITY CARE,CARE ESTABLISHMENT,OPPD - Cost of Care - East Cambs - Over 65,East Cambs - O P Team - Care,Supported Living
Cambridgeshire County Council,05-May-23,51301979351,"4,137.30",RADIS COMMUNITY CARE,CARE ESTABLISHMENT,OPPD - Cost of Care - East Cambs - Over 65,East Cambs - O P Team - Care,Supported Living
Cambridgeshire County Council,05-May-23,51301979351,"4,137.30",RADIS COMMUNITY CARE,CARE ESTABLISHMENT,OPPD - Cost of Care - East Cambs - Over 65,East Cambs - O P Team - Care,Supported Living
Cambridgeshire County Council,05-May-23,51301979351,"4,137.30",RADIS COMMUNITY CARE,CARE ESTABLISHMENT,OPPD - Cost of Care - East Cambs - Over 65,East Cambs - O P Team - Care,Supported Living
Cambridgeshire County Council,05-May-23,51301979355,"4,140.00",ETHELDRED HOUSE,CARE ESTABLISHMENT,OPPD - Cost of Care - City South Blocks,City and South - Long term blocks,Nursing Care
Cambridgeshire County Council,05-May-23,51301979355,"4,140.00",ETHELDRED HOUSE,CARE ESTABLISHMENT,OPPD - Cost of Care - City South Blocks,City and South - Long term blocks,Nursing Care
Cambridgeshire County Council,05-May-23,51301979355,"4,140.00",ETHELDRED HOUSE,CARE ESTABLISHMENT,OPPD - Cost of Care - City South Blocks,City and South - Long term blocks,Nursing Care
Cambridgeshire County Council,05-May-23,51301979355,"4,140.00",ETHELDRED HOUSE,CARE ESTABLISHMENT,OPPD - Cost of Care - City South Blocks,City and South - Long term blocks,Nursing Care
Cambridgeshire County Council,05-May-23,51301979471,"4,260.00",FOSTER CARE ASSOCIATES LTD (FCA),CARE ESTABLISHMENT,LAC Placements,Placements - independent fostering,Agency Placements - Out of  County
Cambridgeshire County Council,05-May-23,51301979588,"4,261.53",UNDER FIVES ROUNDABOUT,NURSERY,SEND High Needs Top Up,High Needs Top Up - Early Years,Independent School Placements
Cambridgeshire County Council,05-May-23,51301979869,"4,264.29",Regional Fostering Services Ltd,CARE ESTABLISHMENT,LAC Placements,Placements - independent fostering,Agency Placements - Out of  County
Cambridgeshire County Council,05-May-23,51301979336,"4,264.29",Eastern Family Services Ltd t/a Eastern Fostering Services,CARE ESTABLISHMENT,LAC Placements,Placements - independent fostering,Agency Placements - In County
Cambridgeshire County Council,05-May-23,51301979352,"4,266.73",RADIS COMMUNITY CARE,CARE ESTABLISHMENT,OPPD - Cost of Care - East Cambs - Over 65,East Cambs - O P Team - Care,Supported Living
Cambridgeshire County Council,05-May-23,51301979352,"4,266.73",RADIS COMMUNITY CARE,CARE ESTABLISHMENT,OPPD - Cost of Care - East Cambs - Over 65,East Cambs - O P Team - Care,Supported Living
Cambridgeshire County Council,05-May-23,51301979352,"4,266.73",RADIS COMMUNITY CARE,CARE ESTABLISHMENT,OPPD - Cost of Care - East Cambs - Over 65,East Cambs - O P Team - Care,Supported Living
Cambridgeshire County Council,05-May-23,51301979352,"4,266.73",RADIS COMMUNITY CARE,CARE ESTABLISHMENT,OPPD - Cost of Care - East Cambs - Over 65,East Cambs - O P Team - Care,Supported Living
Cambridgeshire County Council,05-May-23,51301979361,"4,295.25",Maven Healthcare,CARE ESTABLISHMENT,OPPD - Cost of Care - City South Blocks,City and South - Long term blocks,Nursing Care
Cambridgeshire County Council,05-May-23,51301979361,"4,295.25",Maven Healthcare,CARE ESTABLISHMENT,OPPD - Cost of Care - City South Blocks,City and South - Long term blocks,Nursing Care
Cambridgeshire County Council,05-May-23,51301979361,"4,295.25",Maven Healthcare,CARE ESTABLISHMENT,OPPD - Cost of Care - City South Blocks,City and South - Long term blocks,Nursing Care
Cambridgeshire County Council,05-May-23,51301979361,"4,295.25",Maven Healthcare,CARE ESTABLISHMENT,OPPD - Cost of Care - City South Blocks,City and South - Long term blocks,Nursing Care
Cambridgeshire County Council,05-May-23,51301979361,"4,295.25",Maven Healthcare,CARE ESTABLISHMENT,OPPD - Cost of Care - City South Blocks,City and South - Long term blocks,Nursing Care
Cambridgeshire County Council,05-May-23,51301979361,"4,295.25",Maven Healthcare,CARE ESTABLISHMENT,OPPD - Cost of Care - City South Blocks,City and South - Long term blocks,Nursing Care
Cambridgeshire County Council,05-May-23,51301979717,"4,334.00",HUNTINGDONSHIRE DISTRICT COUNCIL,OTHER PUBLIC BODIES,Corporate Offices,Huntingdon Highways Depot,Business rates
Cambridgeshire County Council,05-May-23,51301979391,"4,347.00",SPRINGFIELD RESIDENTIAL CARE,CARE ESTABLISHMENT,OPPD - Cost of Care - Fenland Blocks,Fenland - Short term blocks,Rehabilitation And Respite Care
Cambridgeshire County Council,05-May-23,51301979391,"4,347.00",SPRINGFIELD RESIDENTIAL CARE,CARE ESTABLISHMENT,OPPD - Cost of Care - Fenland Blocks,Fenland - Short term blocks,Rehabilitation And Respite Care
Cambridgeshire County Council,05-May-23,51301979391,"4,347.00",SPRINGFIELD RESIDENTIAL CARE,CARE ESTABLISHMENT,OPPD - Cost of Care - Fenland Blocks,Fenland - Short term blocks,Rehabilitation And Respite Care
Cambridgeshire County Council,05-May-23,51301979391,"4,347.00",SPRINGFIELD RESIDENTIAL CARE,CARE ESTABLISHMENT,OPPD - Cost of Care - Fenland Blocks,Fenland - Short term blocks,Rehabilitation And Respite Care
Cambridgeshire County Council,05-May-23,51301979785,"4,403.00",SOUTH CAMBRIDGESHIRE DISTRICT COUNCIL,OTHER PUBLIC BODIES,Corporate Offices,Sackville House (Cambourne),Business rates
Cambridgeshire County Council,05-May-23,51301979672,"4,454.00",FENLAND DISTRICT COUNCIL,OTHER PUBLIC BODIES,Corporate Offices,March Library,Business rates
Cambridgeshire County Council,05-May-23,51301979185,"4,469.56",Redacted Personal Data,INDIVIDUAL,SEND High Needs Top Up,Personal Budgets,Independent School Placements
Cambridgeshire County Council,05-May-23,51301979612,"4,531.00",EAST CAMBRIDGESHIRE DISTRICT COUNCIL,OTHER PUBLIC BODIES,Corporate Offices,Noble House,Business rates
Cambridgeshire County Council,05-May-23,51301979317,"4,714.29",CREDO CARE,CARE ESTABLISHMENT,LAC Placements,Placements - independent fostering,Agency Placements - Out of  County
Cambridgeshire County Council,05-May-23,51301979401,"4,717.81",Careuk247 Home Care Ltd,COMPANY,Commissioning - Dom Cars,Hancock-Funded Dom-Cars,Domiciliary Care
Cambridgeshire County Council,05-May-23,51301979401,"4,717.81",Careuk247 Home Care Ltd,COMPANY,Commissioning - Dom Cars,Hancock-Funded Dom-Cars,Domiciliary Care
Cambridgeshire County Council,05-May-23,51301979401,"4,717.81",Careuk247 Home Care Ltd,COMPANY,Commissioning - Dom Cars,Hancock-Funded Dom-Cars,Domiciliary Care
Cambridgeshire County Council,05-May-23,51301979401,"4,717.81",Careuk247 Home Care Ltd,COMPANY,Commissioning - Dom Cars,Hancock-Funded Dom-Cars,Domiciliary Care
Cambridgeshire County Council,05-May-23,51301979828,"4,740.00",COMPUTACENTER (UK) LIMITED,COMPANY,Corporate IT Managed,Hardware & Infrastructure,Computer hardware - purchase
Cambridgeshire County Council,05-May-23,51301979369,"4,745.37",BROOKFIELD CARE (Radis Commnity Care),CARE ESTABLISHMENT,Commissioning - Dom Cars,Hunts - Dom Blocks,Domiciliary Care
Cambridgeshire County Council,05-May-23,51301979369,"4,745.37",BROOKFIELD CARE (Radis Commnity Care),CARE ESTABLISHMENT,Commissioning - Dom Cars,Hunts - Dom Blocks,Domiciliary Care
Cambridgeshire County Council,05-May-23,51301979369,"4,745.37",BROOKFIELD CARE (Radis Commnity Care),CARE ESTABLISHMENT,Commissioning - Dom Cars,Hunts - Dom Blocks,Domiciliary Care
Cambridgeshire County Council,05-May-23,51301979369,"4,745.37",BROOKFIELD CARE (Radis Commnity Care),CARE ESTABLISHMENT,Commissioning - Dom Cars,Hunts - Dom Blocks,Domiciliary Care
Cambridgeshire County Council,05-May-23,51301979365,"4,758.97",MEARS CARE LTD,CARE ESTABLISHMENT,OPPD - Cost of Care - Fenland - Over 65,Older People - Fenland - Care,Supported Living
Cambridgeshire County Council,05-May-23,51301979365,"4,758.97",MEARS CARE LTD,CARE ESTABLISHMENT,OPPD - Cost of Care - Fenland - Over 65,Older People - Fenland - Care,Supported Living
Cambridgeshire County Council,05-May-23,51301979365,"4,758.97",MEARS CARE LTD,CARE ESTABLISHMENT,OPPD - Cost of Care - Fenland - Over 65,Older People - Fenland - Care,Supported Living
Cambridgeshire County Council,05-May-23,51301979365,"4,758.97",MEARS CARE LTD,CARE ESTABLISHMENT,OPPD - Cost of Care - Fenland - Over 65,Older People - Fenland - Care,Supported Living
Cambridgeshire County Council,05-May-23,51301979349,"4,796.19",Southwell Court,CARE ESTABLISHMENT,OPPD - Cost of Care - City South Blocks,City and South - Short term blocks,Rehabilitation And Respite Care
Cambridgeshire County Council,05-May-23,51301979349,"4,796.19",Southwell Court,CARE ESTABLISHMENT,OPPD - Cost of Care - City South Blocks,City and South - Short term blocks,Rehabilitation And Respite Care
Cambridgeshire County Council,05-May-23,51301979349,"4,796.19",Southwell Court,CARE ESTABLISHMENT,OPPD - Cost of Care - City South Blocks,City and South - Short term blocks,Rehabilitation And Respite Care
Cambridgeshire County Council,05-May-23,51301979349,"4,796.19",Southwell Court,CARE ESTABLISHMENT,OPPD - Cost of Care - City South Blocks,City and South - Short term blocks,Rehabilitation And Respite Care
Cambridgeshire County Council,05-May-23,51301979362,"4,802.50",BROOKFIELD CARE (Radis Commnity Care),CARE ESTABLISHMENT,Commissioning - Dom Cars,Hancock-Funded Dom-Cars,Domiciliary Care
Cambridgeshire County Council,05-May-23,51301979362,"4,802.50",BROOKFIELD CARE (Radis Commnity Care),CARE ESTABLISHMENT,Commissioning - Dom Cars,Hancock-Funded Dom-Cars,Domiciliary Care
Cambridgeshire County Council,05-May-23,51301979362,"4,802.50",BROOKFIELD CARE (Radis Commnity Care),CARE ESTABLISHMENT,Commissioning - Dom Cars,Hancock-Funded Dom-Cars,Domiciliary Care
Cambridgeshire County Council,05-May-23,51301979362,"4,802.50",BROOKFIELD CARE (Radis Commnity Care),CARE ESTABLISHMENT,Commissioning - Dom Cars,Hancock-Funded Dom-Cars,Domiciliary Care
Cambridgeshire County Council,05-May-23,51301979663,"4,813.00",FENLAND DISTRICT COUNCIL,OTHER PUBLIC BODIES,Corporate Offices,"Awdry House, Wisbech",Business rates
Cambridgeshire County Council,05-May-23,51301979346,"4,843.84",SWAN HOUSE NURSING & RESIDENTIAL HOME,CARE ESTABLISHMENT,OPPD - Cost of Care - Fenland Blocks,Fenland - Long term blocks,Nursing Care
Cambridgeshire County Council,05-May-23,51301979346,"4,843.84",SWAN HOUSE NURSING & RESIDENTIAL HOME,CARE ESTABLISHMENT,OPPD - Cost of Care - Fenland Blocks,Fenland - Long term blocks,Nursing Care
Cambridgeshire County Council,05-May-23,51301979346,"4,843.84",SWAN HOUSE NURSING & RESIDENTIAL HOME,CARE ESTABLISHMENT,OPPD - Cost of Care - Fenland Blocks,Fenland - Long term blocks,Nursing Care
Cambridgeshire County Council,05-May-23,51301979346,"4,843.84",SWAN HOUSE NURSING & RESIDENTIAL HOME,CARE ESTABLISHMENT,OPPD - Cost of Care - Fenland Blocks,Fenland - Long term blocks,Nursing Care
Cambridgeshire County Council,05-May-23,51301979404,"4,871.23",TCS Medicare Ltd (Trinity care),CARE ESTABLISHMENT,Commissioning - Dom Cars,Hancock-Funded Dom-Cars,Domiciliary Care
Cambridgeshire County Council,05-May-23,51301979404,"4,871.23",TCS Medicare Ltd (Trinity care),CARE ESTABLISHMENT,Commissioning - Dom Cars,Hancock-Funded Dom-Cars,Domiciliary Care
Cambridgeshire County Council,05-May-23,51301979404,"4,871.23",TCS Medicare Ltd (Trinity care),CARE ESTABLISHMENT,Commissioning - Dom Cars,Hancock-Funded Dom-Cars,Domiciliary Care
Cambridgeshire County Council,05-May-23,51301979404,"4,871.23",TCS Medicare Ltd (Trinity care),CARE ESTABLISHMENT,Commissioning - Dom Cars,Hancock-Funded Dom-Cars,Domiciliary Care
Cambridgeshire County Council,05-May-23,51301979366,"4,889.66",BROOKFIELD CARE (Radis Commnity Care),CARE ESTABLISHMENT,Commissioning - Dom Cars,City and South - Dom Blocks,Domiciliary Care
Cambridgeshire County Council,05-May-23,51301979366,"4,889.66",BROOKFIELD CARE (Radis Commnity Care),CARE ESTABLISHMENT,Commissioning - Dom Cars,City and South - Dom Blocks,Domiciliary Care
Cambridgeshire County Council,05-May-23,51301979366,"4,889.66",BROOKFIELD CARE (Radis Commnity Care),CARE ESTABLISHMENT,Commissioning - Dom Cars,City and South - Dom Blocks,Domiciliary Care
Cambridgeshire County Council,05-May-23,51301979366,"4,889.66",BROOKFIELD CARE (Radis Commnity Care),CARE ESTABLISHMENT,Commissioning - Dom Cars,City and South - Dom Blocks,Domiciliary Care
Cambridgeshire County Council,05-May-23,51301979875,"4,992.86",CHS GROUP,CARE ESTABLISHMENT,LAC Placements,Placements - supported accommodation,Agency Placements - In County
Cambridgeshire County Council,05-May-23,51301979876,"4,992.86",CHS GROUP,CARE ESTABLISHMENT,LAC Placements,Placements - supported accommodation,Agency Placements - In County
Cambridgeshire County Council,05-May-23,51301979877,"4,992.86",CHS GROUP,CARE ESTABLISHMENT,LAC Placements,Placements - supported accommodation,Agency Placements - In County
Cambridgeshire County Council,05-May-23,51301979878,"4,992.86",CHS GROUP,CARE ESTABLISHMENT,LAC Placements,Placements - supported accommodation,Agency Placements - In County
Cambridgeshire County Council,05-May-23,51301979838,"5,000.00",THE SALVATION ARMY,CHARITY,Targeted Support Service St Neots and RSY,"EH St Neots, RS&Y District Team � Youth Offer",Educational Materials
Cambridgeshire County Council,05-May-23,51301979316,"5,035.71",CAPSTONE FOSTER CARE (SOUTH EAST) LTD,CARE ESTABLISHMENT,LAC Placements,Placements - independent fostering,Agency Placements - Out of  County
Cambridgeshire County Council,05-May-23,51301978965,"5,085.60",ACE NURSERY SCHOOL,NURSERY,SEND High Needs Top Up,High Needs Top Up - Early Years,Independent School Placements
Cambridgeshire County Council,05-May-23,51301979884,"5,100.00",Dreamers Global Ltd,CARE ESTABLISHMENT,LAC Placements,Placements - supported accommodation,Agency Placements - In County
Cambridgeshire County Council,05-May-23,51301979376,"5,132.87",RADIS COMMUNITY CARE,CARE ESTABLISHMENT,OPPD - Cost of Care - Huntingdon - Over 65,Hunts OP Team - Care,Supported Living
Cambridgeshire County Council,05-May-23,51301979376,"5,132.87",RADIS COMMUNITY CARE,CARE ESTABLISHMENT,OPPD - Cost of Care - Huntingdon - Over 65,Hunts OP Team - Care,Supported Living
Cambridgeshire County Council,05-May-23,51301979376,"5,132.87",RADIS COMMUNITY CARE,CARE ESTABLISHMENT,OPPD - Cost of Care - Huntingdon - Over 65,Hunts OP Team - Care,Supported Living
Cambridgeshire County Council,05-May-23,51301979376,"5,132.87",RADIS COMMUNITY CARE,CARE ESTABLISHMENT,OPPD - Cost of Care - Huntingdon - Over 65,Hunts OP Team - Care,Supported Living
Cambridgeshire County Council,05-May-23,51301979370,"5,178.08",Beaumont HEALTHCARE LTD,CARE ESTABLISHMENT,Commissioning - Dom Cars,City and South - Dom Blocks,Domiciliary Care
Cambridgeshire County Council,05-May-23,51301979370,"5,178.08",Beaumont HEALTHCARE LTD,CARE ESTABLISHMENT,Commissioning - Dom Cars,City and South - Dom Blocks,Domiciliary Care
Cambridgeshire County Council,05-May-23,51301979370,"5,178.08",Beaumont HEALTHCARE LTD,CARE ESTABLISHMENT,Commissioning - Dom Cars,City and South - Dom Blocks,Domiciliary Care
Cambridgeshire County Council,05-May-23,51301979370,"5,178.08",Beaumont HEALTHCARE LTD,CARE ESTABLISHMENT,Commissioning - Dom Cars,City and South - Dom Blocks,Domiciliary Care
Cambridgeshire County Council,05-May-23,51301979359,"5,299.20",HARDWICK DENE,CARE ESTABLISHMENT,OPPD - Cost of Care - Huntingdon Blocks,Hunts - Short term blocks,Rehabilitation And Respite Care
Cambridgeshire County Council,05-May-23,51301979359,"5,299.20",HARDWICK DENE,CARE ESTABLISHMENT,OPPD - Cost of Care - Huntingdon Blocks,Hunts - Short term blocks,Rehabilitation And Respite Care
Cambridgeshire County Council,05-May-23,51301979359,"5,299.20",HARDWICK DENE,CARE ESTABLISHMENT,OPPD - Cost of Care - Huntingdon Blocks,Hunts - Short term blocks,Rehabilitation And Respite Care
Cambridgeshire County Council,05-May-23,51301979359,"5,299.20",HARDWICK DENE,CARE ESTABLISHMENT,OPPD - Cost of Care - Huntingdon Blocks,Hunts - Short term blocks,Rehabilitation And Respite Care
Cambridgeshire County Council,05-May-23,51301979343,"5,299.20",RHEOLA HEALTHCARE,CARE ESTABLISHMENT,OPPD - Cost of Care - Huntingdon Blocks,Hunts - Long term blocks,Residential Care
Cambridgeshire County Council,05-May-23,51301979343,"5,299.20",RHEOLA HEALTHCARE,CARE ESTABLISHMENT,OPPD - Cost of Care - Huntingdon Blocks,Hunts - Long term blocks,Residential Care
Cambridgeshire County Council,05-May-23,51301979343,"5,299.20",RHEOLA HEALTHCARE,CARE ESTABLISHMENT,OPPD - Cost of Care - Huntingdon Blocks,Hunts - Long term blocks,Residential Care
Cambridgeshire County Council,05-May-23,51301979343,"5,299.20",RHEOLA HEALTHCARE,CARE ESTABLISHMENT,OPPD - Cost of Care - Huntingdon Blocks,Hunts - Long term blocks,Residential Care
Cambridgeshire County Council,05-May-23,51301979377,"5,396.53",RADIS COMMUNITY CARE,CARE ESTABLISHMENT,OPPD - Cost of Care - East Cambs - Over 65,East Cambs - O P Team - Care,Supported Living
Cambridgeshire County Council,05-May-23,51301979377,"5,396.53",RADIS COMMUNITY CARE,CARE ESTABLISHMENT,OPPD - Cost of Care - East Cambs - Over 65,East Cambs - O P Team - Care,Supported Living
Cambridgeshire County Council,05-May-23,51301979377,"5,396.53",RADIS COMMUNITY CARE,CARE ESTABLISHMENT,OPPD - Cost of Care - East Cambs - Over 65,East Cambs - O P Team - Care,Supported Living
Cambridgeshire County Council,05-May-23,51301979377,"5,396.53",RADIS COMMUNITY CARE,CARE ESTABLISHMENT,OPPD - Cost of Care - East Cambs - Over 65,East Cambs - O P Team - Care,Supported Living
Cambridgeshire County Council,05-May-23,51301979323,"5,400.00",DIVERSE CARE,TRADE SUPPLIER,LAC Placements,Placements - independent fostering,Agency Placements - Out of  County
Cambridgeshire County Council,05-May-23,51301979389,"5,423.44",THE FIRS (Barrels Care),CARE ESTABLISHMENT,OPPD - Cost of Care - East Cambs Blocks,East Cambs � Long term Blocks,Residential Care
Cambridgeshire County Council,05-May-23,51301979389,"5,423.44",THE FIRS (Barrels Care),CARE ESTABLISHMENT,OPPD - Cost of Care - East Cambs Blocks,East Cambs � Long term Blocks,Residential Care
Cambridgeshire County Council,05-May-23,51301979389,"5,423.44",THE FIRS (Barrels Care),CARE ESTABLISHMENT,OPPD - Cost of Care - East Cambs Blocks,East Cambs � Long term Blocks,Residential Care
Cambridgeshire County Council,05-May-23,51301979389,"5,423.44",THE FIRS (Barrels Care),CARE ESTABLISHMENT,OPPD - Cost of Care - East Cambs Blocks,East Cambs � Long term Blocks,Residential Care
Cambridgeshire County Council,05-May-23,51301979615,"5,427.00",EAST CAMBRIDGESHIRE DISTRICT COUNCIL,OTHER PUBLIC BODIES,Corporate Offices,Ely Library,Business rates
Cambridgeshire County Council,05-May-23,51301979723,"5,478.00",HUNTINGDONSHIRE DISTRICT COUNCIL,OTHER PUBLIC BODIES,Corporate Offices,Contact Centre - Amundsen House,Business rates
Cambridgeshire County Council,05-May-23,51301979241,"5,509.40",Cambridge International School & Oaks Nursery,NURSERY,SEND High Needs Top Up,High Needs Top Up - Other Institutions,Independent School Placements
Cambridgeshire County Council,05-May-23,51301979544,"5,562.90",INTEGRATED SERVICES PROGRAMME (ISP),CARE ESTABLISHMENT,LAC Placements,Placements - independent fostering,Agency Placements - Out of  County
Cambridgeshire County Council,05-May-23,51301979558,"5,581.00",CAMBRIDGE CITY COUNCIL,OTHER PUBLIC BODIES,Corporate Offices,Signet Court,Business rates
Cambridgeshire County Council,05-May-23,51301979830,"5,590.50",CAMBRIDGE CITY COUNCIL,OTHER PUBLIC BODIES,Highways Maintenance,Highways Maintenance - Cambridge City,Trees and shrubs
Cambridgeshire County Council,05-May-23,51301979371,"5,796.00",FORD HOUSE CARE HOME,CARE ESTABLISHMENT,OPPD - Cost of Care - Huntingdon - Over 65,Hunts OP Team - Care,Nursing Care
Cambridgeshire County Council,05-May-23,51301979371,"5,796.00",FORD HOUSE CARE HOME,CARE ESTABLISHMENT,OPPD - Cost of Care - Huntingdon - Over 65,Hunts OP Team - Care,Nursing Care
Cambridgeshire County Council,05-May-23,51301979371,"5,796.00",FORD HOUSE CARE HOME,CARE ESTABLISHMENT,OPPD - Cost of Care - Huntingdon - Over 65,Hunts OP Team - Care,Nursing Care
Cambridgeshire County Council,05-May-23,51301979371,"5,796.00",FORD HOUSE CARE HOME,CARE ESTABLISHMENT,OPPD - Cost of Care - Huntingdon - Over 65,Hunts OP Team - Care,Nursing Care
Cambridgeshire County Council,05-May-23,51301979361,"5,796.00",Maven Healthcare,CARE ESTABLISHMENT,OPPD - Cost of Care - City South Blocks,City and South - Long term blocks,Nursing Care
Cambridgeshire County Council,05-May-23,51301979361,"5,796.00",Maven Healthcare,CARE ESTABLISHMENT,OPPD - Cost of Care - City South Blocks,City and South - Long term blocks,Nursing Care
Cambridgeshire County Council,05-May-23,51301979361,"5,796.00",Maven Healthcare,CARE ESTABLISHMENT,OPPD - Cost of Care - City South Blocks,City and South - Long term blocks,Nursing Care
Cambridgeshire County Council,05-May-23,51301979361,"5,796.00",Maven Healthcare,CARE ESTABLISHMENT,OPPD - Cost of Care - City South Blocks,City and South - Long term blocks,Nursing Care
Cambridgeshire County Council,05-May-23,51301979363,"5,849.32",TCS Medicare Ltd (Trinity care),CARE ESTABLISHMENT,Commissioning - Dom Cars,Hancock-Funded Dom-Cars,Domiciliary Care
Cambridgeshire County Council,05-May-23,51301979363,"5,849.32",TCS Medicare Ltd (Trinity care),CARE ESTABLISHMENT,Commissioning - Dom Cars,Hancock-Funded Dom-Cars,Domiciliary Care
Cambridgeshire County Council,05-May-23,51301979363,"5,849.32",TCS Medicare Ltd (Trinity care),CARE ESTABLISHMENT,Commissioning - Dom Cars,Hancock-Funded Dom-Cars,Domiciliary Care
Cambridgeshire County Council,05-May-23,51301979363,"5,849.32",TCS Medicare Ltd (Trinity care),CARE ESTABLISHMENT,Commissioning - Dom Cars,Hancock-Funded Dom-Cars,Domiciliary Care
Cambridgeshire County Council,05-May-23,51301979546,"5,935.71",INTEGRATED SERVICES PROGRAMME (ISP),CARE ESTABLISHMENT,LAC Placements,Placements - independent fostering,Agency Placements - In County
Cambridgeshire County Council,05-May-23,51301979548,"5,935.71",INTEGRATED SERVICES PROGRAMME (ISP),CARE ESTABLISHMENT,LAC Placements,Placements - independent fostering,Agency Placements - Out of  County
Cambridgeshire County Council,05-May-23,51301979543,"5,935.71",INTEGRATED SERVICES PROGRAMME (ISP),CARE ESTABLISHMENT,LAC Placements,Placements - independent fostering,Agency Placements - In County
Cambridgeshire County Council,05-May-23,51301979576,"5,948.96",THE FOSTERING NETWORK,CARE ESTABLISHMENT,Fostering,Fostering Support and Supervision,Professional Fees and Hired Services
Cambridgeshire County Council,05-May-23,51301979318,"5,991.43",CREDO CARE,CARE ESTABLISHMENT,LAC Placements,Placements - independent fostering,Agency Placements - Out of  County
Cambridgeshire County Council,05-May-23,51301979721,"6,144.00",HUNTINGDONSHIRE DISTRICT COUNCIL,OTHER PUBLIC BODIES,Waste Disposal incl PFI,St.Neots HWRC,Business rates
Cambridgeshire County Council,05-May-23,51301979361,"6,624.00",Maven Healthcare,CARE ESTABLISHMENT,OPPD - Cost of Care - City South Blocks,City and South - Long term blocks,Nursing Care
Cambridgeshire County Council,05-May-23,51301979361,"6,624.00",Maven Healthcare,CARE ESTABLISHMENT,OPPD - Cost of Care - City South Blocks,City and South - Long term blocks,Nursing Care
Cambridgeshire County Council,05-May-23,51301979361,"6,624.00",Maven Healthcare,CARE ESTABLISHMENT,OPPD - Cost of Care - City South Blocks,City and South - Long term blocks,Nursing Care
Cambridgeshire County Council,05-May-23,51301979361,"6,624.00",Maven Healthcare,CARE ESTABLISHMENT,OPPD - Cost of Care - City South Blocks,City and South - Long term blocks,Nursing Care
Cambridgeshire County Council,05-May-23,51301979468,"6,642.86",Following Whispers Family Service Consultancy Ltd,CARE ESTABLISHMENT,LAC Placements,Placements - independent fostering,Agency Placements - Out of  County
Cambridgeshire County Council,05-May-23,51301979378,"7,181.21",RADIS COMMUNITY CARE,CARE ESTABLISHMENT,OPPD - Cost of Care - Fenland - Over 65,Older People - Fenland - Care,Supported Living
Cambridgeshire County Council,05-May-23,51301979378,"7,181.21",RADIS COMMUNITY CARE,CARE ESTABLISHMENT,OPPD - Cost of Care - Fenland - Over 65,Older People - Fenland - Care,Supported Living
Cambridgeshire County Council,05-May-23,51301979378,"7,181.21",RADIS COMMUNITY CARE,CARE ESTABLISHMENT,OPPD - Cost of Care - Fenland - Over 65,Older People - Fenland - Care,Supported Living
Cambridgeshire County Council,05-May-23,51301979378,"7,181.21",RADIS COMMUNITY CARE,CARE ESTABLISHMENT,OPPD - Cost of Care - Fenland - Over 65,Older People - Fenland - Care,Supported Living
Cambridgeshire County Council,05-May-23,51301979708,"7,389.00",HUNTINGDONSHIRE DISTRICT COUNCIL,OTHER PUBLIC BODIES,Grafham Water,Grafham Water Centre,Business rates
Cambridgeshire County Council,05-May-23,51301979374,"7,493.40",HUNTERS HEALTHCARE (HUNTERS DOWN),CARE ESTABLISHMENT,OPPD - Cost of Care - Huntingdon Blocks,Hunts - Long term blocks,Nursing Care
Cambridgeshire County Council,05-May-23,51301979374,"7,493.40",HUNTERS HEALTHCARE (HUNTERS DOWN),CARE ESTABLISHMENT,OPPD - Cost of Care - Huntingdon Blocks,Hunts - Long term blocks,Nursing Care
Cambridgeshire County Council,05-May-23,51301979374,"7,493.40",HUNTERS HEALTHCARE (HUNTERS DOWN),CARE ESTABLISHMENT,OPPD - Cost of Care - Huntingdon Blocks,Hunts - Long term blocks,Nursing Care
Cambridgeshire County Council,05-May-23,51301979374,"7,493.40",HUNTERS HEALTHCARE (HUNTERS DOWN),CARE ESTABLISHMENT,OPPD - Cost of Care - Huntingdon Blocks,Hunts - Long term blocks,Nursing Care
Cambridgeshire County Council,05-May-23,51301979654,"7,827.30",PARSON DROVE PRE SCHOOL,NURSERY,SEND High Needs Top Up,High Needs Top Up - Early Years,Independent School Placements
Cambridgeshire County Council,05-May-23,51301979815,"7,936.00",SOUTH CAMBRIDGESHIRE DISTRICT COUNCIL,OTHER PUBLIC BODIES,Park & Ride Parking,Newmarket Road P & R,Business rates
Cambridgeshire County Council,05-May-23,51301979374,"7,948.80",HUNTERS HEALTHCARE (HUNTERS DOWN),CARE ESTABLISHMENT,OPPD - Cost of Care - Huntingdon Blocks,Hunts - Long term blocks,Nursing Care
Cambridgeshire County Council,05-May-23,51301979374,"7,948.80",HUNTERS HEALTHCARE (HUNTERS DOWN),CARE ESTABLISHMENT,OPPD - Cost of Care - Huntingdon Blocks,Hunts - Long term blocks,Nursing Care
Cambridgeshire County Council,05-May-23,51301979374,"7,948.80",HUNTERS HEALTHCARE (HUNTERS DOWN),CARE ESTABLISHMENT,OPPD - Cost of Care - Huntingdon Blocks,Hunts - Long term blocks,Nursing Care
Cambridgeshire County Council,05-May-23,51301979374,"7,948.80",HUNTERS HEALTHCARE (HUNTERS DOWN),CARE ESTABLISHMENT,OPPD - Cost of Care - Huntingdon Blocks,Hunts - Long term blocks,Nursing Care
Cambridgeshire County Council,05-May-23,51301979371,"7,969.50",FORD HOUSE CARE HOME,CARE ESTABLISHMENT,OPPD - Cost of Care - Huntingdon - Over 65,Hunts OP Team - Care,Nursing Care
Cambridgeshire County Council,05-May-23,51301979371,"7,969.50",FORD HOUSE CARE HOME,CARE ESTABLISHMENT,OPPD - Cost of Care - Huntingdon - Over 65,Hunts OP Team - Care,Nursing Care
Cambridgeshire County Council,05-May-23,51301979371,"7,969.50",FORD HOUSE CARE HOME,CARE ESTABLISHMENT,OPPD - Cost of Care - Huntingdon - Over 65,Hunts OP Team - Care,Nursing Care
Cambridgeshire County Council,05-May-23,51301979371,"7,969.50",FORD HOUSE CARE HOME,CARE ESTABLISHMENT,OPPD - Cost of Care - Huntingdon - Over 65,Hunts OP Team - Care,Nursing Care
Cambridgeshire County Council,05-May-23,51301979529,"8,370.00",NEXUS FOSTERING LTD,CARE ESTABLISHMENT,LAC Placements,Placements - independent fostering,Agency Placements - Out of  County
Cambridgeshire County Council,05-May-23,51301979563,"8,499.00",CAMBRIDGE CITY COUNCIL,OTHER PUBLIC BODIES,Park & Ride Parking,Madingley Road P & R,Business rates
Cambridgeshire County Council,05-May-23,51301979386,"8,590.50",ST GEORGE'S COURT,CARE ESTABLISHMENT,OPPD - Cost of Care - City South Blocks,City and South - Long term blocks,Nursing Care
Cambridgeshire County Council,05-May-23,51301979374,"8,694.00",HUNTERS HEALTHCARE (HUNTERS DOWN),CARE ESTABLISHMENT,OPPD - Cost of Care - Huntingdon Blocks,Hunts - Long term blocks,Nursing Care
Cambridgeshire County Council,05-May-23,51301979374,"8,694.00",HUNTERS HEALTHCARE (HUNTERS DOWN),CARE ESTABLISHMENT,OPPD - Cost of Care - Huntingdon Blocks,Hunts - Long term blocks,Nursing Care
Cambridgeshire County Council,05-May-23,51301979374,"8,694.00",HUNTERS HEALTHCARE (HUNTERS DOWN),CARE ESTABLISHMENT,OPPD - Cost of Care - Huntingdon Blocks,Hunts - Long term blocks,Nursing Care
Cambridgeshire County Council,05-May-23,51301979374,"8,694.00",HUNTERS HEALTHCARE (HUNTERS DOWN),CARE ESTABLISHMENT,OPPD - Cost of Care - Huntingdon Blocks,Hunts - Long term blocks,Nursing Care
Cambridgeshire County Council,05-May-23,51301979564,"9,216.00",CAMBRIDGE CITY COUNCIL,OTHER PUBLIC BODIES,Park & Ride Parking,Babraham Road P & R,Business rates
Cambridgeshire County Council,05-May-23,51301979804,"9,370.00",SOUTH CAMBRIDGESHIRE DISTRICT COUNCIL,OTHER PUBLIC BODIES,Corporate Offices,"Bernard Sunley Centre, Papworth Everard",Business rates
Cambridgeshire County Council,05-May-23,51301979355,"9,449.55",ETHELDRED HOUSE,CARE ESTABLISHMENT,OPPD - Cost of Care - City South Blocks,City and South - Long term blocks,Nursing Care
Cambridgeshire County Council,05-May-23,51301979355,"9,449.55",ETHELDRED HOUSE,CARE ESTABLISHMENT,OPPD - Cost of Care - City South Blocks,City and South - Long term blocks,Nursing Care
Cambridgeshire County Council,05-May-23,51301979355,"9,449.55",ETHELDRED HOUSE,CARE ESTABLISHMENT,OPPD - Cost of Care - City South Blocks,City and South - Long term blocks,Nursing Care
Cambridgeshire County Council,05-May-23,51301979355,"9,449.55",ETHELDRED HOUSE,CARE ESTABLISHMENT,OPPD - Cost of Care - City South Blocks,City and South - Long term blocks,Nursing Care
Cambridgeshire County Council,05-May-23,51301979807,"9,626.00",SOUTH CAMBRIDGESHIRE DISTRICT COUNCIL,OTHER PUBLIC BODIES,Park & Ride Parking,Milton Park & Ride,Business rates
Cambridgeshire County Council,05-May-23,51301979184,"10,080.00",West Northamptonshire Council,OTHER PUBLIC BODIES,Internal Audit,Audit Division,Joint Arrangements
Cambridgeshire County Council,05-May-23,51301979372,"10,098.71",FITZWILLIAM HEALTHCARE LTD,CARE ESTABLISHMENT,OPPD - Cost of Care - City South Blocks,City and South - Long term blocks,Residential Care
Cambridgeshire County Council,05-May-23,51301979718,"10,342.00",HUNTINGDONSHIRE DISTRICT COUNCIL,OTHER PUBLIC BODIES,Corporate Offices,Scott House,Business rates
Cambridgeshire County Council,05-May-23,51301979720,"10,598.00",HUNTINGDONSHIRE DISTRICT COUNCIL,OTHER PUBLIC BODIES,Corporate Offices,Huntingdon Library,Business rates
Cambridgeshire County Council,05-May-23,51301979381,"11,167.65",BUCHAN HEALTHCARE LTD,CARE ESTABLISHMENT,OPPD - Cost of Care - City South Blocks,City and South - Long term blocks,Nursing Care
Cambridgeshire County Council,05-May-23,51301979381,"11,167.65",BUCHAN HEALTHCARE LTD,CARE ESTABLISHMENT,OPPD - Cost of Care - City South Blocks,City and South - Long term blocks,Nursing Care
Cambridgeshire County Council,05-May-23,51301979381,"11,167.65",BUCHAN HEALTHCARE LTD,CARE ESTABLISHMENT,OPPD - Cost of Care - City South Blocks,City and South - Long term blocks,Nursing Care
Cambridgeshire County Council,05-May-23,51301979381,"11,167.65",BUCHAN HEALTHCARE LTD,CARE ESTABLISHMENT,OPPD - Cost of Care - City South Blocks,City and South - Long term blocks,Nursing Care
Cambridgeshire County Council,05-May-23,51301979373,"11,310.56",BROOK HEALTHCARE,CARE ESTABLISHMENT,OPPD - Cost of Care - City South Blocks,City and South - Long term blocks,Residential Care
Cambridgeshire County Council,05-May-23,51301979373,"11,310.56",BROOK HEALTHCARE,CARE ESTABLISHMENT,OPPD - Cost of Care - City South Blocks,City and South - Long term blocks,Residential Care
Cambridgeshire County Council,05-May-23,51301979373,"11,310.56",BROOK HEALTHCARE,CARE ESTABLISHMENT,OPPD - Cost of Care - City South Blocks,City and South - Long term blocks,Residential Care
Cambridgeshire County Council,05-May-23,51301979373,"11,310.56",BROOK HEALTHCARE,CARE ESTABLISHMENT,OPPD - Cost of Care - City South Blocks,City and South - Long term blocks,Residential Care
Cambridgeshire County Council,05-May-23,51301979386,"12,026.70",ST GEORGE'S COURT,CARE ESTABLISHMENT,OPPD - Cost of Care - City South Blocks,City and South - Long term blocks,Nursing Care
Cambridgeshire County Council,05-May-23,51301979386,"12,026.70",ST GEORGE'S COURT,CARE ESTABLISHMENT,OPPD - Cost of Care - City South Blocks,City and South - Long term blocks,Nursing Care
Cambridgeshire County Council,05-May-23,51301979386,"12,026.70",ST GEORGE'S COURT,CARE ESTABLISHMENT,OPPD - Cost of Care - City South Blocks,City and South - Long term blocks,Nursing Care
Cambridgeshire County Council,05-May-23,51301979375,"12,420.00",COTTENHAM COURT NURSING HOME,CARE ESTABLISHMENT,OPPD - Cost of Care - City South Blocks,City and South - Long term blocks,Nursing Care
Cambridgeshire County Council,05-May-23,51301979375,"12,420.00",COTTENHAM COURT NURSING HOME,CARE ESTABLISHMENT,OPPD - Cost of Care - City South Blocks,City and South - Long term blocks,Nursing Care
Cambridgeshire County Council,05-May-23,51301979375,"12,420.00",COTTENHAM COURT NURSING HOME,CARE ESTABLISHMENT,OPPD - Cost of Care - City South Blocks,City and South - Long term blocks,Nursing Care
Cambridgeshire County Council,05-May-23,51301979375,"12,420.00",COTTENHAM COURT NURSING HOME,CARE ESTABLISHMENT,OPPD - Cost of Care - City South Blocks,City and South - Long term blocks,Nursing Care
Cambridgeshire County Council,05-May-23,51301979343,"12,834.00",RHEOLA HEALTHCARE,CARE ESTABLISHMENT,OPPD - Cost of Care - Huntingdon Blocks,Hunts - Long term blocks,Residential Care
Cambridgeshire County Council,05-May-23,51301979343,"12,834.00",RHEOLA HEALTHCARE,CARE ESTABLISHMENT,OPPD - Cost of Care - Huntingdon Blocks,Hunts - Long term blocks,Residential Care
Cambridgeshire County Council,05-May-23,51301979343,"12,834.00",RHEOLA HEALTHCARE,CARE ESTABLISHMENT,OPPD - Cost of Care - Huntingdon Blocks,Hunts - Long term blocks,Residential Care
Cambridgeshire County Council,05-May-23,51301979343,"12,834.00",RHEOLA HEALTHCARE,CARE ESTABLISHMENT,OPPD - Cost of Care - Huntingdon Blocks,Hunts - Long term blocks,Residential Care
Cambridgeshire County Council,05-May-23,51301979380,"13,320.04",RADIS COMMUNITY CARE,CARE ESTABLISHMENT,OPPD - Cost of Care - City South - Over 65,Older People - City & South - Care,Supported Living
Cambridgeshire County Council,05-May-23,51301979380,"13,320.04",RADIS COMMUNITY CARE,CARE ESTABLISHMENT,OPPD - Cost of Care - City South - Over 65,Older People - City & South - Care,Supported Living
Cambridgeshire County Council,05-May-23,51301979380,"13,320.04",RADIS COMMUNITY CARE,CARE ESTABLISHMENT,OPPD - Cost of Care - City South - Over 65,Older People - City & South - Care,Supported Living
Cambridgeshire County Council,05-May-23,51301979380,"13,320.04",RADIS COMMUNITY CARE,CARE ESTABLISHMENT,OPPD - Cost of Care - City South - Over 65,Older People - City & South - Care,Supported Living
Cambridgeshire County Council,05-May-23,51301979899,"13,392.00",SIXTEEN PLUS,CARE ESTABLISHMENT,LAC Placements,Placements - supported accommodation,Agency Placements - In County
